Workbook

Sheet Initial Values
B2: Basic acoustic calculator for a rectilinear room | I2: © Chris Whealy 2020 | J2: V2.68
B3: Please enter the following initial values of your control room by using the spin button controls
B5: Initial values
B6: Room width | C6: 15.00
B7: Speaker directivity (Q) | C7: 3.6 | D7: 1 = Omni-directional.
B8: Choose room dimensions | C8: H | D8: Enter a letter from A-H. The room dimension ratios can be found on sheet Room Ratios
B9: Air temperature (deg C) | C9: 20
B10: Low frequency cutoff (Hz) | C10: 250 | D10: Arbitrary upper limit for modal analysis
B12: Room dimensions | C12: Height | D12: Width | E12: Length
B13: Axis dimensions | C13: =width/VLOOKUP(C8,'Room Ratios'!C13:F26,3) -> 9.49 | D13: =width -> 15.00 | E13: =C13*VLOOKUP(C8,'Room Ratios'!C13:F26,4) -> 17.85 | F13: =LengthText -> ft | G13: <- These dimensions are derived from the room ratios
B14: Edge length | C14: =4*(room_height+room_width+room_length) -> 169.37 | D14: =IF(unitFactor=1,"m","ft") -> ft
B15: Volume | C15: =room_length*room_width*room_height -> 2541.66 | D15: =IF(unitFactor=1,"cu m","cu ft") -> cu ft
B17: Various room measurements | C17: Wall 1 | D17: Wall 2 | E17: Wall 3 | F17: Wall 4 | G17: Floor | H17: Ceiling | J17: BE CAREFUL!
B18: Room surface areas | C18: =room_height*room_width -> 142.41 | D18: =room_height*room_length -> 169.44 | E18: =room_height*room_width -> 142.41 | F18: =room_height*room_length -> 169.44 | G18: =room_width*room_length -> 267.72 | H18: =room_width*room_length -> 267.72 | I18: =AreaText -> sq ft | J18: If the plot below shows that one axis will have a significantly longer reverberation time than the other two,
B19: Total surface area | C19: =SUM(C18:H18) -> 1159.14 | D19: =AreaText -> sq ft | J19: then this should act as a warning sign that you've probably created a room with a serious flutter echo.

Sheet Room Ratios
B2: Room ratios for favourable mode distribution | O2: Room ratios for minimum bass resonance
B3: Room ratios are always in the form 1:x:y. The height (z) is assumed to be 1
B4: Bolt's recommendation | F4: 2<x+y<4
F5: 3/2(x-1) < y-1 < 3(x-1)
B7: EBU recommendation | F7: x<3z, y<3z
F8: 1.1x/z <= y/z <= (4.5x/z) - 4
B10: IEC recommendation | F10: x/z <= y/z <= min(4,(5x/z)-4)
B12: After Bolt | D12: H | E12: W | F12: L | H12: Bolt? | I12: EBU? | J12: IEC?
B13: Room | C13: A | D13: 1.00 | E13: 1.14 | F13: 1.39 | H13: =IF((E13+F13)<2,"No",IF((E13+F13)>4,"No",IF((F13-1)<1.5*(E13-1),"No",IF((F13-1)>3*(E13-1),"No","Yes")))) -> Yes | I13: =IF(E13>3,"No",IF(F13>3,"No",IF(1.1*E13>F13,"No",IF(F13>(4.5*E13)-4,"No","Yes")))) -> No | J13: =IF(E13>F13,"No",IF(F13>MIN((5*E13)-4,4),"No","Yes")) -> Yes
B14: Room | C14: B | D14: 1.00 | E14: 1.28 | F14: 1.54 | H14: =IF((E14+F14)<2,"No",IF((E14+F14)>4,"No",IF((F14-1)<1.5*(E14-1),"No",IF((F14-1)>3*(E14-1),"No","Yes")))) -> Yes | I14: =IF(E14>3,"No",IF(F14>3,"No",IF(1.1*E14>F14,"No",IF(F14>(4.5*E14)-4,"No","Yes")))) -> Yes | J14: =IF(E14>F14,"No",IF(F14>MIN((5*E14)-4,4),"No","Yes")) -> Yes
B15: Room | C15: C | D15: 1.00 | E15: 1.60 | F15: 2.33 | H15: =IF((E15+F15)<2,"No",IF((E15+F15)>4,"No",IF((F15-1)<1.5*(E15-1),"No",IF((F15-1)>3*(E15-1),"No","Yes")))) -> Yes | I15: =IF(E15>3,"No",IF(F15>3,"No",IF(1.1*E15>F15,"No",IF(F15>(4.5*E15)-4,"No","Yes")))) -> Yes | J15: =IF(E15>F15,"No",IF(F15>MIN((5*E15)-4,4),"No","Yes")) -> Yes
B17: After Louden | D17: H | E17: W | F17: L
B18: Room | C18: D | D18: 1.00 | E18: 1.40 | F18: 1.90 | H18: =IF((E18+F18)<2,"No",IF((E18+F18)>4,"No",IF((F18-1)<1.5*(E18-1),"No",IF((F18-1)>3*(E18-1),"No","Yes")))) -> Yes | I18: =IF(E18>3,"No",IF(F18>3,"No",IF(1.1*E18>F18,"No",IF(F18>(4.5*E18)-4,"No","Yes")))) -> Yes | J18: =IF(E18>F18,"No",IF(F18>MIN((5*E18)-4,4),"No","Yes")) -> Yes
B19: Room | C19: E | D19: 1.00 | E19: 1.30 | F19: 1.90 | H19: =IF((E19+F19)<2,"No",IF((E19+F19)>4,"No",IF((F19-1)<1.5*(E19-1),"No",IF((F19-1)>3*(E19-1),"No","Yes")))) -> Yes | I19: =IF(E19>3,"No",IF(F19>3,"No",IF(1.1*E19>F19,"No",IF(F19>(4.5*E19)-4,"No","Yes")))) -> No | J19: =IF(E19>F19,"No",IF(F19>MIN((5*E19)-4,4),"No","Yes")) -> Yes
B20: Room | C20: F | D20: 1.00 | E20: 1.50 | F20: 2.50 | H20: =IF((E20+F20)<2,"No",IF((E20+F20)>4,"No",IF((F20-1)<1.5*(E20-1),"No",IF((F20-1)>3*(E20-1),"No","Yes")))) -> Yes | I20: =IF(E20>3,"No",IF(F20>3,"No",IF(1.1*E20>F20,"No",IF(F20>(4.5*E20)-4,"No","Yes")))) -> Yes | J20: =IF(E20>F20,"No",IF(F20>MIN((5*E20)-4,4),"No","Yes")) -> Yes
B22: After Boner | D22: H | E22: W | F22: L
B23: Room | C23: G | D23: 1.00 | E23: 1.26 | F23: 1.59 | H23: =IF((E23+F23)<2,"No",IF((E23+F23)>4,"No",IF((F23-1)<1.5*(E23-1),"No",IF((F23-1)>3*(E23-1),"No","Yes")))) -> Yes | I23: =IF(E23>3,"No",IF(F23>3,"No",IF(1.1*E23>F23,"No",IF(F23>(4.5*E23)-4,"No","Yes")))) -> Yes | J23: =IF(E23>F23,"No",IF(F23>MIN((5*E23)-4,4),"No","Yes")) -> Yes
B25: User defined | D25: H | E25: W | F25: L
B26: Room | C26: H | D26: 1.00 | E26: 1.58 | F26: 1.88 | H26: =IF((E26+F26)<2,"No",IF((E26+F26)>4,"No",IF((F26-1)<1.5*(E26-1),"No",IF((F26-1)>3*(E26-1),"No","Yes")))) -> Yes | I26: =IF(E26>3,"No",IF(F26>3,"No",IF(1.1*E26>F26,"No",IF(F26>(4.5*E26)-4,"No","Yes")))) -> Yes | J26: =IF(E26>F26,"No",IF(F26>MIN((5*E26)-4,4),"No","Yes")) -> Yes
L30: The darker the area in the above image, the weaker the bass resonance,
L31: therefore, the more suitable the room ratios are for a control room.
L33: Image © Prof Trevor Cox, University of Salford, UK

Sheet Room Materials
B2: Absorption of room materials
B3: The absorption values for the various materials can be found on sheet Absorption Coefficients.
B5: The %ages for each material making up the room surfaces must be entered using the spin buttons. The actual areas will be calculated automatically
B6: Check that all the totals equal 100%!
B8: Wall 1 | C8: ID | E8: Surface Description | F8: t (mm) | G8: c (mm) | H8: a (mm) | I8: perf | J8: Area
B9: Material 1 | C9: 3117 | E9: =VLOOKUP(wall1_mat1,wall_mat_start:wall_mat_end,2) -> Plasterboard on frame | F9: =IF(VLOOKUP(wall1_mat1,wall_mat_start:wall_mat_end,3)=0,"",VLOOKUP(wall1_mat1,wall_mat_start:wall_mat_end,3)) -> 9.5 | G9: =IF(VLOOKUP(wall1_mat1,wall_mat_start:wall_mat_end,4)=0,"",VLOOKUP(wall1_mat1,wall_mat_start:wall_mat_end,4)) -> 120 | H9: =IF(VLOOKUP(wall1_mat1,wall_mat_start:wall_mat_end,5)=0,"",VLOOKUP(wall1_mat1,wall_mat_start:wall_mat_end,5)) ->  | I9: =IF(VLOOKUP(wall1_mat1,wall_mat_start:wall_mat_end,6)=0,"",VLOOKUP(wall1_mat1,wall_mat_start:wall_mat_end,6)) ->  | J9: 80.00% | K9: =wall1_area*wall1_mat1_pct -> 113.92 | L9: =AreaText -> sq ft
B10: Material 2 | C10: 3137 | E10: =VLOOKUP(wall1_mat2,wall_mat_start:wall_mat_end,2) -> Window, double glazed | F10: =IF(VLOOKUP(wall1_mat2,wall_mat_start:wall_mat_end,3)=0,"",VLOOKUP(wall1_mat2,wall_mat_start:wall_mat_end,3)) -> 2.5 | G10: =IF(VLOOKUP(wall1_mat2,wall_mat_start:wall_mat_end,4)=0,"",VLOOKUP(wall1_mat2,wall_mat_start:wall_mat_end,4)) -> 30 | H10: =IF(VLOOKUP(wall1_mat2,wall_mat_start:wall_mat_end,5)=0,"",VLOOKUP(wall1_mat2,wall_mat_start:wall_mat_end,5)) ->  | I10: =IF(VLOOKUP(wall1_mat2,wall_mat_start:wall_mat_end,6)=0,"",VLOOKUP(wall1_mat2,wall_mat_start:wall_mat_end,6)) ->  | J10: 20.00% | K10: =wall1_area*wall1_mat2_pct -> 28.48 | L10: =AreaText -> sq ft
B11: Material 3 | C11: 3000 | E11: =VLOOKUP(wall1_mat3,wall_mat_start:wall_mat_end,2) -> N/A | F11: =IF(VLOOKUP(wall1_mat3,wall_mat_start:wall_mat_end,3)=0,"",VLOOKUP(wall1_mat3,wall_mat_start:wall_mat_end,3)) ->  | G11: =IF(VLOOKUP(wall1_mat3,wall_mat_start:wall_mat_end,4)=0,"",VLOOKUP(wall1_mat3,wall_mat_start:wall_mat_end,4)) ->  | H11: =IF(VLOOKUP(wall1_mat3,wall_mat_start:wall_mat_end,5)=0,"",VLOOKUP(wall1_mat3,wall_mat_start:wall_mat_end,5)) ->  | I11: =IF(VLOOKUP(wall1_mat3,wall_mat_start:wall_mat_end,6)=0,"",VLOOKUP(wall1_mat3,wall_mat_start:wall_mat_end,6)) ->  | J11: 0.00% | K11: =wall1_area*wall1_mat3_pct -> 0.00 | L11: =AreaText -> sq ft
B12: Material 4 | C12: 3000 | E12: =VLOOKUP(wall1_mat4,wall_mat_start:wall_mat_end,2) -> N/A | F12: =IF(VLOOKUP(wall1_mat3,wall_mat_start:wall_mat_end,4)=0,"",VLOOKUP(wall1_mat4,wall_mat_start:wall_mat_end,3)) ->  | G12: =IF(VLOOKUP(wall1_mat3,wall_mat_start:wall_mat_end,4)=0,"",VLOOKUP(wall1_mat4,wall_mat_start:wall_mat_end,4)) ->  | H12: =IF(VLOOKUP(wall1_mat3,wall_mat_start:wall_mat_end,5)=0,"",VLOOKUP(wall1_mat4,wall_mat_start:wall_mat_end,5)) ->  | I12: =IF(VLOOKUP(wall1_mat3,wall_mat_start:wall_mat_end,6)=0,"",VLOOKUP(wall1_mat4,wall_mat_start:wall_mat_end,6)) ->  | J12: 0.00% | K12: =wall1_area*wall1_mat4_pct -> 0.00 | L12: =AreaText -> sq ft
J13: =SUM(J9:J12) -> 100.00%
B14: Wall 2 | C14: ID | E14: Surface Description
B15: Material 1 | C15: 3117 | E15: =VLOOKUP(wall2_mat1,wall_mat_start:wall_mat_end,2) -> Plasterboard on frame | F15: =IF(VLOOKUP(wall2_mat1,wall_mat_start:wall_mat_end,3)=0,"",VLOOKUP(wall2_mat1,wall_mat_start:wall_mat_end,3)) -> 9.5 | G15: =IF(VLOOKUP(wall2_mat1,wall_mat_start:wall_mat_end,4)=0,"",VLOOKUP(wall2_mat1,wall_mat_start:wall_mat_end,4)) -> 120 | H15: =IF(VLOOKUP(wall2_mat1,wall_mat_start:wall_mat_end,5)=0,"",VLOOKUP(wall2_mat1,wall_mat_start:wall_mat_end,5)) ->  | I15: =IF(VLOOKUP(wall2_mat1,wall_mat_start:wall_mat_end,6)=0,"",VLOOKUP(wall2_mat1,wall_mat_start:wall_mat_end,6)) ->  | J15: 100.00% | K15: =wall2_area*wall2_mat1_pct -> 169.44 | L15: =AreaText -> sq ft
B16: Material 2 | C16: 3000 | E16: =VLOOKUP(wall2_mat2,wall_mat_start:wall_mat_end,2) -> N/A | F16: =IF(VLOOKUP(wall2_mat2,wall_mat_start:wall_mat_end,3)=0,"",VLOOKUP(wall2_mat2,wall_mat_start:wall_mat_end,3)) ->  | G16: =IF(VLOOKUP(wall2_mat2,wall_mat_start:wall_mat_end,4)=0,"",VLOOKUP(wall2_mat2,wall_mat_start:wall_mat_end,4)) ->  | H16: =IF(VLOOKUP(wall2_mat2,wall_mat_start:wall_mat_end,5)=0,"",VLOOKUP(wall2_mat2,wall_mat_start:wall_mat_end,5)) ->  | I16: =IF(VLOOKUP(wall2_mat2,wall_mat_start:wall_mat_end,6)=0,"",VLOOKUP(wall2_mat2,wall_mat_start:wall_mat_end,6)) ->  | J16: 0.00% | K16: =wall2_area*wall2_mat2_pct -> 0.00 | L16: =AreaText -> sq ft
B17: Material 3 | C17: 3000 | E17: =VLOOKUP(wall2_mat3,wall_mat_start:wall_mat_end,2) -> N/A | F17: =IF(VLOOKUP(wall2_mat3,wall_mat_start:wall_mat_end,3)=0,"",VLOOKUP(wall2_mat3,wall_mat_start:wall_mat_end,3)) ->  | G17: =IF(VLOOKUP(wall2_mat3,wall_mat_start:wall_mat_end,4)=0,"",VLOOKUP(wall2_mat3,wall_mat_start:wall_mat_end,4)) ->  | H17: =IF(VLOOKUP(wall2_mat3,wall_mat_start:wall_mat_end,5)=0,"",VLOOKUP(wall2_mat3,wall_mat_start:wall_mat_end,5)) ->  | I17: =IF(VLOOKUP(wall2_mat3,wall_mat_start:wall_mat_end,6)=0,"",VLOOKUP(wall2_mat3,wall_mat_start:wall_mat_end,6)) ->  | J17: 0.00% | K17: =wall2_area*wall2_mat3_pct -> 0.00 | L17: =AreaText -> sq ft
B18: Material 4 | C18: 3000 | E18: =VLOOKUP(wall2_mat4,wall_mat_start:wall_mat_end,2) -> N/A | F18: =IF(VLOOKUP(wall2_mat4,wall_mat_start:wall_mat_end,3)=0,"",VLOOKUP(wall2_mat4,wall_mat_start:wall_mat_end,3)) ->  | G18: =IF(VLOOKUP(wall2_mat4,wall_mat_start:wall_mat_end,4)=0,"",VLOOKUP(wall2_mat4,wall_mat_start:wall_mat_end,4)) ->  | H18: =IF(VLOOKUP(wall2_mat4,wall_mat_start:wall_mat_end,5)=0,"",VLOOKUP(wall2_mat4,wall_mat_start:wall_mat_end,5)) ->  | I18: =IF(VLOOKUP(wall2_mat4,wall_mat_start:wall_mat_end,6)=0,"",VLOOKUP(wall2_mat4,wall_mat_start:wall_mat_end,6)) ->  | J18: 0.00% | K18: =wall2_area*wall2_mat4_pct -> 0.00 | L18: =AreaText -> sq ft
J19: =SUM(J15:J18) -> 100.00%
B20: Wall 3 | C20: ID | E20: Surface Description
B21: Material 1 | C21: 3117 | E21: =VLOOKUP(wall3_mat1,wall_mat_start:wall_mat_end,2) -> Plasterboard on frame | F21: =IF(VLOOKUP(wall3_mat1,wall_mat_start:wall_mat_end,3)=0,"",VLOOKUP(wall3_mat1,wall_mat_start:wall_mat_end,3)) -> 9.5 | G21: =IF(VLOOKUP(wall3_mat1,wall_mat_start:wall_mat_end,4)=0,"",VLOOKUP(wall3_mat1,wall_mat_start:wall_mat_end,4)) -> 120 | H21: =IF(VLOOKUP(wall3_mat1,wall_mat_start:wall_mat_end,5)=0,"",VLOOKUP(wall3_mat1,wall_mat_start:wall_mat_end,5)) ->  | I21: =IF(VLOOKUP(wall3_mat1,wall_mat_start:wall_mat_end,6)=0,"",VLOOKUP(wall3_mat1,wall_mat_start:wall_mat_end,6)) ->  | J21: 100.00% | K21: =wall3_area*wall3_mat1_pct -> 142.41 | L21: =AreaText -> sq ft
B22: Material 2 | C22: 3000 | E22: =VLOOKUP(wall3_mat2,wall_mat_start:wall_mat_end,2) -> N/A | F22: =IF(VLOOKUP(wall3_mat2,wall_mat_start:wall_mat_end,3)=0,"",VLOOKUP(wall3_mat2,wall_mat_start:wall_mat_end,3)) ->  | G22: =IF(VLOOKUP(wall3_mat2,wall_mat_start:wall_mat_end,4)=0,"",VLOOKUP(wall3_mat2,wall_mat_start:wall_mat_end,4)) ->  | H22: =IF(VLOOKUP(wall3_mat2,wall_mat_start:wall_mat_end,5)=0,"",VLOOKUP(wall3_mat2,wall_mat_start:wall_mat_end,5)) ->  | I22: =IF(VLOOKUP(wall3_mat2,wall_mat_start:wall_mat_end,6)=0,"",VLOOKUP(wall3_mat2,wall_mat_start:wall_mat_end,6)) ->  | J22: 0.00% | K22: =wall3_area*wall3_mat2_pct -> 0.00 | L22: =AreaText -> sq ft
B23: Material 3 | C23: 3000 | E23: =VLOOKUP(wall3_mat3,wall_mat_start:wall_mat_end,2) -> N/A | F23: =IF(VLOOKUP(wall3_mat3,wall_mat_start:wall_mat_end,3)=0,"",VLOOKUP(wall3_mat3,wall_mat_start:wall_mat_end,3)) ->  | G23: =IF(VLOOKUP(wall3_mat3,wall_mat_start:wall_mat_end,4)=0,"",VLOOKUP(wall3_mat3,wall_mat_start:wall_mat_end,4)) ->  | H23: =IF(VLOOKUP(wall3_mat3,wall_mat_start:wall_mat_end,5)=0,"",VLOOKUP(wall3_mat3,wall_mat_start:wall_mat_end,5)) ->  | I23: =IF(VLOOKUP(wall3_mat3,wall_mat_start:wall_mat_end,6)=0,"",VLOOKUP(wall3_mat3,wall_mat_start:wall_mat_end,6)) ->  | J23: 0.00% | K23: =wall3_area*wall3_mat3_pct -> 0.00 | L23: =AreaText -> sq ft
B24: Material 4 | C24: 3000 | E24: =VLOOKUP(wall3_mat4,wall_mat_start:wall_mat_end,2) -> N/A | F24: =IF(VLOOKUP(wall3_mat4,wall_mat_start:wall_mat_end,3)=0,"",VLOOKUP(wall3_mat4,wall_mat_start:wall_mat_end,3)) ->  | G24: =IF(VLOOKUP(wall3_mat4,wall_mat_start:wall_mat_end,4)=0,"",VLOOKUP(wall3_mat4,wall_mat_start:wall_mat_end,4)) ->  | H24: =IF(VLOOKUP(wall3_mat4,wall_mat_start:wall_mat_end,5)=0,"",VLOOKUP(wall3_mat4,wall_mat_start:wall_mat_end,5)) ->  | I24: =IF(VLOOKUP(wall3_mat4,wall_mat_start:wall_mat_end,6)=0,"",VLOOKUP(wall3_mat4,wall_mat_start:wall_mat_end,6)) ->  | J24: 0.00% | K24: =wall3_area*wall3_mat4_pct -> 0.00 | L24: =AreaText -> sq ft
J25: =SUM(J21:J24) -> 100.00%
B26: Wall 4 | C26: ID | E26: Surface Description
B27: Material 1 | C27: 3117 | E27: =VLOOKUP(wall4_mat1,wall_mat_start:wall_mat_end,2) -> Plasterboard on frame | F27: =IF(VLOOKUP(wall4_mat1,wall_mat_start:wall_mat_end,3)=0,"",VLOOKUP(wall4_mat1,wall_mat_start:wall_mat_end,3)) -> 9.5 | G27: =IF(VLOOKUP(wall4_mat1,wall_mat_start:wall_mat_end,4)=0,"",VLOOKUP(wall4_mat1,wall_mat_start:wall_mat_end,4)) -> 120 | H27: =IF(VLOOKUP(wall4_mat1,wall_mat_start:wall_mat_end,5)=0,"",VLOOKUP(wall4_mat1,wall_mat_start:wall_mat_end,5)) ->  | I27: =IF(VLOOKUP(wall4_mat1,wall_mat_start:wall_mat_end,6)=0,"",VLOOKUP(wall4_mat1,wall_mat_start:wall_mat_end,6)) ->  | J27: 90.00% | K27: =wall4_area*wall4_mat1_pct -> 152.50 | L27: =AreaText -> sq ft
B28: Material 2 | C28: 3101 | E28: =VLOOKUP(wall4_mat2,wall_mat_start:wall_mat_end,2) -> Door, solid wood, panelled | F28: =IF(VLOOKUP(wall4_mat2,wall_mat_start:wall_mat_end,3)=0,"",VLOOKUP(wall4_mat2,wall_mat_start:wall_mat_end,3)) ->  | G28: =IF(VLOOKUP(wall4_mat2,wall_mat_start:wall_mat_end,4)=0,"",VLOOKUP(wall4_mat2,wall_mat_start:wall_mat_end,4)) ->  | H28: =IF(VLOOKUP(wall4_mat2,wall_mat_start:wall_mat_end,5)=0,"",VLOOKUP(wall4_mat2,wall_mat_start:wall_mat_end,5)) ->  | I28: =IF(VLOOKUP(wall4_mat2,wall_mat_start:wall_mat_end,6)=0,"",VLOOKUP(wall4_mat2,wall_mat_start:wall_mat_end,6)) ->  | J28: 10.00% | K28: =wall4_area*wall4_mat2_pct -> 16.94 | L28: =AreaText -> sq ft
B29: Material 3 | C29: 3000 | E29: =VLOOKUP(wall4_mat3,wall_mat_start:wall_mat_end,2) -> N/A | F29: =IF(VLOOKUP(wall4_mat3,wall_mat_start:wall_mat_end,3)=0,"",VLOOKUP(wall4_mat3,wall_mat_start:wall_mat_end,3)) ->  | G29: =IF(VLOOKUP(wall4_mat3,wall_mat_start:wall_mat_end,4)=0,"",VLOOKUP(wall4_mat3,wall_mat_start:wall_mat_end,4)) ->  | H29: =IF(VLOOKUP(wall4_mat3,wall_mat_start:wall_mat_end,5)=0,"",VLOOKUP(wall4_mat3,wall_mat_start:wall_mat_end,5)) ->  | I29: =IF(VLOOKUP(wall4_mat3,wall_mat_start:wall_mat_end,6)=0,"",VLOOKUP(wall4_mat3,wall_mat_start:wall_mat_end,6)) ->  | J29: 0.00% | K29: =wall4_area*wall4_mat3_pct -> 0.00 | L29: =AreaText -> sq ft
B30: Material 4 | C30: 3000 | E30: =VLOOKUP(wall4_mat4,wall_mat_start:wall_mat_end,2) -> N/A | F30: =IF(VLOOKUP(wall4_mat4,wall_mat_start:wall_mat_end,3)=0,"",VLOOKUP(wall4_mat4,wall_mat_start:wall_mat_end,3)) ->  | G30: =IF(VLOOKUP(wall4_mat4,wall_mat_start:wall_mat_end,4)=0,"",VLOOKUP(wall4_mat4,wall_mat_start:wall_mat_end,4)) ->  | H30: =IF(VLOOKUP(wall4_mat4,wall_mat_start:wall_mat_end,5)=0,"",VLOOKUP(wall4_mat4,wall_mat_start:wall_mat_end,5)) ->  | I30: =IF(VLOOKUP(wall4_mat4,wall_mat_start:wall_mat_end,6)=0,"",VLOOKUP(wall4_mat4,wall_mat_start:wall_mat_end,6)) ->  | J30: 0.00% | K30: =wall4_area*wall4_mat4_pct -> 0.00 | L30: =AreaText -> sq ft
J31: =SUM(J27:J30) -> 100.00%
B32: Floor | C32: ID | E32: Surface Description
B33: Material 1 | C33: 2012 | E33: =VLOOKUP(floor_mat1,floor_mat_start:floor_mat_end,2) -> Carpet 1.98 kg/m2 on under-lay | F33: =IF(VLOOKUP(floor_mat1,floor_mat_start:floor_mat_end,3)=0,"",VLOOKUP(floor_mat1,floor_mat_start:floor_mat_end,3)) ->  | G33: =IF(VLOOKUP(floor_mat1,floor_mat_start:floor_mat_end,4)=0,"",VLOOKUP(floor_mat1,floor_mat_start:floor_mat_end,4)) ->  | H33: =IF(VLOOKUP(floor_mat1,floor_mat_start:floor_mat_end,5)=0,"",VLOOKUP(floor_mat1,floor_mat_start:floor_mat_end,5)) ->  | I33: =IF(VLOOKUP(floor_mat1,floor_mat_start:floor_mat_end,6)=0,"",VLOOKUP(floor_mat1,floor_mat_start:floor_mat_end,6)) ->  | J33: 100.00% | K33: =floor_area*floor_mat1_pct -> 267.72 | L33: =AreaText -> sq ft
B34: Material 2 | C34: 2000 | E34: =VLOOKUP(floor_mat2,floor_mat_start:floor_mat_end,2) -> N/A | F34: =IF(VLOOKUP(floor_mat2,floor_mat_start:floor_mat_end,3)=0,"",VLOOKUP(floor_mat2,floor_mat_start:floor_mat_end,3)) ->  | G34: =IF(VLOOKUP(floor_mat2,floor_mat_start:floor_mat_end,4)=0,"",VLOOKUP(floor_mat2,floor_mat_start:floor_mat_end,4)) ->  | H34: =IF(VLOOKUP(floor_mat2,floor_mat_start:floor_mat_end,5)=0,"",VLOOKUP(floor_mat2,floor_mat_start:floor_mat_end,5)) ->  | I34: =IF(VLOOKUP(floor_mat2,floor_mat_start:floor_mat_end,6)=0,"",VLOOKUP(floor_mat2,floor_mat_start:floor_mat_end,6)) ->  | J34: 0.00% | K34: =floor_area*floor_mat2_pct -> 0.00 | L34: =AreaText -> sq ft
B35: Material 3 | C35: 2000 | E35: =VLOOKUP(floor_mat3,floor_mat_start:floor_mat_end,2) -> N/A | F35: =IF(VLOOKUP(floor_mat3,floor_mat_start:floor_mat_end,3)=0,"",VLOOKUP(floor_mat3,floor_mat_start:floor_mat_end,3)) ->  | G35: =IF(VLOOKUP(floor_mat3,floor_mat_start:floor_mat_end,4)=0,"",VLOOKUP(floor_mat3,floor_mat_start:floor_mat_end,4)) ->  | H35: =IF(VLOOKUP(floor_mat3,floor_mat_start:floor_mat_end,5)=0,"",VLOOKUP(floor_mat3,floor_mat_start:floor_mat_end,5)) ->  | I35: =IF(VLOOKUP(floor_mat3,floor_mat_start:floor_mat_end,6)=0,"",VLOOKUP(floor_mat3,floor_mat_start:floor_mat_end,6)) ->  | J35: 0.00% | K35: =floor_area*floor_mat3_pct -> 0.00 | L35: =AreaText -> sq ft
B36: Material 4 | C36: 2000 | E36: =VLOOKUP(floor_mat4,floor_mat_start:floor_mat_end,2) -> N/A | F36: =IF(VLOOKUP(floor_mat4,floor_mat_start:floor_mat_end,3)=0,"",VLOOKUP(floor_mat4,floor_mat_start:floor_mat_end,3)) ->  | G36: =IF(VLOOKUP(floor_mat4,floor_mat_start:floor_mat_end,4)=0,"",VLOOKUP(floor_mat4,floor_mat_start:floor_mat_end,4)) ->  | H36: =IF(VLOOKUP(floor_mat4,floor_mat_start:floor_mat_end,5)=0,"",VLOOKUP(floor_mat4,floor_mat_start:floor_mat_end,5)) ->  | I36: =IF(VLOOKUP(floor_mat4,floor_mat_start:floor_mat_end,6)=0,"",VLOOKUP(floor_mat4,floor_mat_start:floor_mat_end,6)) ->  | J36: 0.00% | K36: =floor_area*floor_mat4_pct -> 0.00 | L36: =AreaText -> sq ft
J37: =SUM(J33:J36) -> 100.00%
B38: Ceiling | C38: ID | E38: Surface Description
B39: Material 1 | C39: 1008 | E39: =VLOOKUP(ceiling_mat1,ceiling_mat_start:ceiling_mat_end,2) -> Acoustic tiles, 3/16" holes at 1/2" centres | F39: =IF(VLOOKUP(ceiling_mat1,ceiling_mat_start:ceiling_mat_end,3)=0,"",VLOOKUP(ceiling_mat1,ceiling_mat_start:ceiling_mat_end,3)) -> 19 | G39: =IF(VLOOKUP(ceiling_mat1,ceiling_mat_start:ceiling_mat_end,4)=0,"",VLOOKUP(ceiling_mat1,ceiling_mat_start:ceiling_mat_end,4)) ->  | H39: =IF(VLOOKUP(ceiling_mat1,ceiling_mat_start:ceiling_mat_end,5)=0,"",VLOOKUP(ceiling_mat1,ceiling_mat_start:ceiling_mat_end,5)) ->  | I39: =IF(VLOOKUP(ceiling_mat1,ceiling_mat_start:ceiling_mat_end,6)=0,"",VLOOKUP(ceiling_mat1,ceiling_mat_start:ceiling_mat_end,6)) ->  | J39: 100.00% | K39: =ceiling_area*ceiling_mat1_pct -> 267.72 | L39: =AreaText -> sq ft
B40: Material 2 | C40: 1000 | E40: =VLOOKUP(ceiling_mat2,ceiling_mat_start:ceiling_mat_end,2) -> N/A | F40: =IF(VLOOKUP(ceiling_mat2,ceiling_mat_start:ceiling_mat_end,3)=0,"",VLOOKUP(ceiling_mat2,ceiling_mat_start:ceiling_mat_end,3)) ->  | G40: =IF(VLOOKUP(ceiling_mat2,ceiling_mat_start:ceiling_mat_end,4)=0,"",VLOOKUP(ceiling_mat2,ceiling_mat_start:ceiling_mat_end,4)) ->  | H40: =IF(VLOOKUP(ceiling_mat2,ceiling_mat_start:ceiling_mat_end,5)=0,"",VLOOKUP(ceiling_mat2,ceiling_mat_start:ceiling_mat_end,5)) ->  | I40: =IF(VLOOKUP(ceiling_mat2,ceiling_mat_start:ceiling_mat_end,6)=0,"",VLOOKUP(ceiling_mat2,ceiling_mat_start:ceiling_mat_end,6)) ->  | J40: 0.00% | K40: =ceiling_area*ceiling_mat2_pct -> 0.00 | L40: =AreaText -> sq ft
B41: Material 3 | C41: 1000 | E41: =VLOOKUP(ceiling_mat3,ceiling_mat_start:ceiling_mat_end,2) -> N/A | F41: =IF(VLOOKUP(ceiling_mat3,ceiling_mat_start:ceiling_mat_end,3)=0,"",VLOOKUP(ceiling_mat3,ceiling_mat_start:ceiling_mat_end,3)) ->  | G41: =IF(VLOOKUP(ceiling_mat3,ceiling_mat_start:ceiling_mat_end,4)=0,"",VLOOKUP(ceiling_mat3,ceiling_mat_start:ceiling_mat_end,4)) ->  | H41: =IF(VLOOKUP(ceiling_mat3,ceiling_mat_start:ceiling_mat_end,5)=0,"",VLOOKUP(ceiling_mat3,ceiling_mat_start:ceiling_mat_end,5)) ->  | I41: =IF(VLOOKUP(ceiling_mat3,ceiling_mat_start:ceiling_mat_end,6)=0,"",VLOOKUP(ceiling_mat3,ceiling_mat_start:ceiling_mat_end,6)) ->  | J41: 0.00% | K41: =ceiling_area*ceiling_mat3_pct -> 0.00 | L41: =AreaText -> sq ft
B42: Material 4 | C42: 1000 | E42: =VLOOKUP(ceiling_mat4,ceiling_mat_start:ceiling_mat_end,2) -> N/A | F42: =IF(VLOOKUP(ceiling_mat4,ceiling_mat_start:ceiling_mat_end,3)=0,"",VLOOKUP(ceiling_mat4,ceiling_mat_start:ceiling_mat_end,3)) ->  | G42: =IF(VLOOKUP(ceiling_mat4,ceiling_mat_start:ceiling_mat_end,4)=0,"",VLOOKUP(ceiling_mat4,ceiling_mat_start:ceiling_mat_end,4)) ->  | H42: =IF(VLOOKUP(ceiling_mat4,ceiling_mat_start:ceiling_mat_end,5)=0,"",VLOOKUP(ceiling_mat4,ceiling_mat_start:ceiling_mat_end,5)) ->  | I42: =IF(VLOOKUP(ceiling_mat4,ceiling_mat_start:ceiling_mat_end,6)=0,"",VLOOKUP(ceiling_mat4,ceiling_mat_start:ceiling_mat_end,6)) ->  | J42: 0.00% | K42: =ceiling_area*ceiling_mat4_pct -> 0.00 | L42: =AreaText -> sq ft
J43: =SUM(J39:J42) -> 100.00%

Sheet Basic Properties
B2: Basic properties of the sound field
B3: Basic sound field properties
B4: Speed of sound | C4: =unitFactor*20.047*SQRT(273.15+air_temp) -> 1126.11 | D4: =VelocityText -> ft/s
B5: Mean free path | C5: =(4*room_volume)/total_area -> 8.77 | D5: =LengthText -> ft | E5: Average distance travelled by a sound wave between reflections
B6: Direct/Diffuse field boundary | C6: =SQRT(absorption_area/16*PI()) -> 8.18 | D6: =LengthText -> ft | E6: Assuming an omni-directional sound source
B7: Direct/Diffuse field boundary | C7: =0.141*SQRT((directivity*total_area*alpha_bar)/(1-alpha_bar)) -> 5.87 | D7: =LengthText -> ft | E7: Accounting for speaker directivity
B8: No of modes below LF cutoff | C8: =((4*PI()/3)*room_volume*(lf_cutoff/sound_velocity)^3)+((PI()/4)*total_area*(lf_cutoff/sound_velocity)^2)+edge_length*lf_cutoff/(8*sound_velocity) -> 166
B9: Average mode spacing | C9: =sound_velocity^3/(4*PI()*room_volume*lf_cutoff^2) -> 0.72 | D9: Hz | E9: Below LF cutoff
B10: Standard deviation of mode spacing | C10: =STDEV('Resonant Modes'!AJ9:AJ735) -> 1.18 | E10: All modal frequencies are considered
B11: Lowest possible modal frequency | C11: =sound_velocity/(2*MAX(room_height,room_width,room_length)) -> 31.55 | D11: Hz | E11: Modal resonance not possible below this frequency
B13: Resonant region | C13: Sabine | D13: Eyring | E13: Fitzroy 1 | F13: Fitzroy 2 | G13: Arau | H13: Millington
B14: Schroeder transition frequency (Hz) | C14: =2000*SQRT(rt60_sabine*unitFactor^3/room_volume) -> 143.7 | D14: =2000*SQRT(rt60_eyring*unitFactor^3/room_volume) -> 132.2 | E14: =2000*SQRT(rt60_fitzroy*unitFactor^3/room_volume) -> 181.8 | F14: =2000*SQRT(rt60_fitzroy_modified*unitFactor^3/room_volume) -> 148.6 | G14: =2000*SQRT(rt60_arau*unitFactor^3/room_volume) -> 151.7 | H14: =2000*SQRT(rt60_millington*unitFactor^3/room_volume) -> 118.9 | I14: Centre of transition region between wave based calculations and ray based calculations
B15: Modal resonance bandwidth (Octaves) | C15: =LOG(C14,2)-LOG($C$11,2) -> 2.19 | D15: 2.07 | E15: 2.53 | F15: 2.24 | G15: 2.27 | H15: 1.91 | I15: The interval in octaves between the lowest mode and Schroeder's transition frequency
B16: Rise time (s) | C16: =0.32*rt60_sabine -> 0.12 | D16: =0.32*rt60_eyring -> 0.10 | E16: =0.32*rt60_fitzroy -> 0.19 | F16: =0.32*rt60_fitzroy_modified -> 0.13 | G16: =0.32*rt60_arau -> 0.13 | H16: =0.32*rt60_millington -> 0.08 | I16: The time taken for the reverberant field to build fully
B18: Reverberation time | C18: Sabine | D18: Eyring | E18: Fitzroy 1 | F18: Fitzroy 2 | G18: Arau | H18: Millington
B19: RT60 @ 500 Hz (s) | C19: =rt60_sabine -> 0.37 | D19: =rt60_eyring -> 0.31 | E19: =rt60_fitzroy -> 0.59 | F19: =rt60_fitzroy_modified -> 0.40 | G19: =rt60_arau -> 0.41 | H19: =rt60_millington -> 0.25
B21: Rettinger's Ideal Decay Time | C21: =0.15*LOG(room_volume/unitFactor^3)+0.082 -> 0.36 | D21: s | E21: Now considered too small for a comfortable working environment
B22: Preferred decay time | C22: =C21*1.2 -> 0.43 | D22: s | E22: Rettinger's Ideal Decay Time + 20% is now considered preferable
B24: Range of modal frequencies
B25: From the lowest mode to the Schroeder frequency relative to a piano keyboard (range midpoint marked in blue) | I25: Notes coloured in grey do not exist on a real keyboard
B27: Sabine
B28: Eyring
B29: Fitzroy 1
B30: Fitzroy 2
B31: Arau
B32: Millington
C37: Note No | D37: Freq | E37: - diff | F37: Note No | G37: Freq | H37: + diff | I37: Note No | J37: Freq
B38: Sabine | C38: =VLOOKUP(D38,'Intermediate values'!$D$90:$F$224,3,TRUE) -> 39 | D38: =$C$11 -> 31.55 | E38: =F38-C38 -> 13 | F38: =VLOOKUP(G38,'Intermediate values'!$D$90:$F$224,3,TRUE) -> 52 | G38: =2^(LOG(D38,2)+(LOG(J38,2)-LOG(D38,2))/2) -> 67.33 | H38: =I38-F38 -> 13 | I38: =VLOOKUP(J38,'Intermediate values'!$D$90:$F$224,3,TRUE) -> 65 | J38: =C14 -> 143.7 | K38: 6
B39: Eyring | C39: =VLOOKUP(D39,'Intermediate values'!$D$90:$F$224,3,TRUE) -> 39 | D39: 31.55 | E39: 12 | F39: =VLOOKUP(G39,'Intermediate values'!$D$90:$F$224,3,TRUE) -> 51 | G39: 64.59 | H39: 13 | I39: =VLOOKUP(J39,'Intermediate values'!$D$90:$F$224,3,TRUE) -> 64 | J39: =D14 -> 132.2 | K39: 5
B40: Fitzroy 1 | C40: =VLOOKUP(D40,'Intermediate values'!$D$90:$F$224,3,TRUE) -> 39 | D40: 31.55 | E40: 15 | F40: =VLOOKUP(G40,'Intermediate values'!$D$90:$F$224,3,TRUE) -> 54 | G40: 75.72 | H40: 15 | I40: =VLOOKUP(J40,'Intermediate values'!$D$90:$F$224,3,TRUE) -> 69 | J40: =E14 -> 181.8 | K40: 4
B41: Fitzroy 2 | C41: =VLOOKUP(D41,'Intermediate values'!$D$90:$F$224,3,TRUE) -> 39 | D41: 31.55 | E41: 13 | F41: =VLOOKUP(G41,'Intermediate values'!$D$90:$F$224,3,TRUE) -> 52 | G41: 68.47 | H41: 14 | I41: =VLOOKUP(J41,'Intermediate values'!$D$90:$F$224,3,TRUE) -> 66 | J41: =F14 -> 148.6 | K41: 3
B42: Arau | C42: =VLOOKUP(D42,'Intermediate values'!$D$90:$F$224,3,TRUE) -> 39 | D42: 31.55 | E42: 13 | F42: =VLOOKUP(G42,'Intermediate values'!$D$90:$F$224,3,TRUE) -> 52 | G42: 69.18 | H42: 14 | I42: =VLOOKUP(J42,'Intermediate values'!$D$90:$F$224,3,TRUE) -> 66 | J42: =G14 -> 151.7 | K42: 2
B43: Millington | C43: =VLOOKUP(D43,'Intermediate values'!$D$90:$F$224,3,TRUE) -> 39 | D43: 31.55 | E43: 11 | F43: =VLOOKUP(G43,'Intermediate values'!$D$90:$F$224,3,TRUE) -> 50 | G43: 61.23 | H43: 12 | I43: =VLOOKUP(J43,'Intermediate values'!$D$90:$F$224,3,TRUE) -> 62 | J43: =H14 -> 118.9 | K43: 1

Sheet Resonant Modes
B2: Audibility of Resonant modes
B3: The audibility of a particular eigenmode within the overall sound field can be estimated by calculating its effective reflectivity. The contribution (and therefore audibility) of a particular eigenmode can be calculated as a value between 0 and 1.
B4: An eigenmode with low "On Axis" reflectivity values and a high mode order will make a small contribution to the sound field and therefore have low audibility. Conversely, an eigenmode with high "On Axis" reflectivity and a low mode order will make a larger (possibly audible)
B5: contribution to the overall sound field. The first 200 eigenmodes are sorted into frequency order and their contribution is plotted below.
AB6: Order | AE6: Effective | AH6: Effective
AA7: L | AB7: W | AC7: H | AD7: Hz | AE7: Reflectivity | AG7: K | AH7: Reflectivity | AI7: Hz | AJ7: Diff
Z8: =AA8+AB8+AC8 -> 1 | AA8: 0 | AB8: 0 | AC8: 1 | AD8: =ROUND((sound_velocity/2)*SQRT(((AA8/room_length)^2)+((AB8/room_width)^2)+((AC8/room_height)^2)),1) -> 59.3 | AE8: =(1-x_alpha_bar)^AB8*(1-y_alpha_bar)^AA8*(1-z_alpha_bar)^AC8 -> 0.511 | AG8: 1 | AH8: =VLOOKUP(AI8,$AD$8:$AE$735,2,FALSE) -> 0.877 | AI8: =SMALL($AD$8:$AD$735,AG8) -> 31.5
Z9: 1 | AA9: 0 | AB9: 1 | AC9: 0 | AD9: =ROUND((sound_velocity/2)*SQRT(((AA9/room_length)^2)+((AB9/room_width)^2)+((AC9/room_height)^2)),1) -> 37.5 | AE9: 0.872 | AG9: 2 | AH9: =VLOOKUP(AI9,$AD$8:$AE$735,2,FALSE) -> 0.872 | AI9: 37.5 | AJ9: =AI9-AI8 -> 6.0
Z10: 1 | AA10: 1 | AB10: 0 | AC10: 0 | AD10: 31.5 | AE10: 0.877 | AG10: 3 | AH10: 0.764 | AI10: 49.0 | AJ10: 11.5
Z11: 2 | AA11: 0 | AB11: 0 | AC11: 2 | AD11: 118.6 | AE11: 0.261 | AG11: 4 | AH11: 0.511 | AI11: 59.3 | AJ11: 10.3
Z12: 2 | AA12: 0 | AB12: 1 | AC12: 1 | AD12: 70.2 | AE12: 0.445 | AG12: 5 | AH12: 0.768 | AI12: 63.1 | AJ12: 3.8
Z13: 2 | AA13: 0 | AB13: 2 | AC13: 0 | AD13: 75.1 | AE13: 0.761 | AG13: 6 | AH13: 0.448 | AI13: 67.2 | AJ13: 4.1
Z14: 2 | AA14: 1 | AB14: 0 | AC14: 1 | AD14: 67.2 | AE14: 0.448 | AG14: 7 | AH14: 0.445 | AI14: 70.2 | AJ14: 3.0
Z15: 2 | AA15: 1 | AB15: 1 | AC15: 0 | AD15: 49.0 | AE15: 0.764 | AG15: 8 | AH15: 0.670 | AI15: 73.4 | AJ15: 3.2
Z16: 2 | AA16: 2 | AB16: 0 | AC16: 0 | AD16: 63.1 | AE16: 0.768 | AG16: 9 | AH16: 0.761 | AI16: 75.1 | AJ16: 1.7
Z17: 3 | AA17: 0 | AB17: 0 | AC17: 3 | AD17: 177.9 | AE17: 0.133 | AG17: 10 | AH17: 0.390 | AI17: 77.0 | AJ17: 1.9
Z18: 3 | AA18: 0 | AB18: 1 | AC18: 2 | AD18: 124.4 | AE18: 0.228 | AG18: 11 | AH18: 0.667 | AI18: 81.4 | AJ18: 4.4
Z19: 3 | AA19: 0 | AB19: 2 | AC19: 1 | AD19: 95.7 | AE19: 0.389 | AG19: 12 | AH19: 0.392 | AI19: 86.6 | AJ19: 5.2
Z20: 3 | AA20: 0 | AB20: 3 | AC20: 0 | AD20: 112.6 | AE20: 0.663 | AG20: 13 | AH20: 0.342 | AI20: 94.4 | AJ20: 7.8
Z21: 3 | AA21: 1 | AB21: 0 | AC21: 2 | AD21: 122.7 | AE21: 0.229 | AG21: 14 | AH21: 0.673 | AI21: 94.6 | AJ21: 0.2
Z22: 3 | AA22: 1 | AB22: 1 | AC22: 1 | AD22: 77.0 | AE22: 0.390 | AG22: 15 | AH22: 0.389 | AI22: 95.7 | AJ22: 1.1
Z23: 3 | AA23: 1 | AB23: 2 | AC23: 0 | AD23: 81.4 | AE23: 0.667 | AG23: 16 | AH23: 0.584 | AI23: 98.1 | AJ23: 2.4
Z24: 3 | AA24: 2 | AB24: 0 | AC24: 1 | AD24: 86.6 | AE24: 0.392 | AG24: 17 | AH24: 0.341 | AI24: 100.7 | AJ24: 2.6
Z25: 3 | AA25: 2 | AB25: 1 | AC25: 0 | AD25: 73.4 | AE25: 0.670 | AG25: 18 | AH25: 0.587 | AI25: 101.8 | AJ25: 1.1
Z26: 3 | AA26: 3 | AB26: 0 | AC26: 0 | AD26: 94.6 | AE26: 0.673 | AG26: 19 | AH26: 0.344 | AI26: 111.7 | AJ26: 9.9
Z27: 4 | AA27: 0 | AB27: 0 | AC27: 4 | AD27: 237.2 | AE27: 0.068 | AG27: 20 | AH27: 0.663 | AI27: 112.6 | AJ27: 0.9
Z28: 4 | AA28: 0 | AB28: 1 | AC28: 3 | AD28: 181.8 | AE28: 0.116 | AG28: 21 | AH28: 0.298 | AI28: 114.6 | AJ28: 2.0
Z29: 4 | AA29: 0 | AB29: 2 | AC29: 2 | AD29: 140.4 | AE29: 0.198 | AG29: 22 | AH29: 0.581 | AI29: 116.9 | AJ29: 2.3
Z30: 4 | AA30: 0 | AB30: 3 | AC30: 1 | AD30: 127.3 | AE30: 0.339 | AG30: 23 | AH30: 0.300 | AI30: 117.8 | AJ30: 0.9
Z31: 4 | AA31: 0 | AB31: 4 | AC31: 0 | AD31: 150.1 | AE31: 0.578 | AG31: 24 | AH31: 0.261 | AI31: 118.6 | AJ31: 0.8
Z32: 4 | AA32: 1 | AB32: 0 | AC32: 3 | AD32: 180.7 | AE32: 0.117 | AG32: 25 | AH32: 0.512 | AI32: 120.8 | AJ32: 2.2
Z33: 4 | AA33: 1 | AB33: 1 | AC33: 2 | AD33: 128.4 | AE33: 0.199 | AG33: 26 | AH33: 0.229 | AI33: 122.7 | AJ33: 1.9
Z34: 4 | AA34: 1 | AB34: 2 | AC34: 1 | AD34: 100.7 | AE34: 0.341 | AG34: 27 | AH34: 0.228 | AI34: 124.4 | AJ34: 1.7
Z35: 4 | AA35: 1 | AB35: 3 | AC35: 0 | AD35: 116.9 | AE35: 0.581 | AG35: 28 | AH35: 0.590 | AI35: 126.2 | AJ35: 1.8
Z36: 4 | AA36: 2 | AB36: 0 | AC36: 2 | AD36: 134.4 | AE36: 0.200 | AG36: 29 | AH36: 0.339 | AI36: 127.3 | AJ36: 1.1
Z37: 4 | AA37: 2 | AB37: 1 | AC37: 1 | AD37: 94.4 | AE37: 0.342 | AG37: 30 | AH37: 0.199 | AI37: 128.4 | AJ37: 1.1
Z38: 4 | AA38: 2 | AB38: 2 | AC38: 0 | AD38: 98.1 | AE38: 0.584 | AG38: 31 | AH38: 0.510 | AI38: 129.1 | AJ38: 0.7
Z39: 4 | AA39: 3 | AB39: 0 | AC39: 1 | AD39: 111.7 | AE39: 0.344 | AG39: 32 | AH39: 0.297 | AI39: 131.1 | AJ39: 2.0
Z40: 4 | AA40: 3 | AB40: 1 | AC40: 0 | AD40: 101.8 | AE40: 0.587 | AG40: 33 | AH40: 0.515 | AI40: 131.7 | AJ40: 0.6
Z41: 4 | AA41: 4 | AB41: 0 | AC41: 0 | AD41: 126.2 | AE41: 0.590 | AG41: 34 | AH41: 0.200 | AI41: 134.4 | AJ41: 2.7
Z42: 5 | AA42: 0 | AB42: 0 | AC42: 5 | AD42: 296.5 | AE42: 0.035 | AG42: 35 | AH42: 0.262 | AI42: 134.6 | AJ42: 0.2
Z43: 5 | AA43: 0 | AB43: 1 | AC43: 4 | AD43: 240.2 | AE43: 0.059 | AG43: 36 | AH43: 0.301 | AI43: 139.4 | AJ43: 4.8
Z44: 5 | AA44: 0 | AB44: 2 | AC44: 3 | AD44: 193.1 | AE44: 0.101 | AG44: 37 | AH44: 0.175 | AI44: 139.5 | AJ44: 0.1
Z45: 5 | AA45: 0 | AB45: 3 | AC45: 2 | AD45: 163.6 | AE45: 0.173 | AG45: 38 | AH45: 0.198 | AI45: 140.4 | AJ45: 0.9
Z46: 5 | AA46: 0 | AB46: 4 | AC46: 1 | AD46: 161.4 | AE46: 0.295 | AG46: 39 | AH46: 0.260 | AI46: 142.1 | AJ46: 1.7
Z47: 5 | AA47: 0 | AB47: 5 | AC47: 0 | AD47: 187.7 | AE47: 0.504 | AG47: 40 | AH47: 0.174 | AI47: 143.9 | AJ47: 1.8
Z48: 5 | AA48: 1 | AB48: 0 | AC48: 4 | AD48: 239.3 | AE48: 0.060 | AG48: 41 | AH48: 0.263 | AI48: 144.4 | AJ48: 0.5
Z49: 5 | AA49: 1 | AB49: 1 | AC49: 3 | AD49: 184.6 | AE49: 0.102 | AG49: 42 | AH49: 0.449 | AI49: 146.8 | AJ49: 2.4
Z50: 5 | AA50: 1 | AB50: 2 | AC50: 2 | AD50: 143.9 | AE50: 0.174 | AG50: 43 | AH50: 0.447 | AI50: 147.1 | AJ50: 0.3
Z51: 5 | AA51: 1 | AB51: 3 | AC51: 1 | AD51: 131.1 | AE51: 0.297 | AG51: 44 | AH51: 0.578 | AI51: 150.1 | AJ51: 3.0
Z52: 5 | AA52: 1 | AB52: 4 | AC52: 0 | AD52: 153.4 | AE52: 0.507 | AG52: 45 | AH52: 0.176 | AI52: 151.7 | AJ52: 1.6
Z53: 5 | AA53: 2 | AB53: 0 | AC53: 3 | AD53: 188.8 | AE53: 0.102 | AG53: 46 | AH53: 0.507 | AI53: 153.4 | AJ53: 1.7
Z54: 5 | AA54: 2 | AB54: 1 | AC54: 2 | AD54: 139.5 | AE54: 0.175 | AG54: 47 | AH54: 0.152 | AI54: 153.9 | AJ54: 0.5
Z55: 5 | AA55: 2 | AB55: 2 | AC55: 1 | AD55: 114.6 | AE55: 0.298 | AG55: 48 | AH55: 0.153 | AI55: 156.3 | AJ55: 2.4
Z56: 5 | AA56: 2 | AB56: 3 | AC56: 0 | AD56: 129.1 | AE56: 0.510 | AG56: 49 | AH56: 0.517 | AI56: 157.7 | AJ56: 1.4
Z57: 5 | AA57: 3 | AB57: 0 | AC57: 2 | AD57: 151.7 | AE57: 0.176 | AG57: 50 | AH57: 0.229 | AI57: 158.4 | AJ57: 0.7
Z58: 5 | AA58: 3 | AB58: 1 | AC58: 1 | AD58: 117.8 | AE58: 0.300 | AG58: 51 | AH58: 0.228 | AI58: 158.6 | AJ58: 0.2
Z59: 5 | AA59: 3 | AB59: 2 | AC59: 0 | AD59: 120.8 | AE59: 0.512 | AG59: 52 | AH59: 0.295 | AI59: 161.4 | AJ59: 2.8
Z60: 5 | AA60: 4 | AB60: 0 | AC60: 1 | AD60: 139.4 | AE60: 0.301 | AG60: 53 | AH60: 0.451 | AI60: 162.1 | AJ60: 0.7
Z61: 5 | AA61: 4 | AB61: 1 | AC61: 0 | AD61: 131.7 | AE61: 0.515 | AG61: 54 | AH61: 0.444 | AI61: 162.9 | AJ61: 0.8
Z62: 5 | AA62: 5 | AB62: 0 | AC62: 0 | AD62: 157.7 | AE62: 0.517 | AG62: 55 | AH62: 0.173 | AI62: 163.6 | AJ62: 0.7
Z63: 6 | AA63: 0 | AB63: 0 | AC63: 6 | AD63: 355.8 | AE63: 0.018 | AG63: 56 | AH63: 0.259 | AI63: 164.5 | AJ63: 0.9
Z64: 6 | AA64: 0 | AB64: 1 | AC64: 5 | AD64: 298.9 | AE64: 0.030 | AG64: 57 | AH64: 0.152 | AI64: 166.6 | AJ64: 2.1
Z65: 6 | AA65: 0 | AB65: 2 | AC65: 4 | AD65: 248.8 | AE65: 0.052 | AG65: 58 | AH65: 0.264 | AI65: 168.5 | AJ65: 1.9
Z66: 6 | AA66: 0 | AB66: 3 | AC66: 3 | AD66: 210.6 | AE66: 0.088 | AG66: 59 | AH66: 0.391 | AI66: 169.1 | AJ66: 0.6
Z67: 6 | AA67: 0 | AB67: 4 | AC67: 2 | AD67: 191.3 | AE67: 0.151 | AG67: 60 | AH67: 0.134 | AI67: 169.3 | AJ67: 0.2
Z68: 6 | AA68: 0 | AB68: 5 | AC68: 1 | AD68: 196.8 | AE68: 0.258 | AG68: 61 | AH68: 0.230 | AI68: 172.6 | AJ68: 3.3
Z69: 6 | AA69: 0 | AB69: 6 | AC69: 0 | AD69: 225.2 | AE69: 0.440 | AG69: 62 | AH69: 0.154 | AI69: 173.2 | AJ69: 0.6
Z70: 6 | AA70: 1 | AB70: 0 | AC70: 5 | AD70: 298.2 | AE70: 0.030 | AG70: 63 | AH70: 0.227 | AI70: 173.3 | AJ70: 0.1
Z71: 6 | AA71: 1 | AB71: 1 | AC71: 4 | AD71: 242.2 | AE71: 0.052 | AG71: 64 | AH71: 0.393 | AI71: 174.7 | AJ71: 1.4
Z72: =AA72+AB72+AC72 -> 6 | AA72: 1 | AB72: 2 | AC72: 3 | AD72: =ROUND((sound_velocity/2)*SQRT(((AA72/room_length)^2)+((AB72/room_width)^2)+((AC72/room_height)^2)),1) -> 195.7 | AE72: =(1-x_alpha_bar)^AB72*(1-y_alpha_bar)^AA72*(1-z_alpha_bar)^AC72 -> 0.089 | AG72: 65 | AH72: 0.133 | AI72: =SMALL($AD$8:$AD$735,AG72) -> 175.3 | AJ72: 0.6
Z73: 6 | AA73: 1 | AB73: 3 | AC73: 2 | AD73: 166.6 | AE73: 0.152 | AG73: 66 | AH73: =VLOOKUP(AI73,$AD$8:$AE$735,2,FALSE) -> 0.134 | AI73: 177.2 | AJ73: =AI73-AI72 -> 1.9
Z74: 6 | AA74: 1 | AB74: 4 | AC74: 1 | AD74: 164.5 | AE74: 0.259 | AG74: 67 | AH74: 0.389 | AI74: 177.5 | AJ74: 0.3
Z75: 6 | AA75: 1 | AB75: 5 | AC75: 0 | AD75: 190.3 | AE75: 0.442 | AG75: 68 | AH75: 0.133 | AI75: 177.9 | AJ75: 0.4
Z76: 6 | AA76: 2 | AB76: 0 | AC76: 4 | AD76: 245.5 | AE76: 0.052 | AG76: 69 | AH76: 0.200 | AI76: 179.2 | AJ76: 1.3
Z77: 6 | AA77: 2 | AB77: 1 | AC77: 3 | AD77: 192.5 | AE77: 0.089 | AG77: 70 | AH77: 0.117 | AI77: 180.7 | AJ77: 1.5
Z78: 6 | AA78: 2 | AB78: 2 | AC78: 2 | AD78: 153.9 | AE78: 0.152 | AG78: 71 | AH78: 0.116 | AI78: 181.8 | AJ78: 1.1
Z79: 6 | AA79: 2 | AB79: 3 | AC79: 1 | AD79: 142.1 | AE79: 0.260 | AG79: 72 | AH79: 0.201 | AI79: 184.5 | AJ79: 2.7
Z80: 6 | AA80: 2 | AB80: 4 | AC80: 0 | AD80: 162.9 | AE80: 0.444 | AG80: 73 | AH80: 0.102 | AI80: 184.6 | AJ80: 0.1
Z81: 6 | AA81: 3 | AB81: 0 | AC81: 3 | AD81: 201.5 | AE81: 0.090 | AG81: 74 | AH81: 0.199 | AI81: 187.1 | AJ81: 2.5
Z82: 6 | AA82: 3 | AB82: 1 | AC82: 2 | AD82: 156.3 | AE82: 0.153 | AG82: 75 | AH82: 0.504 | AI82: 187.7 | AJ82: 0.6
Z83: 6 | AA83: 3 | AB83: 2 | AC83: 1 | AD83: 134.6 | AE83: 0.262 | AG83: 76 | AH83: 0.102 | AI83: 188.8 | AJ83: 1.1
Z84: 6 | AA84: 3 | AB84: 3 | AC84: 0 | AD84: 147.1 | AE84: 0.447 | AG84: 77 | AH84: 0.102 | AI84: 188.8 | AJ84: 0.0
Z85: 6 | AA85: 4 | AB85: 0 | AC85: 2 | AD85: 173.2 | AE85: 0.154 | AG85: 78 | AH85: 0.117 | AI85: 189.0 | AJ85: 0.2
Z86: 6 | AA86: 4 | AB86: 1 | AC86: 1 | AD86: 144.4 | AE86: 0.263 | AG86: 79 | AH86: 0.453 | AI86: 189.3 | AJ86: 0.3
Z87: 6 | AA87: 4 | AB87: 2 | AC87: 0 | AD87: 146.8 | AE87: 0.449 | AG87: 80 | AH87: 0.442 | AI87: 190.3 | AJ87: 1.0
Z88: 6 | AA88: 5 | AB88: 0 | AC88: 1 | AD88: 168.5 | AE88: 0.264 | AG88: 81 | AH88: 0.151 | AI88: 191.3 | AJ88: 1.0
Z89: 6 | AA89: 5 | AB89: 1 | AC89: 0 | AD89: 162.1 | AE89: 0.451 | AG89: 82 | AH89: 0.089 | AI89: 192.5 | AJ89: 1.2
Z90: 6 | AA90: 6 | AB90: 0 | AC90: 0 | AD90: 189.3 | AE90: 0.453 | AG90: 83 | AH90: 0.395 | AI90: 193.0 | AJ90: 0.5
Z91: 7 | AA91: 0 | AB91: 0 | AC91: 7 | AD91: 415.2 | AE91: 0.009 | AG91: 84 | AH91: 0.101 | AI91: 193.1 | AJ91: 0.1
Z92: 7 | AA92: 0 | AB92: 1 | AC92: 6 | AD92: 357.8 | AE92: 0.015 | AG92: 85 | AH92: 0.343 | AI92: 193.8 | AJ92: 0.7
Z93: 7 | AA93: 0 | AB93: 2 | AC93: 5 | AD93: 305.9 | AE93: 0.026 | AG93: 86 | AH93: 0.132 | AI93: 193.9 | AJ93: 0.1
Z94: 7 | AA94: 0 | AB94: 3 | AC94: 4 | AD94: 262.6 | AE94: 0.045 | AG94: 87 | AH94: 0.089 | AI94: 195.7 | AJ94: 1.8
Z95: 7 | AA95: 0 | AB95: 4 | AC95: 3 | AD95: 232.8 | AE95: 0.077 | AG95: 88 | AH95: 0.341 | AI95: 196.1 | AJ95: 0.4
Z96: 7 | AA96: 0 | AB96: 5 | AC96: 2 | AD96: 222.0 | AE96: 0.132 | AG96: 89 | AH96: 0.258 | AI96: 196.8 | AJ96: 0.7
Z97: 7 | AA97: 0 | AB97: 6 | AC97: 1 | AD97: 232.9 | AE97: 0.225 | AG97: 90 | AH97: 0.135 | AI97: 197.4 | AJ97: 0.6
Z98: 7 | AA98: 0 | AB98: 7 | AC98: 0 | AD98: 262.8 | AE98: 0.384 | AG98: 91 | AH98: 0.388 | AI98: 198.0 | AJ98: 0.6
Z99: 7 | AA99: 1 | AB99: 0 | AC99: 6 | AD99: 357.2 | AE99: 0.016 | AG99: 92 | AH99: 0.232 | AI99: 198.4 | AJ99: 0.4
Z100: 7 | AA100: 1 | AB100: 1 | AC100: 5 | AD100: 300.6 | AE100: 0.027 | AG100: 93 | AH100: 0.226 | AI100: 199.3 | AJ100: 0.9
Z101: 7 | AA101: 1 | AB101: 2 | AC101: 4 | AD101: 250.8 | AE101: 0.045 | AG101: 94 | AH101: 0.118 | AI101: 200.9 | AJ101: 1.6
Z102: 7 | AA102: 1 | AB102: 3 | AC102: 3 | AD102: 212.9 | AE102: 0.077 | AG102: 95 | AH102: 0.090 | AI102: 201.5 | AJ102: 0.6
Z103: 7 | AA103: 1 | AB103: 4 | AC103: 2 | AD103: 193.9 | AE103: 0.132 | AG103: 96 | AH103: 0.090 | AI103: 201.5 | AJ103: 0.0
Z104: 7 | AA104: 1 | AB104: 5 | AC104: 1 | AD104: 199.3 | AE104: 0.226 | AG104: 97 | AH104: 0.202 | AI104: 201.9 | AJ104: 0.4
Z105: 7 | AA105: 1 | AB105: 6 | AC105: 0 | AD105: 227.4 | AE105: 0.386 | AG105: 98 | AH105: 0.175 | AI105: 202.7 | AJ105: 0.8
Z106: 7 | AA106: 2 | AB106: 0 | AC106: 5 | AD106: 303.2 | AE106: 0.027 | AG106: 99 | AH106: 0.078 | AI106: 203.2 | AJ106: 0.5
Z107: 7 | AA107: 2 | AB107: 1 | AC107: 4 | AD107: 248.3 | AE107: 0.046 | AG107: 100 | AH107: 0.345 | AI107: 203.6 | AJ107: 0.4
Z108: 7 | AA108: 2 | AB108: 2 | AC108: 3 | AD108: 203.2 | AE108: 0.078 | AG108: 101 | AH108: 0.174 | AI108: 204.9 | AJ108: 1.3
Z109: 7 | AA109: 2 | AB109: 3 | AC109: 2 | AD109: 175.3 | AE109: 0.133 | AG109: 102 | AH109: 0.078 | AI109: 205.0 | AJ109: 0.1
Z110: 7 | AA110: 2 | AB110: 4 | AC110: 1 | AD110: 173.3 | AE110: 0.227 | AG110: 103 | AH110: 0.102 | AI110: 206.6 | AJ110: 1.6
Z111: 7 | AA111: 2 | AB111: 5 | AC111: 0 | AD111: 198.0 | AE111: 0.388 | AG111: 104 | AH111: 0.198 | AI111: 206.7 | AJ111: 0.1
Z112: 7 | AA112: 3 | AB112: 0 | AC112: 4 | AD112: 255.4 | AE112: 0.046 | AG112: 105 | AH112: 0.340 | AI112: 210.2 | AJ112: 3.5
Z113: 7 | AA113: 3 | AB113: 1 | AC113: 3 | AD113: 205.0 | AE113: 0.078 | AG113: 106 | AH113: 0.088 | AI113: 210.6 | AJ113: 0.4
Z114: 7 | AA114: 3 | AB114: 2 | AC114: 2 | AD114: 169.3 | AE114: 0.134 | AG114: 107 | AH114: 0.103 | AI114: 211.2 | AJ114: 0.6
Z115: 7 | AA115: 3 | AB115: 3 | AC115: 1 | AD115: 158.6 | AE115: 0.228 | AG115: 108 | AH115: 0.176 | AI115: 212.1 | AJ115: 0.9
Z116: 7 | AA116: 3 | AB116: 4 | AC116: 0 | AD116: 177.5 | AE116: 0.389 | AG116: 109 | AH116: 0.077 | AI116: 212.9 | AJ116: 0.8
Z117: 7 | AA117: 4 | AB117: 0 | AC117: 3 | AD117: 218.1 | AE117: 0.079 | AG117: 110 | AH117: 0.102 | AI117: 213.5 | AJ117: 0.6
Z118: 7 | AA118: 4 | AB118: 1 | AC118: 2 | AD118: 177.2 | AE118: 0.134 | AG118: 111 | AH118: 0.068 | AI118: 215.1 | AJ118: 1.6
Z119: 7 | AA119: 4 | AB119: 2 | AC119: 1 | AD119: 158.4 | AE119: 0.229 | AG119: 112 | AH119: 0.299 | AI119: 217.8 | AJ119: 2.7
Z120: 7 | AA120: 4 | AB120: 3 | AC120: 0 | AD120: 169.1 | AE120: 0.391 | AG120: 113 | AH120: 0.079 | AI120: 218.1 | AJ120: 0.3
Z121: 7 | AA121: 5 | AB121: 0 | AC121: 2 | AD121: 197.4 | AE121: 0.135 | AG121: 114 | AH121: 0.174 | AI121: 218.4 | AJ121: 0.3
Z122: 7 | AA122: 5 | AB122: 1 | AC122: 1 | AD122: 172.6 | AE122: 0.230 | AG122: 115 | AH122: 0.068 | AI122: 219.8 | AJ122: 1.4
Z123: 7 | AA123: 5 | AB123: 2 | AC123: 0 | AD123: 174.7 | AE123: 0.393 | AG123: 116 | AH123: 0.301 | AI123: 220.2 | AJ123: 0.4
Z124: 7 | AA124: 6 | AB124: 0 | AC124: 1 | AD124: 198.4 | AE124: 0.232 | AG124: 117 | AH124: 0.397 | AI124: 220.8 | AJ124: 0.6
Z125: 7 | AA125: 6 | AB125: 1 | AC125: 0 | AD125: 193.0 | AE125: 0.395 | AG125: 118 | AH125: 0.069 | AI125: 221.3 | AJ125: 0.5
Z126: 7 | AA126: 7 | AB126: 0 | AC126: 0 | AD126: 220.8 | AE126: 0.397 | AG126: 119 | AH126: 0.132 | AI126: 222.0 | AJ126: 0.7
Z127: 8 | AA127: 0 | AB127: 0 | AC127: 8 | AD127: 474.5 | AE127: 0.005 | AG127: 120 | AH127: 0.118 | AI127: 223.4 | AJ127: 1.4
Z128: 8 | AA128: 0 | AB128: 1 | AC128: 7 | AD128: 416.9 | AE128: 0.008 | AG128: 121 | AH128: 0.347 | AI128: 224.0 | AJ128: 0.6
Z129: 8 | AA129: 0 | AB129: 2 | AC129: 6 | AD129: 363.7 | AE129: 0.014 | AG129: 122 | AH129: 0.115 | AI129: 224.3 | AJ129: 0.3
Z130: 8 | AA130: 0 | AB130: 3 | AC130: 5 | AD130: 317.2 | AE130: 0.023 | AG130: 123 | AH130: 0.440 | AI130: 225.2 | AJ130: 0.9
Z131: 8 | AA131: 0 | AB131: 4 | AC131: 4 | AD131: 280.8 | AE131: 0.039 | AG131: 124 | AH131: 0.153 | AI131: 225.7 | AJ131: 0.5
Z132: 8 | AA132: 0 | AB132: 5 | AC132: 3 | AD132: 258.6 | AE132: 0.067 | AG132: 125 | AH132: 0.298 | AI132: 226.2 | AJ132: 0.5
Z133: 8 | AA133: 0 | AB133: 6 | AC133: 2 | AD133: 254.5 | AE133: 0.115 | AG133: 126 | AH133: 0.103 | AI133: 226.5 | AJ133: 0.3
Z134: 8 | AA134: 0 | AB134: 7 | AC134: 1 | AD134: 269.4 | AE134: 0.196 | AG134: 127 | AH134: 0.090 | AI134: 227.2 | AJ134: 0.7
Z135: 8 | AA135: 0 | AB135: 8 | AC135: 0 | AD135: 300.3 | AE135: 0.335 | AG135: 128 | AH135: 0.386 | AI135: 227.4 | AJ135: 0.2
Z136: =AA136+AB136+AC136 -> 8 | AA136: 1 | AB136: 0 | AC136: 7 | AD136: =ROUND((sound_velocity/2)*SQRT(((AA136/room_length)^2)+((AB136/room_width)^2)+((AC136/room_height)^2)),1) -> 416.4 | AE136: =(1-x_alpha_bar)^AB136*(1-y_alpha_bar)^AA136*(1-z_alpha_bar)^AC136 -> 0.008 | AG136: 129 | AH136: 0.154 | AI136: =SMALL($AD$8:$AD$735,AG136) -> 228.1 | AJ136: 0.7
Z137: 8 | AA137: 1 | AB137: 1 | AC137: 6 | AD137: 359.2 | AE137: 0.014 | AG137: 130 | AH137: =VLOOKUP(AI137,$AD$8:$AE$735,2,FALSE) -> 0.203 | AI137: 228.7 | AJ137: =AI137-AI136 -> 0.6
Z138: 8 | AA138: 1 | AB138: 2 | AC138: 5 | AD138: 307.5 | AE138: 0.023 | AG138: 131 | AH138: 0.089 | AI138: 229.2 | AJ138: 0.5
Z139: 8 | AA139: 1 | AB139: 3 | AC139: 4 | AD139: 264.5 | AE139: 0.040 | AG139: 132 | AH139: 0.060 | AI139: 230.7 | AJ139: 1.5
Z140: 8 | AA140: 1 | AB140: 4 | AC140: 3 | AD140: 234.9 | AE140: 0.068 | AG140: 133 | AH140: 0.101 | AI140: 230.8 | AJ140: 0.1
Z141: 8 | AA141: 1 | AB141: 5 | AC141: 2 | AD141: 224.3 | AE141: 0.115 | AG141: 134 | AH141: 0.060 | AI141: 230.9 | AJ141: 0.1
Z142: 8 | AA142: 1 | AB142: 6 | AC142: 1 | AD142: 235.0 | AE142: 0.197 | AG142: 135 | AH142: 0.177 | AI142: 231.7 | AJ142: 0.8
Z143: 8 | AA143: 1 | AB143: 7 | AC143: 0 | AD143: 264.6 | AE143: 0.336 | AG143: 136 | AH143: 0.077 | AI143: 232.8 | AJ143: 1.1
Z144: 8 | AA144: 2 | AB144: 0 | AC144: 6 | AD144: 361.4 | AE144: 0.014 | AG144: 137 | AH144: 0.225 | AI144: 232.9 | AJ144: 0.1
Z145: 8 | AA145: 2 | AB145: 1 | AC145: 5 | AD145: 305.5 | AE145: 0.023 | AG145: 138 | AH145: 0.302 | AI145: 233.2 | AJ145: 0.3
Z146: 8 | AA146: 2 | AB146: 2 | AC146: 4 | AD146: 256.7 | AE146: 0.040 | AG146: 139 | AH146: 0.152 | AI146: 233.8 | AJ146: 0.6
Z147: 8 | AA147: 2 | AB147: 3 | AC147: 3 | AD147: 219.8 | AE147: 0.068 | AG147: 140 | AH147: 0.338 | AI147: 233.9 | AJ147: 0.1
Z148: 8 | AA148: 2 | AB148: 4 | AC148: 2 | AD148: 201.5 | AE148: 0.116 | AG148: 141 | AH148: 0.068 | AI148: 234.9 | AJ148: 1.0
Z149: 8 | AA149: 2 | AB149: 5 | AC149: 1 | AD149: 206.7 | AE149: 0.198 | AG149: 142 | AH149: 0.197 | AI149: 235.0 | AJ149: 0.1
Z150: 8 | AA150: 2 | AB150: 6 | AC150: 0 | AD150: 233.9 | AE150: 0.338 | AG150: 143 | AH150: 0.090 | AI150: 235.7 | AJ150: 0.7
Z151: 8 | AA151: 3 | AB151: 0 | AC151: 5 | AD151: 311.3 | AE151: 0.023 | AG151: 144 | AH151: 0.068 | AI151: 237.2 | AJ151: 1.5
Z152: 8 | AA152: 3 | AB152: 1 | AC152: 4 | AD152: 258.2 | AE152: 0.040 | AG152: 145 | AH152: 0.069 | AI152: 237.8 | AJ152: 0.6
Z153: 8 | AA153: 3 | AB153: 2 | AC153: 3 | AD153: 215.1 | AE153: 0.068 | AG153: 146 | AH153: 0.060 | AI153: 239.3 | AJ153: 1.5
Z154: 8 | AA154: 3 | AB154: 3 | AC154: 2 | AD154: 189.0 | AE154: 0.117 | AG154: 147 | AH154: 0.059 | AI154: 240.2 | AJ154: 0.9
Z155: 8 | AA155: 3 | AB155: 4 | AC155: 1 | AD155: 187.1 | AE155: 0.199 | AG155: 148 | AH155: 0.060 | AI155: 240.7 | AJ155: 0.5
Z156: 8 | AA156: 3 | AB156: 5 | AC156: 0 | AD156: 210.2 | AE156: 0.340 | AG156: 149 | AH156: 0.060 | AI156: 240.7 | AJ156: 0.0
Z157: 8 | AA157: 4 | AB157: 0 | AC157: 4 | AD157: 268.7 | AE157: 0.040 | AG157: 150 | AH157: 0.059 | AI157: 241.2 | AJ157: 0.5
Z158: 8 | AA158: 4 | AB158: 1 | AC158: 3 | AD158: 221.3 | AE158: 0.069 | AG158: 151 | AH158: 0.173 | AI158: 241.3 | AJ158: 0.1
Z159: 8 | AA159: 4 | AB159: 2 | AC159: 2 | AD159: 188.8 | AE159: 0.117 | AG159: 152 | AH159: 0.089 | AI159: 241.4 | AJ159: 0.1
Z160: 8 | AA160: 4 | AB160: 3 | AC160: 1 | AD160: 179.2 | AE160: 0.200 | AG160: 153 | AH160: 0.262 | AI160: 241.6 | AJ160: 0.2
Z161: 8 | AA161: 4 | AB161: 4 | AC161: 0 | AD161: 196.1 | AE161: 0.341 | AG161: 154 | AH161: 0.052 | AI161: 242.2 | AJ161: 0.6
Z162: 8 | AA162: 5 | AB162: 0 | AC162: 3 | AD162: 237.8 | AE162: 0.069 | AG162: 155 | AH162: 0.296 | AI162: 244.3 | AJ162: 2.1
Z163: 8 | AA163: 5 | AB163: 1 | AC163: 2 | AD163: 200.9 | AE163: 0.118 | AG163: 156 | AH163: 0.261 | AI163: 245.2 | AJ163: 0.9
Z164: 8 | AA164: 5 | AB164: 2 | AC164: 1 | AD164: 184.5 | AE164: 0.201 | AG164: 157 | AH164: 0.052 | AI164: 245.5 | AJ164: 0.3
Z165: 8 | AA165: 5 | AB165: 3 | AC165: 0 | AD165: 193.8 | AE165: 0.343 | AG165: 158 | AH165: 0.052 | AI165: 245.5 | AJ165: 0.0
Z166: 8 | AA166: 6 | AB166: 0 | AC166: 2 | AD166: 223.4 | AE166: 0.118 | AG166: 159 | AH166: 0.264 | AI166: 247.9 | AJ166: 2.4
Z167: 8 | AA167: 6 | AB167: 1 | AC167: 1 | AD167: 201.9 | AE167: 0.202 | AG167: 160 | AH167: 0.078 | AI167: 248.0 | AJ167: 0.1
Z168: 8 | AA168: 6 | AB168: 2 | AC168: 0 | AD168: 203.6 | AE168: 0.345 | AG168: 161 | AH168: 0.046 | AI168: 248.3 | AJ168: 0.3
Z169: 8 | AA169: 7 | AB169: 0 | AC169: 1 | AD169: 228.7 | AE169: 0.203 | AG169: 162 | AH169: 0.052 | AI169: 248.8 | AJ169: 0.5
Z170: 8 | AA170: 7 | AB170: 1 | AC170: 0 | AD170: 224.0 | AE170: 0.347 | AG170: 163 | AH170: 0.052 | AI170: 248.8 | AJ170: 0.0
Z171: 8 | AA171: 8 | AB171: 0 | AC171: 0 | AD171: 252.4 | AE171: 0.348 | AG171: 164 | AH171: 0.052 | AI171: 249.3 | AJ171: 0.5
Z172: 9 | AA172: 0 | AB172: 1 | AC172: 8 | AD172: 475.9 | AE172: 0.004 | AG172: 165 | AH172: 0.078 | AI172: 250.2 | AJ172: 0.9
Z173: 9 | AA173: 0 | AB173: 2 | AC173: 7 | AD173: 421.9 | AE173: 0.007 | AG173: 166 | AH173: 0.104 | AI173: 250.7 | AJ173: 0.5
Z174: 9 | AA174: 0 | AB174: 3 | AC174: 6 | AD174: 373.2 | AE174: 0.012 | AG174: 167 | AH174: 0.045 | AI174: 250.8 | AJ174: 0.1
Z175: 9 | AA175: 0 | AB175: 4 | AC175: 5 | AD175: 332.4 | AE175: 0.020 | AG175: 168 | AH175: 0.052 | AI175: 251.3 | AJ175: 0.5
Z176: 9 | AA176: 0 | AB176: 5 | AC176: 4 | AD176: 302.5 | AE176: 0.034 | AG176: 169 | AH176: 0.151 | AI176: 251.4 | AJ176: 0.1
Z177: 9 | AA177: 0 | AB177: 6 | AC177: 3 | AD177: 287.0 | AE177: 0.059 | AG177: 170 | AH177: 0.133 | AI177: 252.2 | AJ177: 0.8
Z178: 9 | AA178: 0 | AB178: 7 | AC178: 2 | AD178: 288.3 | AE178: 0.100 | AG178: 171 | AH178: 0.348 | AI178: 252.4 | AJ178: 0.2
Z179: 9 | AA179: 0 | AB179: 8 | AC179: 1 | AD179: 306.1 | AE179: 0.171 | AG179: 172 | AH179: 0.090 | AI179: 253.5 | AJ179: 1.1
Z180: 9 | AA180: 1 | AB180: 0 | AC180: 8 | AD180: 475.5 | AE180: 0.004 | AG180: 173 | AH180: 0.115 | AI180: 254.5 | AJ180: 1.0
Z181: 9 | AA181: 1 | AB181: 1 | AC181: 7 | AD181: 418.0 | AE181: 0.007 | AG181: 174 | AH181: 0.135 | AI181: 254.9 | AJ181: 0.4
Z182: 9 | AA182: 1 | AB182: 2 | AC182: 6 | AD182: 365.0 | AE182: 0.012 | AG182: 175 | AH182: 0.304 | AI182: 255.2 | AJ182: 0.3
Z183: 9 | AA183: 1 | AB183: 3 | AC183: 5 | AD183: 318.8 | AE183: 0.020 | AG183: 176 | AH183: 0.046 | AI183: 255.4 | AJ183: 0.2
Z184: 9 | AA184: 1 | AB184: 4 | AC184: 4 | AD184: 282.5 | AE184: 0.035 | AG184: 177 | AH184: 0.046 | AI184: 255.4 | AJ184: 0.0
Z185: 9 | AA185: 1 | AB185: 5 | AC185: 3 | AD185: 260.5 | AE185: 0.059 | AG185: 178 | AH185: 0.101 | AI185: 256.5 | AJ185: 1.1
Z186: 9 | AA186: 1 | AB186: 6 | AC186: 2 | AD186: 256.5 | AE186: 0.101 | AG186: 179 | AH186: 0.040 | AI186: 256.7 | AJ186: 0.2
Z187: 9 | AA187: 1 | AB187: 7 | AC187: 1 | AD187: 271.2 | AE187: 0.172 | AG187: 180 | AH187: 0.040 | AI187: 258.2 | AJ187: 1.5
Z188: 9 | AA188: 1 | AB188: 8 | AC188: 0 | AD188: 301.9 | AE188: 0.293 | AG188: 181 | AH188: 0.040 | AI188: 258.2 | AJ188: 0.0
Z189: 9 | AA189: 2 | AB189: 0 | AC189: 7 | AD189: 419.9 | AE189: 0.007 | AG189: 182 | AH189: 0.067 | AI189: 258.6 | AJ189: 0.4
Z190: 9 | AA190: 2 | AB190: 1 | AC190: 6 | AD190: 363.3 | AE190: 0.012 | AG190: 183 | AH190: 0.178 | AI190: 259.3 | AJ190: 0.7
Z191: 9 | AA191: 2 | AB191: 2 | AC191: 5 | AD191: 312.3 | AE191: 0.020 | AG191: 184 | AH191: 0.060 | AI191: 259.8 | AJ191: 0.5
Z192: 9 | AA192: 2 | AB192: 3 | AC192: 4 | AD192: 270.1 | AE192: 0.035 | AG192: 185 | AH192: 0.059 | AI192: 260.5 | AJ192: 0.7
Z193: 9 | AA193: 2 | AB193: 4 | AC193: 3 | AD193: 241.2 | AE193: 0.059 | AG193: 186 | AH193: 0.079 | AI193: 261.7 | AJ193: 1.2
Z194: 9 | AA194: 2 | AB194: 5 | AC194: 2 | AD194: 230.8 | AE194: 0.101 | AG194: 187 | AH194: 0.155 | AI194: 262.0 | AJ194: 0.3
Z195: 9 | AA195: 2 | AB195: 6 | AC195: 1 | AD195: 241.3 | AE195: 0.173 | AG195: 188 | AH195: 0.088 | AI195: 262.3 | AJ195: 0.3
Z196: 9 | AA196: 2 | AB196: 7 | AC196: 0 | AD196: 270.2 | AE196: 0.295 | AG196: 189 | AH196: 0.053 | AI196: 262.5 | AJ196: 0.2
Z197: 9 | AA197: 3 | AB197: 0 | AC197: 6 | AD197: 368.2 | AE197: 0.012 | AG197: 190 | AH197: 0.045 | AI197: 262.6 | AJ197: 0.1
Z198: 9 | AA198: 3 | AB198: 1 | AC198: 5 | AD198: 313.5 | AE198: 0.020 | AG198: 191 | AH198: 0.384 | AI198: 262.8 | AJ198: 0.2
Z199: 9 | AA199: 3 | AB199: 2 | AC199: 4 | AD199: 266.2 | AE199: 0.035 | AG199: 192 | AH199: 0.046 | AI199: 263.1 | AJ199: 0.3
Z200: =AA200+AB200+AC200 -> 9 | AA200: 3 | AB200: 3 | AC200: 3 | AD200: =ROUND((sound_velocity/2)*SQRT(((AA200/room_length)^2)+((AB200/room_width)^2)+((AC200/room_height)^2)),1) -> 230.9 | AE200: =(1-x_alpha_bar)^AB200*(1-y_alpha_bar)^AA200*(1-z_alpha_bar)^AC200 -> 0.060 | AG200: 193 | AH200: 0.265 | AI200: =SMALL($AD$8:$AD$735,AG200) -> 263.3 | AJ200: 0.2
Z201: 9 | AA201: 3 | AB201: 4 | AC201: 2 | AD201: 213.5 | AE201: 0.102 | AG201: 194 | AH201: =VLOOKUP(AI201,$AD$8:$AE$735,2,FALSE) -> 0.040 | AI201: 264.5 | AJ201: =AI201-AI200 -> 1.2
... 534 more rows

Sheet RT60
B2: RT60 using various formulae
B4: Formula | C4: 125Hz | D4: 250Hz | E4: 500Hz | F4: 1KHz | G4: 2KHz | H4: 4KHz
B5: Sabine | C5: =(factor*room_volume)/sigma_sabins_125 -> 0.73 | D5: =(factor*room_volume)/sigma_sabins_250 -> 0.74 | E5: =(factor*room_volume)/sigma_sabins_500 -> 0.37 | F5: =(factor*room_volume)/sigma_sabins_1k -> 0.29 | G5: =(factor*room_volume)/sigma_sabins_2k -> 0.26 | H5: =(factor*room_volume)/sigma_sabins_4k -> 0.27
B6: Eyring | C6: =(-factor*room_volume)/(total_area*LN(1-alpha_bar_125)) -> 0.68 | D6: =(-factor*room_volume)/(total_area*LN(1-alpha_bar_250)) -> 0.68 | E6: =(-factor*room_volume)/(total_area*LN(1-alpha_bar_500)) -> 0.31 | F6: =(-factor*room_volume)/(total_area*LN(1-alpha_bar_1k)) -> 0.23 | G6: =(-factor*room_volume)/(total_area*LN(1-alpha_bar_2k)) -> 0.20 | H6: =(-factor*room_volume)/(total_area*LN(1-alpha_bar_4k)) -> 0.21
B7: Fitzroy 1 | C7: =(factor*room_volume)/(total_area^2)*((-x_area/LN(1-x_alpha_bar_125))+(-y_area/LN(1-y_alpha_bar_125))+(-z_area/LN(1-z_alpha_bar_125))) -> 0.93 | D7: =(factor*room_volume)/(total_area^2)*((-x_area/LN(1-x_alpha_bar_250))+(-y_area/LN(1-y_alpha_bar_250))+(-z_area/LN(1-z_alpha_bar_250))) -> 0.90 | E7: =(factor*room_volume)/(total_area^2)*((-x_area/LN(1-x_alpha_bar_500))+(-y_area/LN(1-y_alpha_bar_500))+(-z_area/LN(1-z_alpha_bar_500))) -> 0.59 | F7: =(factor*room_volume)/(total_area^2)*((-x_area/LN(1-x_alpha_bar_1k))+(-y_area/LN(1-y_alpha_bar_1k))+(-z_area/LN(1-z_alpha_bar_1k))) -> 0.87 | G7: =(factor*room_volume)/(total_area^2)*((-x_area/LN(1-x_alpha_bar_2k))+(-y_area/LN(1-y_alpha_bar_2k))+(-z_area/LN(1-z_alpha_bar_2k))) -> 0.68 | H7: =(factor*room_volume)/(total_area^2)*((-x_area/LN(1-x_alpha_bar_4k))+(-y_area/LN(1-y_alpha_bar_4k))+(-z_area/LN(1-z_alpha_bar_4k))) -> 0.30
B8: Fitzroy 2 | C8: =((2*factor*room_volume)/(total_area^2))*((room_height*(room_length+room_width)/alpha_star_ww_125)+((room_length*room_width)/alpha_star_cf_125)) -> 0.59 | D8: =((2*factor*room_volume)/(total_area^2))*((room_height*(room_length+room_width)/alpha_star_ww_250)+((room_length*room_width)/alpha_star_cf_250)) -> 0.81 | E8: =((2*factor*room_volume)/(total_area^2))*((room_height*(room_length+room_width)/alpha_star_ww_500)+((room_length*room_width)/alpha_star_cf_500)) -> 0.40 | F8: =((2*factor*room_volume)/(total_area^2))*((room_height*(room_length+room_width)/alpha_star_ww_1k)+((room_length*room_width)/alpha_star_cf_1k)) -> 0.30 | G8: =((2*factor*room_volume)/(total_area^2))*((room_height*(room_length+room_width)/alpha_star_ww_2k)+((room_length*room_width)/alpha_star_cf_2k)) -> 0.26 | H8: =((2*factor*room_volume)/(total_area^2))*((room_height*(room_length+room_width)/alpha_star_ww_4k)+((room_length*room_width)/alpha_star_cf_4k)) -> 0.25
B9: Arau | C9: =arau_x_125*arau_y_125*arau_z_125 -> 0.78 | D9: =arau_x_250*arau_y_250*arau_z_250 -> 0.78 | E9: =arau_x_500*arau_y_500*arau_z_500 -> 0.41 | F9: =arau_x_1k*arau_y_1k*arau_z_1k -> 0.40 | G9: =arau_x_2k*arau_y_2k*arau_z_2k -> 0.32 | H9: =arau_x_4k*arau_y_4k*arau_z_4k -> 0.24
B10: Millington | C10: =(-factor*room_volume)/millington_sigma_125 -> 0.66 | D10: =(-factor*room_volume)/millington_sigma_250 -> 0.64 | E10: =(-factor*room_volume)/millington_sigma_500 -> 0.25 | F10: =(-factor*room_volume)/millington_sigma_1k -> 0.17 | G10: =(-factor*room_volume)/millington_sigma_2k -> 0.12 | H10: =(-factor*room_volume)/millington_sigma_4k -> 0.18
B12: On axis RT60
B13: using Fitzroy 1 | C13: 125Hz | D13: 250Hz | E13: 500Hz | F13: 1KHz | G13: 2KHz | H13: 4KHz
B14: X axis | C14: =(factor*room_volume)/total_area^2*(-x_area/LN(1-x_alpha_bar_125)) -> 0.13 | D14: =(factor*room_volume)/total_area^2*(-x_area/LN(1-x_alpha_bar_250)) -> 0.38 | E14: =(factor*room_volume)/total_area^2*(-x_area/LN(1-x_alpha_bar_500)) -> 0.28 | F14: =(factor*room_volume)/total_area^2*(-x_area/LN(1-x_alpha_bar_1k)) -> 0.44 | G14: =(factor*room_volume)/total_area^2*(-x_area/LN(1-x_alpha_bar_2k)) -> 0.34 | H14: =(factor*room_volume)/total_area^2*(-x_area/LN(1-x_alpha_bar_4k)) -> 0.13
B15: Y axis | C15: =(factor*room_volume)/total_area^2*(-y_area/LN(1-y_alpha_bar_125)) -> 0.11 | D15: =(factor*room_volume)/total_area^2*(-y_area/LN(1-y_alpha_bar_250)) -> 0.33 | E15: =(factor*room_volume)/total_area^2*(-y_area/LN(1-y_alpha_bar_500)) -> 0.25 | F15: =(factor*room_volume)/total_area^2*(-y_area/LN(1-y_alpha_bar_1k)) -> 0.39 | G15: =(factor*room_volume)/total_area^2*(-y_area/LN(1-y_alpha_bar_2k)) -> 0.31 | H15: =(factor*room_volume)/total_area^2*(-y_area/LN(1-y_alpha_bar_4k)) -> 0.12
B16: Z axis | C16: =(factor*room_volume)/total_area^2*(-z_area/LN(1-z_alpha_bar_125)) -> 0.68 | D16: =(factor*room_volume)/total_area^2*(-z_area/LN(1-z_alpha_bar_250)) -> 0.20 | E16: =(factor*room_volume)/total_area^2*(-z_area/LN(1-z_alpha_bar_500)) -> 0.07 | F16: =(factor*room_volume)/total_area^2*(-z_area/LN(1-z_alpha_bar_1k)) -> 0.04 | G16: =(factor*room_volume)/total_area^2*(-z_area/LN(1-z_alpha_bar_2k)) -> 0.03 | H16: =(factor*room_volume)/total_area^2*(-z_area/LN(1-z_alpha_bar_4k)) -> 0.05
B18: Basic differences between the different reverberation time formulae
B19: Sabine | C19: Classic reverberation time formula. Assumes an average absorption for all surfaces and a perfectly diffuse sound field.
B20: Eyring | C20: Modification to Sabine based on the mean free path and accounting for reflection attenuation within a diffuse field.
B21: Fitzroy 1 | C21: Modification to Eyring that accounts for unequal axial absorbancy.
B22: Fitzroy 2 | C22: Reinhard Neubauer's modification to Eyring that accounts for an "almost two dimensional" sound field. (Introduces the a* term)
B23: Arau | C23: Same consideration as Fitzroy, but calculates unequal absorbancy in a different way.
B24: Millington | C24: Same consideration as Fitzroy, but accounts for the absorbency of each surface individually

Sheet Schroeder Diffusers
B2: Schroeder diffuser well depth calculation
B3: Prime seed = | C3: 13
B4: Design frequency = | C4: 1100 | D4: Hz
B6: Effective Bandwidth | C6: Lower | D6: Upper
B7: Hz | C7: =2^(LOG(design_frequency,2)-0.5) -> 777.8174593 | D7: =sound_velocity/(2*schroeder_well_width) -> 4014.59854
B9: Recommended well width = | C9: =(sound_velocity/design_frequency)*0.137 -> 0.140 | D9: =IF(unitFactor=1,"m","ft") -> ft | E9: (Schroeder 1979)
B35: Well No. | C35: 1 | D35: 2 | E35: 3 | F35: 4 | G35: 5 | H35: 6 | I35: 7 | J35: 8 | K35: 9 | L35: 10 | M35: 11 | N35: 12 | O35: 13 | P35: 14 | Q35: 15 | R35: 16 | S35: 17 | T35: 18 | U35: 19 | V35: 20 | W35: 21 | X35: 22 | Y35: 23 | Z35: 24 | AA35: 25 | AB35: 26 | AC35: 27 | AD35: 28 | AE35: 29 | AF35: 30 | AG35: 31
B36: QRD Sequence - Depth | C36: =MOD(C35^2,prime_seed)*(sound_velocity/(design_frequency*2*prime_seed)) -> 0.039 | D36: 0.157 | E36: 0.354 | F36: 0.118 | G36: 0.472 | H36: 0.394 | I36: 0.394 | J36: 0.472 | K36: 0.118 | L36: 0.354 | M36: 0.157 | N36: 0.039 | O36: 0.000 | P36: 0.039 | Q36: 0.157 | R36: 0.354 | S36: 0.118 | T36: 0.472 | U36: 0.394 | V36: 0.394 | W36: 0.472 | X36: 0.118 | Y36: 0.354 | Z36: 0.157 | AA36: 0.039 | AB36: 0.000 | AC36: 0.039 | AD36: 0.157 | AE36: 0.354 | AF36: 0.118 | AG36: 0.472

Sheet Absorption Coefficients
B2: Absorption values
B3: These values are quoted as published by the manufacturers. However, any values that are > 0.99 have been rounded down to 0.99 when used for RT60 calculation.
B4: This rounding is performed to prevent any RT60 equation containing the term ln(1 - a) from breaking down.
B6: If you cannot find the absorption values for the materials in your control room, then you may enter your own, user defined values in the locations provided.
B8: Id | C8: Ceilings | D8: Thickness (mm) | E8: Cavity (mm) | F8: Absorption layer (mm) | G8: Perforation (%age) | H8: 125 Hz | I8: 250 Hz | J8: 500 Hz | K8: 1 KHz | L8: 2 KHz | M8: 4 KHz | N8: Source
B9: 1000 | C9: N/A | H9: 0.00 | I9: 0.00 | J9: 0.00 | K9: 0.00 | L9: 0.00 | M9: 0.00
B10: 1001 | C10: Perfect Absorber | H10: 0.99 | I10: 0.99 | J10: 0.99 | K10: 0.99 | L10: 0.99 | M10: 0.99
B11: 1002 | C11: 80% Absorbent | H11: 0.80 | I11: 0.80 | J11: 0.80 | K11: 0.80 | L11: 0.80 | M11: 0.80
B12: 1003 | C12: 60% Absorbent | H12: 0.60 | I12: 0.60 | J12: 0.60 | K12: 0.60 | L12: 0.60 | M12: 0.60
B13: 1004 | C13: 40% Absorbent | H13: 0.40 | I13: 0.40 | J13: 0.40 | K13: 0.40 | L13: 0.40 | M13: 0.40
B14: 1005 | C14: 20% Absorbent | H14: 0.20 | I14: 0.20 | J14: 0.20 | K14: 0.20 | L14: 0.20 | M14: 0.20
B15: 1006 | C15: Abffusor (absorbing/diffusing panel) | D15: 100 | E15: 0 | H15: 0.48 | I15: 0.98 | J15: 1.20 | K15: 1.10 | L15: 1.07 | M15: 1.16 | N15: RPG Diffusor Systems Inc.
B16: 1007 | C16: Abffusor (absorbing/diffusing panel) | D16: 100 | E16: 400 | H16: 0.82 | I16: 0.90 | J16: 1.07 | K16: 1.04 | L16: 1.05 | M16: 1.04 | N16: RPG Diffusor Systems Inc.
B17: 1008 | C17: Acoustic tiles, 3/16" holes at 1/2" centres | D17: 19 | H17: 0.10 | I17: 0.35 | J17: 0.70 | K17: 0.75 | L17: 0.65 | M17: 0.50 | N17: SAE College
B18: 1009 | C18: Almute | D18: 3 | E18: 100 | F18: 0 | H18: 0.31 | I18: 0.64 | J18: 0.84 | K18: 0.93 | L18: 0.64 | M18: 1.24 | N18: RPG Diffusor Systems Inc.
B19: 1010 | C19: Almute | D19: 3 | E19: 200 | F19: 0 | H19: 0.44 | I19: 0.81 | J19: 0.87 | K19: 0.52 | L19: 0.69 | M19: 0.80 | N19: RPG Diffusor Systems Inc.
B20: 1011 | C20: Almute | D20: 3 | E20: 200 | F20: 50 | H20: 0.82 | I20: 0.99 | J20: 1.09 | K20: 1.08 | L20: 1.02 | M20: 1.04 | N20: RPG Diffusor Systems Inc.
B21: 1012 | C21: Almute | D21: 3 | E21: 400 | F21: 0 | H21: 0.85 | I21: 0.80 | J21: 0.46 | K21: 0.60 | L21: 0.70 | M21: 0.80 | N21: RPG Diffusor Systems Inc.
B22: 1013 | C22: Almute | D22: 3 | E22: 400 | F22: 50 | H22: 0.77 | I22: 1.03 | J22: 0.93 | K22: 1.07 | L22: 1.03 | M22: 1.07 | N22: RPG Diffusor Systems Inc.
B23: 1014 | C23: Almute | D23: 3 | E23: 50 | F23: 0 | H23: 0.13 | I23: 0.28 | J23: 0.59 | K23: 0.86 | L23: 0.90 | M23: 0.67 | N23: RPG Diffusor Systems Inc.
B24: 1015 | C24: Almute | D24: 3 | E24: 50 | F24: 50 | H24: 0.36 | I24: 0.86 | J24: 1.13 | K24: 1.06 | L24: 0.90 | M24: 0.71 | N24: RPG Diffusor Systems Inc.
B25: 1016 | C25: B24/X24 Panels (2'x4' 6# FG panel with fabric facing) | D25: 25.4 | H25: 0.07 | I25: 0.29 | J25: 0.80 | K25: 1.01 | L25: 1.05 | M25: 0.99 | N25: Auralex Acoustics
B26: 1017 | C26: Baffles, mineral wool 0.5 baffles/m2 | D26: 50 | H26: 0.20 | I26: 0.29 | J26: 0.51 | K26: 0.68 | L26: 0.65 | M26: 0.64 | N26: Acoustics-Engineering
B27: 1018 | C27: Baffles, mineral wool 0.5 baffles/m2 | D27: 80 | H27: 0.23 | I27: 0.37 | J27: 0.65 | K27: 0.70 | L27: 0.69 | M27: 0.68 | N27: Acoustics-Engineering
B28: 1019 | C28: Baffles, mineral wool 1 baffle/m2 | D28: 50 | H28: 0.45 | I28: 0.46 | J28: 0.82 | K28: 1.04 | L28: 1.06 | M28: 1.04 | N28: Acoustics-Engineering
B29: 1020 | C29: Baffles, mineral wool 1 baffle/m2 | D29: 80 | H29: 0.47 | I29: 0.61 | J29: 1.11 | K29: 1.22 | L29: 1.22 | M29: 1.19 | N29: Acoustics-Engineering
B30: 1021 | C30: Baffles, mineral wool 2 baffles/m2 | D30: 50 | H30: 0.52 | I30: 0.81 | J30: 1.46 | K30: 1.71 | L30: 1.73 | M30: 1.65 | N30: Acoustics-Engineering
B31: 1022 | C31: Baffles, mineral wool 2 baffles/m2 | D31: 80 | H31: 0.55 | I31: 0.99 | J31: 1.74 | K31: 1.80 | L31: 1.78 | M31: 1.68 | N31: Acoustics-Engineering
B32: 1023 | C32: Chipboard on frame | D32: 19 | E32: 120 | F32: 0 | H32: 0.30 | I32: 0.11 | J32: 0.15 | K32: 0.08 | L32: 0.12 | M32: 0.24 | N32: Acoustics-Engineering
B33: 1024 | C33: Chipboard on frame | D33: 19 | E33: 120 | F33: 40 | H33: 0.24 | I33: 0.14 | J33: 0.16 | K33: 0.09 | L33: 0.14 | M33: 0.17 | N33: Acoustics-Engineering
B34: 1025 | C34: Chipboard on frame | D34: 19 | E34: 60 | F34: 0 | H34: 0.33 | I34: 0.10 | J34: 0.12 | K34: 0.10 | L34: 0.14 | M34: 0.26 | N34: Acoustics-Engineering
B35: 1026 | C35: Chipboard on frame | D35: 19 | E35: 60 | F35: 40 | H35: 0.29 | I35: 0.14 | J35: 0.12 | K35: 0.11 | L35: 0.18 | M35: 0.11 | N35: Acoustics-Engineering
B36: 1027 | C36: Concrete, painted | H36: 0.01 | I36: 0.01 | J36: 0.01 | K36: 0.02 | L36: 0.02 | M36: 0.02 | N36: Acoustics-Engineering
B37: 1028 | C37: Concrete, porous | H37: 0.14 | I37: 0.19 | J37: 0.24 | K37: 0.32 | L37: 0.41 | M37: 0.50 | N37: Acoustics-Engineering
B38: 1029 | C38: Concrete, smooth | H38: 0.01 | I38: 0.01 | J38: 0.02 | K38: 0.02 | L38: 0.03 | M38: 0.04 | N38: Acoustics-Engineering
B39: 1030 | C39: ELiTE Absorber (Natural fiber core with fabric facing) | D39: 25.4 | H39: 0.08 | I39: 0.31 | J39: 0.79 | K39: 1.01 | L39: 1.00 | M39: 0.99 | N39: Auralex Acoustics
B40: 1031 | C40: ISOLECO 1000 suspended ceiling | D40: 25 | E40: 300 | H40: 0.60 | I40: 0.67 | J40: 0.68 | K40: 0.84 | L40: 0.85 | M40: 0.62 | N40: Caldic Isolatietechniek BV
B41: 1032 | C41: ISOLECO baffles, 0.5 baffle(s)/m2, framed | D41: 50 | H41: 0.09 | I41: 0.24 | J41: 0.41 | K41: 0.56 | L41: 0.52 | M41: 0.50 | N41: Caldic Isolatietechniek BV
B42: 1033 | C42: ISOLECO baffles, 0.5 baffle(s)/m2, framed | D42: 80 | H42: 0.06 | I42: 0.31 | J42: 0.58 | K42: 0.65 | L42: 0.54 | M42: 0.48 | N42: Caldic Isolatietechniek BV
B43: 1034 | C43: ISOLECO baffles, 0.5 baffle(s)/m2, sealed | D43: 50 | H43: 0.07 | I43: 0.21 | J43: 0.39 | K43: 0.53 | L43: 0.53 | M43: 0.46 | N43: Caldic Isolatietechniek BV
B44: 1035 | C44: ISOLECO baffles, 0.5 baffle(s)/m2, sealed | D44: 80 | H44: 0.10 | I44: 0.25 | J44: 0.54 | K44: 0.60 | L44: 0.56 | M44: 0.47 | N44: Caldic Isolatietechniek BV
B45: 1036 | C45: ISOLECO baffles, 1.0 baffle(s)/m2, framed | D45: 50 | H45: 0.22 | I45: 0.31 | J45: 0.57 | K45: 0.75 | L45: 0.63 | M45: 0.58 | N45: Caldic Isolatietechniek BV
B46: 1037 | C46: ISOLECO baffles, 1.0 baffle(s)/m2, framed | D46: 80 | H46: 0.25 | I46: 0.38 | J46: 0.80 | K46: 0.86 | L46: 0.71 | M46: 0.66 | N46: Caldic Isolatietechniek BV
B47: 1038 | C47: ISOLECO baffles, 1.0 baffle(s)/m2, sealed | D47: 50 | H47: 0.27 | I47: 0.32 | J47: 0.60 | K47: 0.80 | L47: 0.75 | M47: 0.65 | N47: Caldic Isolatietechniek BV
B48: 1039 | C48: ISOLECO baffles, 1.0 baffle(s)/m2, sealed | D48: 80 | H48: 0.28 | I48: 0.39 | J48: 0.74 | K48: 0.85 | L48: 0.76 | M48: 0.64 | N48: Caldic Isolatietechniek BV
B49: 1040 | C49: ISOLECO baffles, 2.0 baffle(s)/m2, framed | D49: 50 | H49: 0.35 | I49: 0.40 | J49: 0.74 | K49: 0.92 | L49: 0.75 | M49: 0.66 | N49: Caldic Isolatietechniek BV
B50: 1041 | C50: ISOLECO baffles, 2.0 baffle(s)/m2, framed | D50: 80 | H50: 0.50 | I50: 0.62 | J50: 0.93 | K50: 1.00 | L50: 0.84 | M50: 0.79 | N50: Caldic Isolatietechniek BV
B51: 1042 | C51: ISOLECO baffles, 2.0 baffle(s)/m2, sealed | D51: 50 | H51: 0.36 | I51: 0.48 | J51: 0.86 | K51: 1.06 | L51: 1.00 | M51: 0.85 | N51: Caldic Isolatietechniek BV
B52: 1043 | C52: ISOLECO baffles, 2.0 baffle(s)/m2, sealed | D52: 80 | H52: 0.50 | I52: 0.56 | J52: 0.97 | K52: 1.10 | L52: 1.03 | M52: 0.92 | N52: Caldic Isolatietechniek BV
B53: 1044 | C53: Kydex QRD (Lightweight diffusor) | D53: 100 | E53: 483 | H53: 0.53 | I53: 0.37 | J53: 0.38 | K53: 0.32 | L53: 0.15 | M53: 0.18 | N53: RPG Diffusor Systems Inc.
B54: 1045 | C54: Laths, 45mm wide, separated by 16mm | D54: 25 | E54: 50 | F54: 20 | H54: 0.19 | I54: 0.36 | J54: 0.73 | K54: 0.50 | L54: 0.25 | M54: 0.31 | N54: Acoustics-Engineering
B55: 1046 | C55: Laths, 85mm wide, separated by 25mm | D55: 12 | E55: 100 | F55: 25 | H55: 0.60 | I55: 0.85 | J55: 0.80 | K55: 0.82 | L55: 0.70 | M55: 0.62 | N55: Acoustics-Engineering
B56: 1047 | C56: Lawapan chipboard 630 kg/m3 | D56: 17.5 | E56: 300 | F56: 50 | G56: 25.0% | H56: 0.89 | I56: 0.93 | J56: 0.95 | K56: 0.86 | L56: 0.67 | M56: 0.58 | N56: Lambri Fabrieken BV
B57: 1048 | C57: Lawapan chipboard 630 kg/m3 | D57: 17.5 | E57: 300 | F57: 50 | G57: 15.0% | H57: 0.79 | I57: 0.84 | J57: 0.85 | K57: 0.70 | L57: 0.45 | M57: 0.35 | N57: Lambri Fabrieken BV
B58: 1049 | C58: Lawapan chipboard 700 kg/m3 | D58: 17.5 | E58: 300 | F58: 50 | G58: 25.0% | H58: 0.83 | I58: 0.92 | J58: 0.95 | K58: 0.87 | L58: 0.61 | M58: 0.51 | N58: Lambri Fabrieken BV
B59: 1050 | C59: Lawapan MDF 680 kg/m3 | D59: 17.5 | E59: 300 | F59: 50 | G59: 25.0% | H59: 0.86 | I59: 0.94 | J59: 0.89 | K59: 0.82 | L59: 0.56 | M59: 0.43 | N59: Lambri Fabrieken BV
B60: 1051 | C60: Lawapan MDF 680 kg/m3 | D60: 17.5 | E60: 300 | F60: 50 | G60: 44.0% | H60: 0.77 | I60: 0.91 | J60: 0.94 | K60: 0.90 | L60: 0.78 | M60: 0.70 | N60: Lambri Fabrieken BV
B61: 1052 | C61: LENRD Bass Traps (2'x1' Triangular Foam Bass Trap) | D61: 305 | H61: 1.24 | I61: 1.28 | J61: 1.45 | K61: 1.39 | L61: 1.27 | M61: 1.31 | N61: Auralex Acoustics
B62: 1053 | C62: M-111 Tiles (1'x1' Melamine tiles) | D62: 51 | H62: 0.12 | I62: 0.25 | J62: 0.73 | K62: 0.91 | L62: 0.97 | M62: 0.99 | N62: Auralex Acoustics
B63: 1054 | C63: MAX-Pak Studiofoam Wedges (2'x4' Foam Panel) | D63: 38 | H63: 0.13 | I63: 0.22 | J63: 0.47 | K63: 0.66 | L63: 0.81 | M63: 1.01 | N63: Auralex Acoustics
B64: 1055 | C64: MAX-Wall Panels 01 (20"x48" Stand-mounted Panel) | H64: 0.81 | I64: 1.02 | J64: 1.06 | K64: 1.05 | L64: 1.02 | M64: 1.02 | N64: Auralex Acoustics
B65: 1056 | C65: MegaMAX-Wall Panels 01 (24"x48" Stand-mounted Panel) | H65: 1.32 | I65: 1.17 | J65: 1.17 | K65: 1.08 | L65: 1.07 | M65: 1.02 | N65: Auralex Acoustics
B66: 1057 | C66: Metal deck, perforated channels, 1" batts | H66: 0.19 | I66: 0.69 | J66: 0.99 | K66: 0.88 | L66: 0.52 | M66: 0.27 | N66: SAE College
B67: 1058 | C67: Metal deck, perforated channels, 3" batts | H67: 0.73 | I67: 0.99 | J67: 0.99 | K67: 0.89 | L67: 0.52 | M67: 0.31 | N67: SAE College
B68: 1059 | C68: Metro LENRD Bass Traps (2'x1' Triangular Foam Bass Trap) | D68: 305 | H68: 1.17 | I68: 1.15 | J68: 1.28 | K68: 1.20 | L68: 1.15 | M68: 1.12 | N68: Auralex Acoustics
B69: 1060 | C69: MetroFusor4 (23.75"x23.75" Diffusor panel) | H69: 0.06 | I69: 0.05 | J69: 0.14 | K69: 0.36 | L69: 0.68 | M69: 0.47 | N69: Auralex Acoustics
B70: 1061 | C70: Mineral Fiber (2'x4' Mineral fiber panel, no facing) | D70: 51 | H70: 0.32 | I70: 0.90 | J70: 1.11 | K70: 1.07 | L70: 1.01 | M70: 1.05 | N70: Auralex Acoustics
B71: 1062 | C71: Mineral Fiber (2'x4' Mineral fiber panel, no facing) | D71: 101.6 | H71: 1.11 | I71: 0.91 | J71: 1.07 | K71: 1.03 | L71: 1.06 | M71: 1.07 | N71: Auralex Acoustics
B72: 1063 | C72: Mineral wool blanket | D72: 50 | E72: 0 | H72: 0.24 | I72: 0.57 | J72: 0.88 | K72: 1.01 | L72: 0.94 | M72: 0.94 | N72: Acoustics-Engineering
B73: 1064 | C73: Mineral wool blanket | D73: 100 | E73: 0 | H73: 0.46 | I73: 0.79 | J73: 1.12 | K73: 1.00 | L73: 0.98 | M73: 0.97 | N73: Acoustics-Engineering
B74: 1065 | C74: Mineral wool panel | D74: 50 | E74: 0 | H74: 0.24 | I74: 0.57 | J74: 0.88 | K74: 1.01 | L74: 0.94 | M74: 0.90 | N74: Acoustics-Engineering
B75: 1066 | C75: Mineral wool panel | D75: 100 | E75: 0 | H75: 0.78 | I75: 1.07 | J75: 1.18 | K75: 1.06 | L75: 0.98 | M75: 0.98 | N75: Acoustics-Engineering
B76: 1067 | C76: Open cell foam | D76: 50 | H76: 0.12 | I76: 0.31 | J76: 0.78 | K76: 1.02 | L76: 1.12 | M76: 1.20 | N76: Acoustics-Engineering
B77: 1068 | C77: Open cell foam | D77: 70 | H77: 0.13 | I77: 0.56 | J77: 0.99 | K77: 1.15 | L77: 1.15 | M77: 1.20 | N77: Acoustics-Engineering
B78: 1069 | C78: Plaster on lath | H78: 0.14 | I78: 0.10 | J78: 0.06 | K78: 0.05 | L78: 0.04 | M78: 0.04 | N78: SAE College
B79: 1070 | C79: Plaster, acoustic | H79: 0.15 | I79: 0.20 | J79: 0.35 | K79: 0.60 | L79: 0.60 | M79: 0.50 | N79: Acoustics-Engineering
B80: 1071 | C80: Plaster, lime | H80: 0.01 | I80: 0.01 | J80: 0.02 | K80: 0.02 | L80: 0.02 | M80: 0.04 | N80: Acoustics-Engineering
B81: 1072 | C81: Plasterboard on frame | D81: 9.5 | E81: 120 | F81: 0 | H81: 0.22 | I81: 0.08 | J81: 0.11 | K81: 0.07 | L81: 0.09 | M81: 0.22 | N81: Acoustics-Engineering
B82: 1073 | C82: Plasterboard on frame | D82: 9.5 | E82: 120 | F82: 40 | H82: 0.23 | I82: 0.12 | J82: 0.09 | K82: 0.06 | L82: 0.11 | M82: 0.22 | N82: Acoustics-Engineering
B83: 1074 | C83: Plasterboard on frame | D83: 9.5 | E83: 60 | F83: 0 | H83: 0.31 | I83: 0.08 | J83: 0.04 | K83: 0.07 | L83: 0.09 | M83: 0.08 | N83: Acoustics-Engineering
B84: 1075 | C84: Plasterboard on frame | D84: 9.5 | E84: 60 | F84: 40 | H84: 0.25 | I84: 0.17 | J84: 0.04 | K84: 0.06 | L84: 0.08 | M84: 0.22 | N84: Acoustics-Engineering
B85: 1076 | C85: Plasterboard, 1/2" in suspended grid | H85: 0.15 | I85: 0.11 | J85: 0.04 | K85: 0.04 | L85: 0.07 | M85: 0.08 | N85: SAE College
B86: 1077 | C86: Plasterboard, perforated | D86: 9.5 | E86: 100 | F86: 30 | G86: 19.6% | H86: 0.30 | I86: 0.69 | J86: 1.01 | K86: 0.81 | L86: 0.66 | M86: 0.62 | N86: Acoustics-Engineering
B87: 1078 | C87: Plasterboard, perforated | D87: 9.5 | E87: 100 | F87: 30 | G87: 6.0% | H87: 0.39 | I87: 0.81 | J87: 0.68 | K87: 0.44 | L87: 0.25 | M87: 0.20 | N87: Acoustics-Engineering
B88: 1079 | C88: Plywood on frame | D88: 4 | E88: 120 | F88: 0 | H88: 0.47 | I88: 0.10 | J88: 0.10 | K88: 0.04 | L88: 0.07 | M88: 0.06 | N88: Acoustics-Engineering
B89: 1080 | C89: Plywood on frame | D89: 4 | E89: 120 | F89: 40 | H89: 0.43 | I89: 0.16 | J89: 0.11 | K89: 0.05 | L89: 0.05 | M89: 0.09 | N89: Acoustics-Engineering
B90: 1081 | C90: Plywood on frame | D90: 4 | E90: 60 | F90: 0 | H90: 0.22 | I90: 0.12 | J90: 0.14 | K90: 0.06 | L90: 0.04 | M90: 0.09 | N90: Acoustics-Engineering
B91: 1082 | C91: Plywood on frame | D91: 4 | E91: 60 | F91: 40 | H91: 0.50 | I91: 0.20 | J91: 0.12 | K91: 0.06 | L91: 0.05 | M91: 0.10 | N91: Acoustics-Engineering
B92: 1083 | C92: Plywood on frame | D92: 6 | E92: 50 | F92: 50 | H92: 0.57 | I92: 0.37 | J92: 0.13 | K92: 0.07 | L92: 0.06 | M92: 0.03 | N92: Acoustics-Engineering
B93: 1084 | C93: ProColumns (4'x1' Column Absorber with fabric facing) | D93: 153 | H93: 1.11 | I93: 1.10 | J93: 1.39 | K93: 1.35 | L93: 1.33 | M93: 1.24 | N93: Auralex Acoustics
B94: 1085 | C94: QRD-734 | E94: 0 | H94: 0.23 | I94: 0.24 | J94: 0.35 | K94: 0.23 | L94: 0.20 | M94: 0.20 | N94: RPG Diffusor Systems Inc.
B95: 1086 | C95: Softboard (unpainted) | D95: 19 | E95: 23 | H95: 0.24 | I95: 0.57 | J95: 0.88 | K95: 1.01 | L95: 0.94 | M95: 0.90 | N95: Acoustics-Engineering
B96: 1087 | C96: SonoColumns (4'x1' Foam Column Absorber) | D96: 153 | H96: 1.10 | I96: 1.36 | J96: 1.50 | K96: 1.38 | L96: 1.34 | M96: 1.33 | N96: Auralex Acoustics
B97: 1088 | C97: SonoFiber (2'x2' Natural fiber panel, no facing) | D97: 25.4 | H97: 0.09 | I97: 0.20 | J97: 0.72 | K97: 0.97 | L97: 1.04 | M97: 1.01 | N97: Auralex Acoustics
B98: 1089 | C98: SonoFlats (2'x2' Flat, beveled Foam Panel) | D98: 51 | H98: 0.16 | I98: 0.46 | J98: 0.99 | K98: 1.12 | L98: 1.14 | M98: 1.13 | N98: Auralex Acoustics
B99: 1090 | C99: Sonomatt (4'x8' Foam Panel) | D99: 51 | H99: 0.13 | I99: 0.27 | J99: 0.62 | K99: 0.92 | L99: 1.02 | M99: 1.02 | N99: Auralex Acoustics
B100: 1091 | C100: Sonorex Baffles 1200x600x50mm 0.5 baffle/m2 | H100: 0.29 | I100: 0.38 | J100: 0.52 | K100: 0.62 | L100: 0.55 | M100: 0.52 | N100: Asbipro Prefab BV
B101: 1092 | C101: Sonorex Baffles 1200x600x50mm 1.0 baffle/m2 | H101: 0.47 | I101: 0.58 | J101: 0.83 | K101: 0.87 | L101: 0.78 | M101: 0.77 | N101: Asbipro Prefab BV
B102: 1093 | C102: Sonorex Baffles 1200x600x50mm 1.5 baffle/m2 | H102: 0.38 | I102: 0.63 | J102: 0.92 | K102: 1.00 | L102: 0.89 | M102: 0.82 | N102: Asbipro Prefab BV
B103: 1094 | C103: Sonorex Baffles 1200x800x50mm 0.5 baffle/m2 | H103: 0.18 | I103: 0.43 | J103: 0.65 | K103: 0.75 | L103: 0.67 | M103: 0.65 | N103: Asbipro Prefab BV
B104: 1095 | C104: Sonorex Baffles 1200x800x50mm 1.0 baffle/m2 | H104: 0.30 | I104: 0.60 | J104: 0.96 | K104: 1.00 | L104: 0.88 | M104: 0.85 | N104: Asbipro Prefab BV
B105: 1096 | C105: Sonorex Baffles 1200x800x50mm 1.5 baffle/m2 | H105: 0.34 | I105: 0.75 | J105: 1.00 | K105: 1.05 | L105: 0.97 | M105: 0.94 | N105: Asbipro Prefab BV
B106: 1097 | C106: Sonorex Sonoseal G25 (glass wool fibre plate) | D106: 1.5 | E106: 200 | F106: 25 | G106: 22.5% | H106: 0.32 | I106: 0.67 | J106: 0.80 | K106: 0.72 | L106: 0.81 | M106: 0.58 | N106: Asbipro Prefab BV
B107: 1098 | C107: Sonorex Sonoseal G50 (glass wool fibre plate) | D107: 1.5 | E107: 200 | F107: 50 | G107: 22.5% | H107: 0.49 | I107: 0.89 | J107: 0.93 | K107: 0.91 | L107: 0.82 | M107: 0.68 | N107: Asbipro Prefab BV
B108: 1099 | C108: Sonorex Sonoseal S25 (rock wool fibre plate) | D108: 1.5 | E108: 200 | F108: 25 | G108: 22.5% | H108: 0.33 | I108: 0.64 | J108: 0.83 | K108: 0.75 | L108: 0.85 | M108: 0.63 | N108: Asbipro Prefab BV
B109: 1100 | C109: Sonorex Sonoseal S50 (rock wool fibre plate) | D109: 1.5 | E109: 200 | F109: 50 | G109: 22.5% | H109: 0.51 | I109: 0.89 | J109: 0.96 | K109: 0.93 | L109: 0.84 | M109: 0.69 | N109: Asbipro Prefab BV
B110: 1101 | C110: Sprayed cellulose fibre, 1 1/4", solid backing | H110: 0.10 | I110: 0.30 | J110: 0.73 | K110: 0.92 | L110: 0.98 | M110: 0.98 | N110: SAE College
B111: 1102 | C111: Sprayed cellulose fibre, 1", lath | H111: 0.47 | I111: 0.90 | J111: 1.10 | K111: 1.03 | L111: 1.05 | M111: 1.03 | N111: SAE College
B112: 1103 | C112: Sprayed cellulose fibre, 1", solid backing | H112: 0.08 | I112: 0.29 | J112: 0.75 | K112: 0.98 | L112: 0.93 | M112: 0.76 | N112: SAE College
B113: 1104 | C113: Sprayed cellulose fibre, 3", solid backing | H113: 0.70 | I113: 0.95 | J113: 1.00 | K113: 0.85 | L113: 0.85 | M113: 0.90 | N113: SAE College
B114: 1105 | C114: Sprayed cellulose fibre, 5/8", solid backing | H114: 0.05 | I114: 0.16 | J114: 0.44 | K114: 0.79 | L114: 0.90 | M114: 0.91 | N114: SAE College
B115: 1106 | C115: Studiofoam Metro (2'x4' Foam Panel) | D115: 51 | H115: 0.13 | I115: 0.23 | J115: 0.68 | K115: 0.93 | L115: 0.91 | M115: 0.89 | N115: Auralex Acoustics
B116: 1107 | C116: Studiofoam Metro (2'x4' Foam Panel) | D116: 101.6 | H116: 0.31 | I116: 0.72 | J116: 1.19 | K116: 1.26 | L116: 1.22 | M116: 1.20 | N116: Auralex Acoustics
B117: 1108 | C117: Studiofoam Pyramids (2'x4' Foam Panel) | D117: 51 | H117: 0.13 | I117: 0.18 | J117: 0.57 | K117: 0.96 | L117: 1.03 | M117: 0.98 | N117: Auralex Acoustics
B118: 1109 | C118: Studiofoam Pyramids (2'x4' Foam Panel) | D118: 101.6 | H118: 0.27 | I118: 0.50 | J118: 1.01 | K118: 1.13 | L118: 1.11 | M118: 1.12 | N118: Auralex Acoustics
B119: 1110 | C119: Studiofoam Wedges (2'x4' Foam Panel) | D119: 25.4 | H119: 0.10 | I119: 0.13 | J119: 0.30 | K119: 0.68 | L119: 0.94 | M119: 1.00 | N119: Auralex Acoustics
B120: 1111 | C120: Studiofoam Wedges (2'x4' Foam Panel) | D120: 51 | H120: 0.11 | I120: 0.30 | J120: 0.91 | K120: 1.05 | L120: 0.99 | M120: 1.00 | N120: Auralex Acoustics
B121: 1112 | C121: Studiofoam Wedges (2'x4' Foam Panel) | D121: 76.4 | H121: 0.23 | I121: 0.49 | J121: 1.06 | K121: 1.04 | L121: 0.96 | M121: 1.05 | N121: Auralex Acoustics
B122: 1113 | C122: Studiofoam Wedges (2'x4' Foam Panel) | D122: 101.6 | H122: 0.31 | I122: 0.85 | J122: 1.25 | K122: 1.14 | L122: 1.06 | M122: 1.09 | N122: Auralex Acoustics
B123: 1114 | C123: Sunburst Female (4'x1' Concave Foam Absorber) | H123: 0.65 | I123: 1.02 | J123: 1.00 | K123: 1.08 | L123: 1.05 | M123: 1.08 | N123: Auralex Acoustics
B124: 1115 | C124: Sunburst Male (4'x1' Semi-cylindrical Foam Absorber) | H124: 1.08 | I124: 1.23 | J124: 1.14 | K124: 1.07 | L124: 1.05 | M124: 1.08 | N124: Auralex Acoustics
B125: 1116 | C125: T'Fusor 01 (23.75"x23.75" Diffusor panel) | H125: 0.36 | I125: 0.39 | J125: 0.23 | K125: 0.10 | L125: 0.09 | M125: 0.07 | N125: Auralex Acoustics
B126: 1117 | C126: T'Fusor 02 (23.75"x23.75" Diffusor panel) | H126: 0.45 | I126: 0.31 | J126: 0.23 | K126: 0.16 | L126: 0.15 | M126: 0.21 | N126: Auralex Acoustics
B127: 1118 | C127: Underlay in perforated metal panels, 1" batts | H127: 0.51 | I127: 0.78 | J127: 0.57 | K127: 0.77 | L127: 0.90 | M127: 0.79 | N127: SAE College
B128: 1119 | C128: Venus Bass Traps (2'x4' Foam Panel) | D128: 305 | H128: 1.63 | I128: 1.34 | J128: 1.29 | K128: 1.26 | L128: 1.25 | M128: 1.20 | N128: Auralex Acoustics
B129: 1120 | C129: VersaTile Concave (24"x16" Foam Panel) | D129: 51 | H129: 0.26 | I129: 0.52 | J129: 0.90 | K129: 0.92 | L129: 0.92 | M129: 1.00 | N129: Auralex Acoustics
B130: 1121 | C130: VersaTile Convex (24"x16" Foam Panel) | D130: 51 | H130: 0.36 | I130: 0.48 | J130: 0.84 | K130: 0.80 | L130: 0.90 | M130: 0.99 | N130: Auralex Acoustics
B131: 1122 | C131: VersaTile Corner (24"x16" Foam Panel) | D131: 51 | H131: 0.88 | I131: 1.01 | J131: 0.99 | K131: 1.12 | L131: 1.13 | M131: 1.17 | N131: Auralex Acoustics
B132: 1123 | C132: Wedgies (1'x1' Foam Tile) | D132: 51 | H132: 0.15 | I132: 0.21 | J132: 0.70 | K132: 0.99 | L132: 1.05 | M132: 1.05 | N132: Auralex Acoustics
B133: 1124 | C133: Wooden tongue-in-groove roof decking | H133: 0.24 | I133: 0.19 | J133: 0.14 | K133: 0.08 | L133: 0.13 | M133: 0.10 | N133: SAE College
B134: 1125 | C134: User defined ceiling 1 -> Add your own text here | H134: 0.01 | I134: 0.01 | J134: 0.01 | K134: 0.01 | L134: 0.01 | M134: 0.01
B135: 1126 | C135: User defined ceiling 2 -> Add your own text here | H135: 0.01 | I135: 0.01 | J135: 0.01 | K135: 0.01 | L135: 0.01 | M135: 0.01
B136: 1127 | C136: User defined ceiling -> Add your own text here | H136: 0.01 | I136: 0.01 | J136: 0.01 | K136: 0.01 | L136: 0.01 | M136: 0.01
B137: 1128 | C137: User defined ceiling -> Add your own text here | H137: 0.01 | I137: 0.01 | J137: 0.01 | K137: 0.01 | L137: 0.01 | M137: 0.01
B138: 1129 | C138: User defined ceiling -> Add your own text here | H138: 0.01 | I138: 0.01 | J138: 0.01 | K138: 0.01 | L138: 0.01 | M138: 0.01
B139: 1130 | C139: User defined ceiling -> Add your own text here | H139: 0.01 | I139: 0.01 | J139: 0.01 | K139: 0.01 | L139: 0.01 | M139: 0.01
B140: 1131 | C140: User defined ceiling -> Add your own text here | H140: 0.01 | I140: 0.01 | J140: 0.01 | K140: 0.01 | L140: 0.01 | M140: 0.01
B141: 1132 | C141: User defined ceiling -> Add your own text here | H141: 0.01 | I141: 0.01 | J141: 0.01 | K141: 0.01 | L141: 0.01 | M141: 0.01
B142: 1133 | C142: User defined ceiling -> Add your own text here | H142: 0.01 | I142: 0.01 | J142: 0.01 | K142: 0.01 | L142: 0.01 | M142: 0.01
B143: 1134 | C143: User defined ceiling -> Add your own text here | H143: 0.01 | I143: 0.01 | J143: 0.01 | K143: 0.01 | L143: 0.01 | M143: 0.01
C144: Floorings
B145: 2000 | C145: N/A | H145: 0.00 | I145: 0.00 | J145: 0.00 | K145: 0.00 | L145: 0.00 | M145: 0.00
B146: 2001 | C146: Perfect Absorber | H146: 0.99 | I146: 0.99 | J146: 0.99 | K146: 0.99 | L146: 0.99 | M146: 0.99
B147: 2002 | C147: 80% Absorbent | H147: 0.80 | I147: 0.80 | J147: 0.80 | K147: 0.80 | L147: 0.80 | M147: 0.80
B148: 2003 | C148: 60% Absorbent | H148: 0.60 | I148: 0.60 | J148: 0.60 | K148: 0.60 | L148: 0.60 | M148: 0.60
B149: 2004 | C149: 40% Absorbent | H149: 0.40 | I149: 0.40 | J149: 0.40 | K149: 0.40 | L149: 0.40 | M149: 0.40
B150: 2005 | C150: 20% Absorbent | H150: 0.20 | I150: 0.20 | J150: 0.20 | K150: 0.20 | L150: 0.20 | M150: 0.20
B151: 2006 | C151: 10 mm soft carpet on concrete | H151: 0.09 | I151: 0.08 | J151: 0.21 | K151: 0.26 | L151: 0.27 | M151: 0.37 | N151: B.I. Dalenbäck, CATT Acoustic Software
B152: 2007 | C152: 5 mm rubber carpet on concrete | H152: 0.04 | I152: 0.04 | J152: 0.08 | K152: 0.12 | L152: 0.10 | M152: 0.10 | N152: B.I. Dalenbäck, CATT Acoustic Software
B153: 2008 | C153: Board on joist floor | H153: 0.15 | I153: 0.20 | J153: 0.10 | K153: 0.10 | L153: 0.10 | M153: 0.10 | N153: B.I. Dalenbäck, CATT Acoustic Software
B154: 2009 | C154: Carpet 1.87 kg/m2 | D154: 4.5 | H154: 0.01 | I154: 0.02 | J154: 0.04 | K154: 0.15 | L154: 0.36 | M154: 0.32 | N154: Acoustics-Engineering
B155: 2010 | C155: Carpet 1.87 kg/m2 on under-lay | D155: 4.5 | H155: 0.05 | I155: 0.13 | J155: 0.60 | K155: 0.24 | L155: 0.28 | M155: 0.32 | N155: Acoustics-Engineering
B156: 2011 | C156: Carpet 1.98 kg/m2 | D156: 5.3 | H156: 0.01 | I156: 0.03 | J156: 0.05 | K156: 0.11 | L156: 0.31 | M156: 0.58 | N156: Acoustics-Engineering
B157: 2012 | C157: Carpet 1.98 kg/m2 on under-lay | H157: 0.04 | I157: 0.10 | J157: 0.31 | K157: 0.70 | L157: 0.93 | M157: 0.74 | N157: Acoustics-Engineering
B158: 2013 | C158: Carpet heavy, on concrete | H158: 0.02 | I158: 0.06 | J158: 0.14 | K158: 0.37 | L158: 0.60 | M158: 0.65 | N158: Handbook of Acoustical Measurements and Noise Control
B159: 2014 | C159: Carpet heavy, on hairfelt or foam rubber | H159: 0.08 | I159: 0.24 | J159: 0.57 | K159: 0.69 | L159: 0.71 | M159: 0.73 | N159: Handbook of Acoustical Measurements and Noise Control
B160: 2015 | C160: Carpet heavy, with impermeable latex backing on hairfelt or foam rubber | H160: 0.08 | I160: 0.27 | J160: 0.39 | K160: 0.34 | L160: 0.48 | M160: 0.63 | N160: Handbook of Acoustical Measurements and Noise Control
B161: 2016 | C161: Carpet, heavy, cemented to concrete | H161: 0.02 | I161: 0.06 | J161: 0.14 | K161: 0.37 | L161: 0.60 | M161: 0.65 | N161: B.I. Dalenbäck, CATT Acoustic Software
B162: 2017 | C162: Carpet, heavy, over foam rubber | H162: 0.08 | I162: 0.24 | J162: 0.57 | K162: 0.69 | L162: 0.71 | M162: 0.73 | N162: B.I. Dalenbäck, CATT Acoustic Software
B163: 2018 | C163: Carpets, 2 cm | H163: 0.10 | I163: 0.14 | J163: 0.20 | K163: 0.33 | L163: 0.50 | M163: 0.60 | N163: B.I. Dalenbäck, CATT Acoustic Software
B164: 2019 | C164: Concrete floor | H164: 0.01 | I164: 0.01 | J164: 0.02 | K164: 0.02 | L164: 0.02 | M164: 0.02 | N164: B.I. Dalenbäck, CATT Acoustic Software
B165: 2020 | C165: Concrete or terrazzo | H165: 0.01 | I165: 0.01 | J165: 0.02 | K165: 0.02 | L165: 0.02 | M165: 0.02 | N165: Handbook of Acoustical Measurements and Noise Control
B166: 2021 | C166: Concrete, painted | H166: 0.01 | I166: 0.01 | J166: 0.01 | K166: 0.02 | L166: 0.02 | M166: 0.02 | N166: Acoustics-Engineering
B167: 2022 | C167: Concrete, porous | H167: 0.14 | I167: 0.19 | J167: 0.24 | K167: 0.32 | L167: 0.41 | M167: 0.50 | N167: Acoustics-Engineering
B168: 2023 | C168: Concrete, rough unpainted | H168: 0.01 | I168: 0.02 | J168: 0.04 | K168: 0.06 | L168: 0.08 | M168: 0.10 | N168: SAE College
B169: 2024 | C169: Concrete, sealed or painted | H169: 0.01 | I169: 0.01 | J169: 0.02 | K169: 0.02 | L169: 0.02 | M169: 0.02 | N169: SAE College
B170: 2025 | C170: Concrete, smooth | H170: 0.01 | I170: 0.01 | J170: 0.02 | K170: 0.02 | L170: 0.03 | M170: 0.04 | N170: Acoustics-Engineering
B171: 2026 | C171: Lawapan chipboard 630 kg/m3 | D171: 17.5 | E171: 300 | F171: 50 | G171: 25.0% | H171: 0.89 | I171: 0.93 | J171: 0.95 | K171: 0.86 | L171: 0.67 | M171: 0.58 | N171: Lambri Fabrieken BV
B172: 2027 | C172: Lawapan chipboard 630 kg/m3 | D172: 17.5 | E172: 300 | F172: 50 | G172: 15.0% | H172: 0.79 | I172: 0.84 | J172: 0.85 | K172: 0.70 | L172: 0.45 | M172: 0.35 | N172: Lambri Fabrieken BV
B173: 2028 | C173: Lawapan chipboard 700 kg/m3 | D173: 17.5 | E173: 300 | F173: 50 | G173: 25.0% | H173: 0.83 | I173: 0.92 | J173: 0.95 | K173: 0.87 | L173: 0.61 | M173: 0.51 | N173: Lambri Fabrieken BV
B174: 2029 | C174: Lawapan MDF 680 kg/m3 | D174: 17.5 | E174: 300 | F174: 50 | G174: 25.0% | H174: 0.86 | I174: 0.94 | J174: 0.89 | K174: 0.82 | L174: 0.56 | M174: 0.43 | N174: Lambri Fabrieken BV
B175: 2030 | C175: Lawapan MDF 680 kg/m3 | D175: 17.5 | E175: 300 | F175: 50 | G175: 44.0% | H175: 0.77 | I175: 0.91 | J175: 0.94 | K175: 0.90 | L175: 0.78 | M175: 0.70 | N175: Lambri Fabrieken BV
B176: 2031 | C176: Linoleum | H176: 0.02 | I176: 0.03 | J176: 0.04 | K176: 0.05 | L176: 0.05 | M176: 0.06 | N176: Acoustics-Engineering
B177: 2032 | C177: Linoleum directly on concrete | H177: 0.02 | I177: 0.02 | J177: 0.03 | K177: 0.03 | L177: 0.04 | M177: 0.04 | N177: B.I. Dalenbäck, CATT Acoustic Software
B178: 2033 | C178: Linoleum on concrete | H178: 0.02 | I178: 0.03 | J178: 0.03 | K178: 0.03 | L178: 0.03 | M178: 0.03 | N178: B.I. Dalenbäck, CATT Acoustic Software
B179: 2034 | C179: Linoleum on wooden floor | H179: 0.15 | I179: 0.12 | J179: 0.11 | K179: 0.10 | L179: 0.07 | M179: 0.08 | N179: B.I. Dalenbäck, CATT Acoustic Software
B180: 2035 | C180: Linoleum, asphalt, rubber or cork tile on concrete | H180: 0.02 | I180: 0.03 | J180: 0.03 | K180: 0.03 | L180: 0.03 | M180: 0.02 | N180: Handbook of Acoustical Measurements and Noise Control
B181: 2036 | C181: Marble | H181: 0.01 | I181: 0.01 | J181: 0.01 | K181: 0.01 | L181: 0.02 | M181: 0.02 | N181: Acoustics-Engineering
B182: 2037 | C182: Marble or glazed tile | H182: 0.01 | I182: 0.01 | J182: 0.01 | K182: 0.01 | L182: 0.02 | M182: 0.02 | N182: SAE College
B183: 2038 | C183: Needle felt | H183: 0.02 | I183: 0.05 | J183: 0.08 | K183: 0.17 | L183: 0.27 | M183: 0.32 | N183: Acoustics-Engineering
B184: 2039 | C184: Thin carpet cemented to concrete | H184: 0.02 | I184: 0.04 | J184: 0.08 | K184: 0.20 | L184: 0.35 | M184: 0.40 | N184: B.I. Dalenbäck, CATT Acoustic Software
B185: 2040 | C185: Tiles on concrete | H185: 0.02 | I185: 0.02 | J185: 0.02 | K185: 0.02 | L185: 0.03 | M185: 0.03 | N185: B.I. Dalenbäck, CATT Acoustic Software
B186: 2041 | C186: Timber floor on timber joints | H186: 0.11 | I186: 0.11 | J186: 0.12 | K186: 0.11 | L186: 0.10 | M186: 0.08 | N186: B.I. Dalenbäck, CATT Acoustic Software
B187: 2042 | C187: Vinyl tile or linoleum on concrete | H187: 0.02 | I187: 0.03 | J187: 0.03 | K187: 0.03 | L187: 0.03 | M187: 0.02 | N187: SAE College
B188: 2043 | C188: Wood parquet in asphalt on concrete | H188: 0.04 | I188: 0.04 | J188: 0.07 | K188: 0.06 | L188: 0.06 | M188: 0.07 | N188: Handbook of Acoustical Measurements and Noise Control
B189: 2044 | C189: Wood parquet on concrete | H189: 0.04 | I189: 0.04 | J189: 0.06 | K189: 0.12 | L189: 0.10 | M189: 0.15 | N189: Acoustics-Engineering
B190: 2045 | C190: Wood parquet on concrete | H190: 0.04 | I190: 0.04 | J190: 0.07 | K190: 0.06 | L190: 0.06 | M190: 0.07 | N190: B.I. Dalenbäck, CATT Acoustic Software
B191: 2046 | C191: Wooden floor in asphalt on concrete | H191: 0.04 | I191: 0.04 | J191: 0.07 | K191: 0.06 | L191: 0.06 | M191: 0.07 | N191: B.I. Dalenbäck, CATT Acoustic Software
B192: 2047 | C192: Wooden floor on joists | H192: 0.15 | I192: 0.11 | J192: 0.10 | K192: 0.07 | L192: 0.06 | M192: 0.07 | N192: B.I. Dalenbäck, CATT Acoustic Software
B193: 2048 | C193: User defined floor -> Add your own text here | H193: 0.01 | I193: 0.01 | J193: 0.01 | K193: 0.01 | L193: 0.01 | M193: 0.01
B194: 2049 | C194: User defined floor -> Add your own text here | H194: 0.01 | I194: 0.01 | J194: 0.01 | K194: 0.01 | L194: 0.01 | M194: 0.01
B195: 2050 | C195: User defined floor -> Add your own text here | H195: 0.01 | I195: 0.01 | J195: 0.01 | K195: 0.01 | L195: 0.01 | M195: 0.01
B196: 2051 | C196: User defined floor -> Add your own text here | H196: 0.01 | I196: 0.01 | J196: 0.01 | K196: 0.01 | L196: 0.01 | M196: 0.01
B197: 2052 | C197: User defined floor -> Add your own text here | H197: 0.01 | I197: 0.01 | J197: 0.01 | K197: 0.01 | L197: 0.01 | M197: 0.01
B198: 2053 | C198: User defined floor -> Add your own text here | H198: 0.01 | I198: 0.01 | J198: 0.01 | K198: 0.01 | L198: 0.01 | M198: 0.01
B199: 2054 | C199: User defined floor -> Add your own text here | H199: 0.01 | I199: 0.01 | J199: 0.01 | K199: 0.01 | L199: 0.01 | M199: 0.01
B200: 2055 | C200: User defined floor -> Add your own text here | H200: 0.01 | I200: 0.01 | J200: 0.01 | K200: 0.01 | L200: 0.01 | M200: 0.01
B201: 2056 | C201: User defined floor -> Add your own text here | H201: 0.01 | I201: 0.01 | J201: 0.01 | K201: 0.01 | L201: 0.01 | M201: 0.01
B202: 2057 | C202: User defined floor -> Add your own text here | H202: 0.01 | I202: 0.01 | J202: 0.01 | K202: 0.01 | L202: 0.01 | M202: 0.01
C203: Seating Materials
... 180 more rows

Sheet Intermediate values
B2: Intermediate values
B3: Tuning Reference
C4: Concert pitch A4 | D4: 440.00 | E4: Hz (This is normally 440.0)
B7: Wall 1 Surfaces | D7: a @ 125Hz | E7: =AbsorbencyText -> Sabins | F7: a @ 250Hz | G7: =AbsorbencyText -> Sabins | H7: a @ 500Hz | I7: =AbsorbencyText -> Sabins | J7: a @ 1KHz | K7: =AbsorbencyText -> Sabins | L7: a @ 2KHz | M7: =AbsorbencyText -> Sabins | N7: a @ 4KHz | O7: =AbsorbencyText -> Sabins
C8: Material 1 | D8: =IF(VLOOKUP(wall1_mat1,wall_mat_start:wall_mat_end,7)>0.99,0.99,VLOOKUP(wall1_mat1,wall_mat_start:wall_mat_end,7)) -> 0.22 | E8: =wall1_mat1_area*wall1_mat1_alpha_125 -> 25.06 | F8: =IF(VLOOKUP(wall1_mat1,wall_mat_start:wall_mat_end,8)>0.99,0.99,VLOOKUP(wall1_mat1,wall_mat_start:wall_mat_end,8)) -> 0.08 | G8: =wall1_mat1_area*wall1_mat1_alpha_250 -> 9.11 | H8: =IF(VLOOKUP(wall1_mat1,wall_mat_start:wall_mat_end,9)>0.99,0.99,VLOOKUP(wall1_mat1,wall_mat_start:wall_mat_end,9)) -> 0.11 | I8: =wall1_mat1_area*wall1_mat1_alpha_500 -> 12.53 | J8: =IF(VLOOKUP(wall1_mat1,wall_mat_start:wall_mat_end,10)>0.99,0.99,VLOOKUP(wall1_mat1,wall_mat_start:wall_mat_end,10)) -> 0.07 | K8: =wall1_mat1_area*wall1_mat1_alpha_1k -> 7.97 | L8: =IF(VLOOKUP(wall1_mat1,wall_mat_start:wall_mat_end,11)>0.99,0.99,VLOOKUP(wall1_mat1,wall_mat_start:wall_mat_end,11)) -> 0.09 | M8: =wall1_mat1_area*wall1_mat1_alpha_2k -> 10.25 | N8: =IF(VLOOKUP(wall1_mat1,wall_mat_start:wall_mat_end,12)>0.99,0.99,VLOOKUP(wall1_mat1,wall_mat_start:wall_mat_end,12)) -> 0.22 | O8: =wall1_mat1_area*wall1_mat1_alpha_4k -> 25.06
C9: Material 2 | D9: =IF(VLOOKUP(wall1_mat2,wall_mat_start:wall_mat_end,7)>0.99,0.99,VLOOKUP(wall1_mat2,wall_mat_start:wall_mat_end,7)) -> 0.15 | E9: =wall1_mat2_area*wall1_mat2_alpha_125 -> 4.27 | F9: =IF(VLOOKUP(wall1_mat2,wall_mat_start:wall_mat_end,8)>0.99,0.99,VLOOKUP(wall1_mat2,wall_mat_start:wall_mat_end,8)) -> 0.05 | G9: =wall1_mat2_area*wall1_mat2_alpha_250 -> 1.42 | H9: =IF(VLOOKUP(wall1_mat2,wall_mat_start:wall_mat_end,9)>0.99,0.99,VLOOKUP(wall1_mat2,wall_mat_start:wall_mat_end,9)) -> 0.03 | I9: =wall1_mat2_area*wall1_mat2_alpha_500 -> 0.85 | J9: =IF(VLOOKUP(wall1_mat2,wall_mat_start:wall_mat_end,10)>0.99,0.99,VLOOKUP(wall1_mat2,wall_mat_start:wall_mat_end,10)) -> 0.03 | K9: =wall1_mat2_area*wall1_mat2_alpha_1k -> 0.85 | L9: =IF(VLOOKUP(wall1_mat2,wall_mat_start:wall_mat_end,11)>0.99,0.99,VLOOKUP(wall1_mat2,wall_mat_start:wall_mat_end,11)) -> 0.02 | M9: =wall1_mat2_area*wall1_mat2_alpha_2k -> 0.57 | N9: =IF(VLOOKUP(wall1_mat2,wall_mat_start:wall_mat_end,12)>0.99,0.99,VLOOKUP(wall1_mat2,wall_mat_start:wall_mat_end,12)) -> 0.02 | O9: =wall1_mat2_area*wall1_mat2_alpha_4k -> 0.57
C10: Material 3 | D10: =IF(VLOOKUP(wall1_mat3,wall_mat_start:wall_mat_end,7)>0.99,0.99,VLOOKUP(wall1_mat3,wall_mat_start:wall_mat_end,7)) -> 0.00 | E10: =wall1_mat3_area*wall1_mat3_alpha_125 -> 0.00 | F10: =IF(VLOOKUP(wall1_mat3,wall_mat_start:wall_mat_end,8)>0.99,0.99,VLOOKUP(wall1_mat3,wall_mat_start:wall_mat_end,8)) -> 0.00 | G10: =wall1_mat3_area*wall1_mat3_alpha_250 -> 0.00 | H10: =IF(VLOOKUP(wall1_mat3,wall_mat_start:wall_mat_end,9)>0.99,0.99,VLOOKUP(wall1_mat3,wall_mat_start:wall_mat_end,9)) -> 0.00 | I10: =wall1_mat3_area*wall1_mat3_alpha_500 -> 0.00 | J10: =IF(VLOOKUP(wall1_mat3,wall_mat_start:wall_mat_end,10)>0.99,0.99,VLOOKUP(wall1_mat3,wall_mat_start:wall_mat_end,10)) -> 0.00 | K10: =wall1_mat3_area*wall1_mat3_alpha_1k -> 0.00 | L10: =IF(VLOOKUP(wall1_mat3,wall_mat_start:wall_mat_end,11)>0.99,0.99,VLOOKUP(wall1_mat3,wall_mat_start:wall_mat_end,11)) -> 0.00 | M10: =wall1_mat3_area*wall1_mat3_alpha_2k -> 0.00 | N10: =IF(VLOOKUP(wall1_mat3,wall_mat_start:wall_mat_end,12)>0.99,0.99,VLOOKUP(wall1_mat3,wall_mat_start:wall_mat_end,12)) -> 0.00 | O10: =wall1_mat3_area*wall1_mat3_alpha_4k -> 0.00
C11: Material 4 | D11: =IF(VLOOKUP(wall1_mat4,wall_mat_start:wall_mat_end,7)>0.99,0.99,VLOOKUP(wall1_mat4,wall_mat_start:wall_mat_end,7)) -> 0.00 | E11: =wall1_mat4_area*wall1_mat4_alpha_125 -> 0.00 | F11: =IF(VLOOKUP(wall1_mat4,wall_mat_start:wall_mat_end,8)>0.99,0.99,VLOOKUP(wall1_mat4,wall_mat_start:wall_mat_end,8)) -> 0.00 | G11: =wall1_mat4_area*wall1_mat4_alpha_250 -> 0.00 | H11: =IF(VLOOKUP(wall1_mat4,wall_mat_start:wall_mat_end,9)>0.99,0.99,VLOOKUP(wall1_mat4,wall_mat_start:wall_mat_end,9)) -> 0.00 | I11: =wall1_mat4_area*wall1_mat4_alpha_500 -> 0.00 | J11: =IF(VLOOKUP(wall1_mat4,wall_mat_start:wall_mat_end,10)>0.99,0.99,VLOOKUP(wall1_mat4,wall_mat_start:wall_mat_end,10)) -> 0.00 | K11: =wall1_mat4_area*wall1_mat4_alpha_1k -> 0.00 | L11: =IF(VLOOKUP(wall1_mat4,wall_mat_start:wall_mat_end,11)>0.99,0.99,VLOOKUP(wall1_mat4,wall_mat_start:wall_mat_end,11)) -> 0.00 | M11: =wall1_mat4_area*wall1_mat4_alpha_2k -> 0.00 | N11: =IF(VLOOKUP(wall1_mat4,wall_mat_start:wall_mat_end,12)>0.99,0.99,VLOOKUP(wall1_mat4,wall_mat_start:wall_mat_end,12)) -> 0.00 | O11: =wall1_mat4_area*wall1_mat4_alpha_4k -> 0.00
C12: Total for Wall 1 | D12: =E12/wall1_area -> 0.21 | E12: =SUM(E8:E11) -> 29.34 | F12: =G12/wall1_area -> 0.07 | G12: =SUM(G8:G11) -> 10.54 | H12: =I12/wall1_area -> 0.09 | I12: =SUM(I8:I11) -> 13.39 | J12: =K12/wall1_area -> 0.06 | K12: =SUM(K8:K11) -> 8.83 | L12: =M12/wall1_area -> 0.08 | M12: =SUM(M8:M11) -> 10.82 | N12: =O12/wall1_area -> 0.18 | O12: =SUM(O8:O11) -> 25.63
B14: Wall 2 Surfaces | D14: a @ 125Hz | E14: =AbsorbencyText -> Sabins | F14: a @ 250Hz | G14: =AbsorbencyText -> Sabins | H14: a @ 500Hz | I14: =AbsorbencyText -> Sabins | J14: a @ 1KHz | K14: =AbsorbencyText -> Sabins | L14: a @ 2KHz | M14: =AbsorbencyText -> Sabins | N14: a @ 4KHz | O14: =AbsorbencyText -> Sabins
C15: Material 1 | D15: =IF(VLOOKUP(wall2_mat1,wall_mat_start:wall_mat_end,7)>0.99,0.99,VLOOKUP(wall2_mat1,wall_mat_start:wall_mat_end,7)) -> 0.22 | E15: =wall2_mat1_area*wall2_mat1_alpha_125 -> 37.28 | F15: =IF(VLOOKUP(wall2_mat1,wall_mat_start:wall_mat_end,8)>0.99,0.99,VLOOKUP(wall2_mat1,wall_mat_start:wall_mat_end,8)) -> 0.08 | G15: =wall2_mat1_area*wall2_mat1_alpha_250 -> 13.56 | H15: =IF(VLOOKUP(wall2_mat1,wall_mat_start:wall_mat_end,9)>0.99,0.99,VLOOKUP(wall2_mat1,wall_mat_start:wall_mat_end,9)) -> 0.11 | I15: =wall2_mat1_area*wall2_mat1_alpha_500 -> 18.64 | J15: =IF(VLOOKUP(wall2_mat1,wall_mat_start:wall_mat_end,10)>0.99,0.99,VLOOKUP(wall2_mat1,wall_mat_start:wall_mat_end,10)) -> 0.07 | K15: =wall2_mat1_area*wall2_mat1_alpha_1k -> 11.86 | L15: =IF(VLOOKUP(wall2_mat1,wall_mat_start:wall_mat_end,11)>0.99,0.99,VLOOKUP(wall2_mat1,wall_mat_start:wall_mat_end,11)) -> 0.09 | M15: =wall2_mat1_area*wall2_mat1_alpha_2k -> 15.25 | N15: =IF(VLOOKUP(wall2_mat1,wall_mat_start:wall_mat_end,12)>0.99,0.99,VLOOKUP(wall2_mat1,wall_mat_start:wall_mat_end,12)) -> 0.22 | O15: =wall2_mat1_area*wall2_mat1_alpha_4k -> 37.28
C16: Material 2 | D16: =IF(VLOOKUP(wall2_mat2,wall_mat_start:wall_mat_end,7)>0.99,0.99,VLOOKUP(wall2_mat2,wall_mat_start:wall_mat_end,7)) -> 0.00 | E16: =wall2_mat2_area*wall2_mat2_alpha_125 -> 0.00 | F16: =IF(VLOOKUP(wall2_mat2,wall_mat_start:wall_mat_end,8)>0.99,0.99,VLOOKUP(wall2_mat2,wall_mat_start:wall_mat_end,8)) -> 0.00 | G16: =wall2_mat2_area*wall2_mat2_alpha_250 -> 0.00 | H16: =IF(VLOOKUP(wall2_mat2,wall_mat_start:wall_mat_end,9)>0.99,0.99,VLOOKUP(wall2_mat2,wall_mat_start:wall_mat_end,9)) -> 0.00 | I16: =wall2_mat2_area*wall2_mat2_alpha_500 -> 0.00 | J16: =IF(VLOOKUP(wall2_mat2,wall_mat_start:wall_mat_end,10)>0.99,0.99,VLOOKUP(wall2_mat2,wall_mat_start:wall_mat_end,10)) -> 0.00 | K16: =wall2_mat2_area*wall2_mat2_alpha_1k -> 0.00 | L16: =IF(VLOOKUP(wall2_mat2,wall_mat_start:wall_mat_end,11)>0.99,0.99,VLOOKUP(wall2_mat2,wall_mat_start:wall_mat_end,11)) -> 0.00 | M16: =wall2_mat2_area*wall2_mat2_alpha_2k -> 0.00 | N16: =IF(VLOOKUP(wall2_mat2,wall_mat_start:wall_mat_end,12)>0.99,0.99,VLOOKUP(wall2_mat2,wall_mat_start:wall_mat_end,12)) -> 0.00 | O16: =wall2_mat2_area*wall2_mat2_alpha_4k -> 0.00
C17: Material 3 | D17: =IF(VLOOKUP(wall2_mat3,wall_mat_start:wall_mat_end,7)>0.99,0.99,VLOOKUP(wall2_mat3,wall_mat_start:wall_mat_end,7)) -> 0.00 | E17: =wall2_mat3_area*wall2_mat3_alpha_125 -> 0.00 | F17: =IF(VLOOKUP(wall2_mat3,wall_mat_start:wall_mat_end,8)>0.99,0.99,VLOOKUP(wall2_mat3,wall_mat_start:wall_mat_end,8)) -> 0.00 | G17: =wall2_mat3_area*wall2_mat3_alpha_250 -> 0.00 | H17: =IF(VLOOKUP(wall2_mat3,wall_mat_start:wall_mat_end,9)>0.99,0.99,VLOOKUP(wall2_mat3,wall_mat_start:wall_mat_end,9)) -> 0.00 | I17: =wall2_mat3_area*wall2_mat3_alpha_500 -> 0.00 | J17: =IF(VLOOKUP(wall2_mat3,wall_mat_start:wall_mat_end,10)>0.99,0.99,VLOOKUP(wall2_mat3,wall_mat_start:wall_mat_end,10)) -> 0.00 | K17: =wall2_mat3_area*wall2_mat3_alpha_1k -> 0.00 | L17: =IF(VLOOKUP(wall2_mat3,wall_mat_start:wall_mat_end,11)>0.99,0.99,VLOOKUP(wall2_mat3,wall_mat_start:wall_mat_end,11)) -> 0.00 | M17: =wall2_mat3_area*wall2_mat3_alpha_2k -> 0.00 | N17: =IF(VLOOKUP(wall2_mat3,wall_mat_start:wall_mat_end,12)>0.99,0.99,VLOOKUP(wall2_mat3,wall_mat_start:wall_mat_end,12)) -> 0.00 | O17: =wall2_mat3_area*wall2_mat3_alpha_4k -> 0.00
C18: Material 4 | D18: =IF(VLOOKUP(wall2_mat4,wall_mat_start:wall_mat_end,7)>0.99,0.99,VLOOKUP(wall2_mat4,wall_mat_start:wall_mat_end,7)) -> 0.00 | E18: =wall2_mat4_area*wall2_mat4_alpha_125 -> 0.00 | F18: =IF(VLOOKUP(wall2_mat4,wall_mat_start:wall_mat_end,8)>0.99,0.99,VLOOKUP(wall2_mat4,wall_mat_start:wall_mat_end,8)) -> 0.00 | G18: =wall2_mat4_area*wall2_mat4_alpha_250 -> 0.00 | H18: =IF(VLOOKUP(wall2_mat4,wall_mat_start:wall_mat_end,9)>0.99,0.99,VLOOKUP(wall2_mat4,wall_mat_start:wall_mat_end,9)) -> 0.00 | I18: =wall2_mat4_area*wall2_mat4_alpha_500 -> 0.00 | J18: =IF(VLOOKUP(wall2_mat4,wall_mat_start:wall_mat_end,10)>0.99,0.99,VLOOKUP(wall2_mat4,wall_mat_start:wall_mat_end,10)) -> 0.00 | K18: =wall2_mat4_area*wall2_mat4_alpha_1k -> 0.00 | L18: =IF(VLOOKUP(wall2_mat4,wall_mat_start:wall_mat_end,11)>0.99,0.99,VLOOKUP(wall2_mat4,wall_mat_start:wall_mat_end,11)) -> 0.00 | M18: =wall2_mat4_area*wall2_mat4_alpha_2k -> 0.00 | N18: =IF(VLOOKUP(wall2_mat4,wall_mat_start:wall_mat_end,12)>0.99,0.99,VLOOKUP(wall2_mat4,wall_mat_start:wall_mat_end,12)) -> 0.00 | O18: =wall2_mat4_area*wall2_mat4_alpha_4k -> 0.00
C19: Total for Wall 2 | D19: =E19/wall2_area -> 0.22 | E19: =SUM(E15:E18) -> 37.28 | F19: =G19/wall2_area -> 0.08 | G19: =SUM(G15:G18) -> 13.56 | H19: =I19/wall2_area -> 0.11 | I19: =SUM(I15:I18) -> 18.64 | J19: =K19/wall2_area -> 0.07 | K19: =SUM(K15:K18) -> 11.86 | L19: =M19/wall2_area -> 0.09 | M19: =SUM(M15:M18) -> 15.25 | N19: =O19/wall2_area -> 0.22 | O19: =SUM(O15:O18) -> 37.28
B21: Wall 3 Surfaces | D21: a @ 125Hz | E21: =AbsorbencyText -> Sabins | F21: a @ 250Hz | G21: =AbsorbencyText -> Sabins | H21: a @ 500Hz | I21: =AbsorbencyText -> Sabins | J21: a @ 1KHz | K21: =AbsorbencyText -> Sabins | L21: a @ 2KHz | M21: =AbsorbencyText -> Sabins | N21: a @ 4KHz | O21: =AbsorbencyText -> Sabins
C22: Material 1 | D22: =IF(VLOOKUP(wall3_mat1,wall_mat_start:wall_mat_end,7)>0.99,0.99,VLOOKUP(wall3_mat1,wall_mat_start:wall_mat_end,7)) -> 0.22 | E22: =wall3_mat1_area*wall3_mat1_alpha_125 -> 31.33 | F22: =IF(VLOOKUP(wall3_mat1,wall_mat_start:wall_mat_end,8)>0.99,0.99,VLOOKUP(wall3_mat1,wall_mat_start:wall_mat_end,8)) -> 0.08 | G22: =wall3_mat1_area*wall3_mat1_alpha_250 -> 11.39 | H22: =IF(VLOOKUP(wall3_mat1,wall_mat_start:wall_mat_end,9)>0.99,0.99,VLOOKUP(wall3_mat1,wall_mat_start:wall_mat_end,9)) -> 0.11 | I22: =wall3_mat1_area*wall3_mat1_alpha_500 -> 15.66 | J22: =IF(VLOOKUP(wall3_mat1,wall_mat_start:wall_mat_end,10)>0.99,0.99,VLOOKUP(wall3_mat1,wall_mat_start:wall_mat_end,10)) -> 0.07 | K22: =wall3_mat1_area*wall3_mat1_alpha_1k -> 9.97 | L22: =IF(VLOOKUP(wall3_mat1,wall_mat_start:wall_mat_end,11)>0.99,0.99,VLOOKUP(wall3_mat1,wall_mat_start:wall_mat_end,11)) -> 0.09 | M22: =wall3_mat1_area*wall3_mat1_alpha_2k -> 12.82 | N22: =IF(VLOOKUP(wall3_mat1,wall_mat_start:wall_mat_end,12)>0.99,0.99,VLOOKUP(wall3_mat1,wall_mat_start:wall_mat_end,12)) -> 0.22 | O22: =wall3_mat1_area*wall3_mat1_alpha_4k -> 31.33
C23: Material 2 | D23: =IF(VLOOKUP(wall3_mat2,wall_mat_start:wall_mat_end,7)>0.99,0.99,VLOOKUP(wall3_mat2,wall_mat_start:wall_mat_end,7)) -> 0.00 | E23: =wall3_mat2_area*wall3_mat2_alpha_125 -> 0.00 | F23: =IF(VLOOKUP(wall3_mat2,wall_mat_start:wall_mat_end,8)>0.99,0.99,VLOOKUP(wall3_mat2,wall_mat_start:wall_mat_end,8)) -> 0.00 | G23: =wall3_mat2_area*wall3_mat2_alpha_250 -> 0.00 | H23: =IF(VLOOKUP(wall3_mat2,wall_mat_start:wall_mat_end,9)>0.99,0.99,VLOOKUP(wall3_mat2,wall_mat_start:wall_mat_end,9)) -> 0.00 | I23: =wall3_mat2_area*wall3_mat2_alpha_500 -> 0.00 | J23: =IF(VLOOKUP(wall3_mat2,wall_mat_start:wall_mat_end,10)>0.99,0.99,VLOOKUP(wall3_mat2,wall_mat_start:wall_mat_end,10)) -> 0.00 | K23: =wall3_mat2_area*wall3_mat2_alpha_1k -> 0.00 | L23: =IF(VLOOKUP(wall3_mat2,wall_mat_start:wall_mat_end,11)>0.99,0.99,VLOOKUP(wall3_mat2,wall_mat_start:wall_mat_end,11)) -> 0.00 | M23: =wall3_mat2_area*wall3_mat2_alpha_2k -> 0.00 | N23: =IF(VLOOKUP(wall3_mat2,wall_mat_start:wall_mat_end,12)>0.99,0.99,VLOOKUP(wall3_mat2,wall_mat_start:wall_mat_end,12)) -> 0.00 | O23: =wall3_mat2_area*wall3_mat2_alpha_4k -> 0.00
C24: Material 3 | D24: =IF(VLOOKUP(wall3_mat3,wall_mat_start:wall_mat_end,7)>0.99,0.99,VLOOKUP(wall3_mat3,wall_mat_start:wall_mat_end,7)) -> 0.00 | E24: =wall3_mat3_area*wall3_mat3_alpha_125 -> 0.00 | F24: =IF(VLOOKUP(wall3_mat3,wall_mat_start:wall_mat_end,8)>0.99,0.99,VLOOKUP(wall3_mat3,wall_mat_start:wall_mat_end,8)) -> 0.00 | G24: =wall3_mat3_area*wall3_mat3_alpha_250 -> 0.00 | H24: =IF(VLOOKUP(wall3_mat3,wall_mat_start:wall_mat_end,9)>0.99,0.99,VLOOKUP(wall3_mat3,wall_mat_start:wall_mat_end,9)) -> 0.00 | I24: =wall3_mat3_area*wall3_mat3_alpha_500 -> 0.00 | J24: =IF(VLOOKUP(wall3_mat3,wall_mat_start:wall_mat_end,10)>0.99,0.99,VLOOKUP(wall3_mat3,wall_mat_start:wall_mat_end,10)) -> 0.00 | K24: =wall3_mat3_area*wall3_mat3_alpha_1k -> 0.00 | L24: =IF(VLOOKUP(wall3_mat3,wall_mat_start:wall_mat_end,11)>0.99,0.99,VLOOKUP(wall3_mat3,wall_mat_start:wall_mat_end,11)) -> 0.00 | M24: =wall3_mat3_area*wall3_mat3_alpha_2k -> 0.00 | N24: =IF(VLOOKUP(wall3_mat3,wall_mat_start:wall_mat_end,12)>0.99,0.99,VLOOKUP(wall3_mat3,wall_mat_start:wall_mat_end,12)) -> 0.00 | O24: =wall3_mat3_area*wall3_mat3_alpha_4k -> 0.00
C25: Material 4 | D25: =IF(VLOOKUP(wall3_mat4,wall_mat_start:wall_mat_end,7)>0.99,0.99,VLOOKUP(wall3_mat4,wall_mat_start:wall_mat_end,7)) -> 0.00 | E25: =wall3_mat4_area*wall3_mat4_alpha_125 -> 0.00 | F25: =IF(VLOOKUP(wall3_mat4,wall_mat_start:wall_mat_end,8)>0.99,0.99,VLOOKUP(wall3_mat4,wall_mat_start:wall_mat_end,8)) -> 0.00 | G25: =wall3_mat4_area*wall3_mat4_alpha_250 -> 0.00 | H25: =IF(VLOOKUP(wall3_mat4,wall_mat_start:wall_mat_end,9)>0.99,0.99,VLOOKUP(wall3_mat4,wall_mat_start:wall_mat_end,9)) -> 0.00 | I25: =wall3_mat4_area*wall3_mat4_alpha_500 -> 0.00 | J25: =IF(VLOOKUP(wall3_mat4,wall_mat_start:wall_mat_end,10)>0.99,0.99,VLOOKUP(wall3_mat4,wall_mat_start:wall_mat_end,10)) -> 0.00 | K25: =wall3_mat4_area*wall3_mat4_alpha_1k -> 0.00 | L25: =IF(VLOOKUP(wall3_mat4,wall_mat_start:wall_mat_end,11)>0.99,0.99,VLOOKUP(wall3_mat4,wall_mat_start:wall_mat_end,11)) -> 0.00 | M25: =wall3_mat4_area*wall3_mat4_alpha_2k -> 0.00 | N25: =IF(VLOOKUP(wall3_mat4,wall_mat_start:wall_mat_end,12)>0.99,0.99,VLOOKUP(wall3_mat4,wall_mat_start:wall_mat_end,12)) -> 0.00 | O25: =wall3_mat4_area*wall3_mat4_alpha_4k -> 0.00
C26: Total for Wall 3 | D26: =E26/wall3_area -> 0.22 | E26: =SUM(E22:E25) -> 31.33 | F26: =G26/wall3_area -> 0.08 | G26: =SUM(G22:G25) -> 11.39 | H26: =I26/wall3_area -> 0.11 | I26: =SUM(I22:I25) -> 15.66 | J26: =K26/wall3_area -> 0.07 | K26: =SUM(K22:K25) -> 9.97 | L26: =M26/wall3_area -> 0.09 | M26: =SUM(M22:M25) -> 12.82 | N26: =O26/wall3_area -> 0.22 | O26: =SUM(O22:O25) -> 31.33
B28: Wall 4 Surfaces | D28: a @ 125Hz | E28: =AbsorbencyText -> Sabins | F28: a @ 250Hz | G28: =AbsorbencyText -> Sabins | H28: a @ 500Hz | I28: =AbsorbencyText -> Sabins | J28: a @ 1KHz | K28: =AbsorbencyText -> Sabins | L28: a @ 2KHz | M28: =AbsorbencyText -> Sabins | N28: a @ 4KHz | O28: =AbsorbencyText -> Sabins
C29: Material 1 | D29: =IF(VLOOKUP(wall4_mat1,wall_mat_start:wall_mat_end,7)>0.99,0.99,VLOOKUP(wall4_mat1,wall_mat_start:wall_mat_end,7)) -> 0.22 | E29: =wall4_mat1_area*wall4_mat1_alpha_125 -> 33.55 | F29: =IF(VLOOKUP(wall4_mat1,wall_mat_start:wall_mat_end,8)>0.99,0.99,VLOOKUP(wall4_mat1,wall_mat_start:wall_mat_end,8)) -> 0.08 | G29: =wall4_mat1_area*wall4_mat1_alpha_250 -> 12.20 | H29: =IF(VLOOKUP(wall4_mat1,wall_mat_start:wall_mat_end,9)>0.99,0.99,VLOOKUP(wall4_mat1,wall_mat_start:wall_mat_end,9)) -> 0.11 | I29: =wall4_mat1_area*wall4_mat1_alpha_500 -> 16.77 | J29: =IF(VLOOKUP(wall4_mat1,wall_mat_start:wall_mat_end,10)>0.99,0.99,VLOOKUP(wall4_mat1,wall_mat_start:wall_mat_end,10)) -> 0.07 | K29: =wall4_mat1_area*wall4_mat1_alpha_1k -> 10.67 | L29: =IF(VLOOKUP(wall4_mat1,wall_mat_start:wall_mat_end,11)>0.99,0.99,VLOOKUP(wall4_mat1,wall_mat_start:wall_mat_end,11)) -> 0.09 | M29: =wall4_mat1_area*wall4_mat1_alpha_2k -> 13.72 | N29: =IF(VLOOKUP(wall4_mat1,wall_mat_start:wall_mat_end,12)>0.99,0.99,VLOOKUP(wall4_mat1,wall_mat_start:wall_mat_end,12)) -> 0.22 | O29: =wall4_mat1_area*wall4_mat1_alpha_4k -> 33.55
C30: Material 2 | D30: =IF(VLOOKUP(wall4_mat2,wall_mat_start:wall_mat_end,7)>0.99,0.99,VLOOKUP(wall4_mat2,wall_mat_start:wall_mat_end,7)) -> 0.10 | E30: =wall4_mat2_area*wall4_mat2_alpha_125 -> 1.69 | F30: =IF(VLOOKUP(wall4_mat2,wall_mat_start:wall_mat_end,8)>0.99,0.99,VLOOKUP(wall4_mat2,wall_mat_start:wall_mat_end,8)) -> 0.07 | G30: =wall4_mat2_area*wall4_mat2_alpha_250 -> 1.19 | H30: =IF(VLOOKUP(wall4_mat2,wall_mat_start:wall_mat_end,9)>0.99,0.99,VLOOKUP(wall4_mat2,wall_mat_start:wall_mat_end,9)) -> 0.05 | I30: =wall4_mat2_area*wall4_mat2_alpha_500 -> 0.85 | J30: =IF(VLOOKUP(wall4_mat2,wall_mat_start:wall_mat_end,10)>0.99,0.99,VLOOKUP(wall4_mat2,wall_mat_start:wall_mat_end,10)) -> 0.04 | K30: =wall4_mat2_area*wall4_mat2_alpha_1k -> 0.68 | L30: =IF(VLOOKUP(wall4_mat2,wall_mat_start:wall_mat_end,11)>0.99,0.99,VLOOKUP(wall4_mat2,wall_mat_start:wall_mat_end,11)) -> 0.04 | M30: =wall4_mat2_area*wall4_mat2_alpha_2k -> 0.68 | N30: =IF(VLOOKUP(wall4_mat2,wall_mat_start:wall_mat_end,12)>0.99,0.99,VLOOKUP(wall4_mat2,wall_mat_start:wall_mat_end,12)) -> 0.04 | O30: =wall4_mat2_area*wall4_mat2_alpha_4k -> 0.68
C31: Material 3 | D31: =IF(VLOOKUP(wall4_mat3,wall_mat_start:wall_mat_end,7)>0.99,0.99,VLOOKUP(wall4_mat3,wall_mat_start:wall_mat_end,7)) -> 0.00 | E31: =wall4_mat3_area*wall4_mat3_alpha_125 -> 0.00 | F31: =IF(VLOOKUP(wall4_mat3,wall_mat_start:wall_mat_end,8)>0.99,0.99,VLOOKUP(wall4_mat3,wall_mat_start:wall_mat_end,8)) -> 0.00 | G31: =wall4_mat3_area*wall4_mat3_alpha_250 -> 0.00 | H31: =IF(VLOOKUP(wall4_mat3,wall_mat_start:wall_mat_end,9)>0.99,0.99,VLOOKUP(wall4_mat3,wall_mat_start:wall_mat_end,9)) -> 0.00 | I31: =wall4_mat3_area*wall4_mat3_alpha_500 -> 0.00 | J31: =IF(VLOOKUP(wall4_mat3,wall_mat_start:wall_mat_end,10)>0.99,0.99,VLOOKUP(wall4_mat3,wall_mat_start:wall_mat_end,10)) -> 0.00 | K31: =wall4_mat3_area*wall4_mat3_alpha_1k -> 0.00 | L31: =IF(VLOOKUP(wall4_mat3,wall_mat_start:wall_mat_end,11)>0.99,0.99,VLOOKUP(wall4_mat3,wall_mat_start:wall_mat_end,11)) -> 0.00 | M31: =wall4_mat3_area*wall4_mat3_alpha_2k -> 0.00 | N31: =IF(VLOOKUP(wall4_mat3,wall_mat_start:wall_mat_end,12)>0.99,0.99,VLOOKUP(wall4_mat3,wall_mat_start:wall_mat_end,12)) -> 0.00 | O31: =wall4_mat3_area*wall4_mat3_alpha_4k -> 0.00
C32: Material 4 | D32: =IF(VLOOKUP(wall4_mat4,wall_mat_start:wall_mat_end,7)>0.99,0.99,VLOOKUP(wall4_mat4,wall_mat_start:wall_mat_end,7)) -> 0.00 | E32: =wall4_mat4_area*wall4_mat4_alpha_125 -> 0.00 | F32: =IF(VLOOKUP(wall4_mat4,wall_mat_start:wall_mat_end,8)>0.99,0.99,VLOOKUP(wall4_mat4,wall_mat_start:wall_mat_end,8)) -> 0.00 | G32: =wall4_mat4_area*wall4_mat4_alpha_250 -> 0.00 | H32: =IF(VLOOKUP(wall4_mat4,wall_mat_start:wall_mat_end,9)>0.99,0.99,VLOOKUP(wall4_mat4,wall_mat_start:wall_mat_end,9)) -> 0.00 | I32: =wall4_mat4_area*wall4_mat4_alpha_500 -> 0.00 | J32: =IF(VLOOKUP(wall4_mat4,wall_mat_start:wall_mat_end,10)>0.99,0.99,VLOOKUP(wall4_mat4,wall_mat_start:wall_mat_end,10)) -> 0.00 | K32: =wall4_mat4_area*wall4_mat4_alpha_1k -> 0.00 | L32: =IF(VLOOKUP(wall4_mat4,wall_mat_start:wall_mat_end,11)>0.99,0.99,VLOOKUP(wall4_mat4,wall_mat_start:wall_mat_end,11)) -> 0.00 | M32: =wall4_mat4_area*wall4_mat4_alpha_2k -> 0.00 | N32: =IF(VLOOKUP(wall4_mat4,wall_mat_start:wall_mat_end,12)>0.99,0.99,VLOOKUP(wall4_mat4,wall_mat_start:wall_mat_end,12)) -> 0.00 | O32: =wall4_mat4_area*wall4_mat4_alpha_4k -> 0.00
C33: Total for Wall 4 | D33: =E33/wall4_area -> 0.21 | E33: =SUM(E29:E32) -> 35.24 | F33: =G33/wall4_area -> 0.08 | G33: =SUM(G29:G32) -> 13.39 | H33: =I33/wall4_area -> 0.10 | I33: =SUM(I29:I32) -> 17.62 | J33: =K33/wall4_area -> 0.07 | K33: =SUM(K29:K32) -> 11.35 | L33: =M33/wall4_area -> 0.09 | M33: =SUM(M29:M32) -> 14.40 | N33: =O33/wall4_area -> 0.20 | O33: =SUM(O29:O32) -> 34.23
B35: Floor Surfaces | D35: a @ 125Hz | E35: =AbsorbencyText -> Sabins | F35: a @ 250Hz | G35: =AbsorbencyText -> Sabins | H35: a @ 500Hz | I35: =AbsorbencyText -> Sabins | J35: a @ 1KHz | K35: =AbsorbencyText -> Sabins | L35: a @ 2KHz | M35: =AbsorbencyText -> Sabins | N35: a @ 4KHz | O35: =AbsorbencyText -> Sabins
C36: Material 1 | D36: =IF(VLOOKUP(floor_mat1,floor_mat_start:floor_mat_end,7)>0.99,0.99,VLOOKUP(floor_mat1,floor_mat_start:floor_mat_end,7)) -> 0.04 | E36: =floor_mat1_area*floor_mat1_alpha_125 -> 10.71 | F36: =IF(VLOOKUP(floor_mat1,floor_mat_start:floor_mat_end,8)>0.99,0.99,VLOOKUP(floor_mat1,floor_mat_start:floor_mat_end,8)) -> 0.10 | G36: =floor_mat1_area*floor_mat1_alpha_250 -> 26.77 | H36: =IF(VLOOKUP(floor_mat1,floor_mat_start:floor_mat_end,9)>0.99,0.99,VLOOKUP(floor_mat1,floor_mat_start:floor_mat_end,9)) -> 0.31 | I36: =floor_mat1_area*floor_mat1_alpha_500 -> 82.99 | J36: =IF(VLOOKUP(floor_mat1,floor_mat_start:floor_mat_end,10)>0.99,0.99,VLOOKUP(floor_mat1,floor_mat_start:floor_mat_end,10)) -> 0.70 | K36: =floor_mat1_area*floor_mat1_alpha_1k -> 187.41 | L36: =IF(VLOOKUP(floor_mat1,floor_mat_start:floor_mat_end,11)>0.99,0.99,VLOOKUP(floor_mat1,floor_mat_start:floor_mat_end,11)) -> 0.93 | M36: =floor_mat1_area*floor_mat1_alpha_2k -> 248.98 | N36: =IF(VLOOKUP(floor_mat1,floor_mat_start:floor_mat_end,12)>0.99,0.99,VLOOKUP(floor_mat1,floor_mat_start:floor_mat_end,12)) -> 0.74 | O36: =floor_mat1_area*floor_mat1_alpha_4k -> 198.11
C37: Material 2 | D37: =IF(VLOOKUP(floor_mat2,floor_mat_start:floor_mat_end,7)>0.99,0.99,VLOOKUP(floor_mat2,floor_mat_start:floor_mat_end,7)) -> 0.00 | E37: =floor_mat2_area*floor_mat2_alpha_125 -> 0.00 | F37: =IF(VLOOKUP(floor_mat2,floor_mat_start:floor_mat_end,8)>0.99,0.99,VLOOKUP(floor_mat2,floor_mat_start:floor_mat_end,8)) -> 0.00 | G37: =floor_mat2_area*floor_mat2_alpha_250 -> 0.00 | H37: =IF(VLOOKUP(floor_mat2,floor_mat_start:floor_mat_end,9)>0.99,0.99,VLOOKUP(floor_mat2,floor_mat_start:floor_mat_end,9)) -> 0.00 | I37: =floor_mat2_area*floor_mat2_alpha_500 -> 0.00 | J37: =IF(VLOOKUP(floor_mat2,floor_mat_start:floor_mat_end,10)>0.99,0.99,VLOOKUP(floor_mat2,floor_mat_start:floor_mat_end,10)) -> 0.00 | K37: =floor_mat2_area*floor_mat2_alpha_1k -> 0.00 | L37: =IF(VLOOKUP(floor_mat2,floor_mat_start:floor_mat_end,11)>0.99,0.99,VLOOKUP(floor_mat2,floor_mat_start:floor_mat_end,11)) -> 0.00 | M37: =floor_mat2_area*floor_mat2_alpha_2k -> 0.00 | N37: =IF(VLOOKUP(floor_mat2,floor_mat_start:floor_mat_end,12)>0.99,0.99,VLOOKUP(floor_mat2,floor_mat_start:floor_mat_end,12)) -> 0.00 | O37: =floor_mat2_area*floor_mat2_alpha_4k -> 0.00
C38: Material 3 | D38: =IF(VLOOKUP(floor_mat3,floor_mat_start:floor_mat_end,7)>0.99,0.99,VLOOKUP(floor_mat3,floor_mat_start:floor_mat_end,7)) -> 0.00 | E38: =floor_mat3_area*floor_mat3_alpha_125 -> 0.00 | F38: =IF(VLOOKUP(floor_mat3,floor_mat_start:floor_mat_end,8)>0.99,0.99,VLOOKUP(floor_mat3,floor_mat_start:floor_mat_end,8)) -> 0.00 | G38: =floor_mat3_area*floor_mat3_alpha_250 -> 0.00 | H38: =IF(VLOOKUP(floor_mat3,floor_mat_start:floor_mat_end,9)>0.99,0.99,VLOOKUP(floor_mat3,floor_mat_start:floor_mat_end,9)) -> 0.00 | I38: =floor_mat3_area*floor_mat3_alpha_500 -> 0.00 | J38: =IF(VLOOKUP(floor_mat3,floor_mat_start:floor_mat_end,10)>0.99,0.99,VLOOKUP(floor_mat3,floor_mat_start:floor_mat_end,10)) -> 0.00 | K38: =floor_mat3_area*floor_mat3_alpha_1k -> 0.00 | L38: =IF(VLOOKUP(floor_mat3,floor_mat_start:floor_mat_end,11)>0.99,0.99,VLOOKUP(floor_mat3,floor_mat_start:floor_mat_end,11)) -> 0.00 | M38: =floor_mat3_area*floor_mat3_alpha_2k -> 0.00 | N38: =IF(VLOOKUP(floor_mat3,floor_mat_start:floor_mat_end,12)>0.99,0.99,VLOOKUP(floor_mat3,floor_mat_start:floor_mat_end,12)) -> 0.00 | O38: =floor_mat3_area*floor_mat3_alpha_4k -> 0.00
C39: Material 4 | D39: =IF(VLOOKUP(floor_mat4,floor_mat_start:floor_mat_end,7)>0.99,0.99,VLOOKUP(floor_mat4,floor_mat_start:floor_mat_end,7)) -> 0.00 | E39: =floor_mat4_area*floor_mat4_alpha_125 -> 0.00 | F39: =IF(VLOOKUP(floor_mat4,floor_mat_start:floor_mat_end,8)>0.99,0.99,VLOOKUP(floor_mat4,floor_mat_start:floor_mat_end,8)) -> 0.00 | G39: =floor_mat4_area*floor_mat4_alpha_250 -> 0.00 | H39: =IF(VLOOKUP(floor_mat4,floor_mat_start:floor_mat_end,9)>0.99,0.99,VLOOKUP(floor_mat4,floor_mat_start:floor_mat_end,9)) -> 0.00 | I39: =floor_mat4_area*floor_mat4_alpha_500 -> 0.00 | J39: =IF(VLOOKUP(floor_mat4,floor_mat_start:floor_mat_end,10)>0.99,0.99,VLOOKUP(floor_mat4,floor_mat_start:floor_mat_end,10)) -> 0.00 | K39: =floor_mat4_area*floor_mat4_alpha_1k -> 0.00 | L39: =IF(VLOOKUP(floor_mat4,floor_mat_start:floor_mat_end,11)>0.99,0.99,VLOOKUP(floor_mat4,floor_mat_start:floor_mat_end,11)) -> 0.00 | M39: =floor_mat4_area*floor_mat4_alpha_2k -> 0.00 | N39: =IF(VLOOKUP(floor_mat4,floor_mat_start:floor_mat_end,12)>0.99,0.99,VLOOKUP(floor_mat4,floor_mat_start:floor_mat_end,12)) -> 0.00 | O39: =floor_mat4_area*floor_mat4_alpha_4k -> 0.00
C40: Total for Floor | D40: =E40/floor_area -> 0.04 | E40: =SUM(E36:E39) -> 10.71 | F40: =G40/floor_area -> 0.10 | G40: =SUM(G36:G39) -> 26.77 | H40: =I40/floor_area -> 0.31 | I40: =SUM(I36:I39) -> 82.99 | J40: =K40/floor_area -> 0.70 | K40: =SUM(K36:K39) -> 187.41 | L40: =M40/floor_area -> 0.93 | M40: =SUM(M36:M39) -> 248.98 | N40: =O40/floor_area -> 0.74 | O40: =SUM(O36:O39) -> 198.11
B42: Ceiling Surfaces | D42: a @ 125Hz | E42: =AbsorbencyText -> Sabins | F42: a @ 250Hz | G42: =AbsorbencyText -> Sabins | H42: a @ 500Hz | I42: =AbsorbencyText -> Sabins | J42: a @ 1KHz | K42: =AbsorbencyText -> Sabins | L42: a @ 2KHz | M42: =AbsorbencyText -> Sabins | N42: a @ 4KHz | O42: =AbsorbencyText -> Sabins
C43: Material 1 | D43: =IF(VLOOKUP(ceiling_mat1,ceiling_mat_start:ceiling_mat_end,7)>0.99,0.99,VLOOKUP(ceiling_mat1,ceiling_mat_start:ceiling_mat_end,7)) -> 0.10 | E43: =ceiling_mat1_area*ceiling_mat1_alpha_125 -> 26.77 | F43: =IF(VLOOKUP(ceiling_mat1,ceiling_mat_start:ceiling_mat_end,8)>0.99,0.99,VLOOKUP(ceiling_mat1,ceiling_mat_start:ceiling_mat_end,8)) -> 0.35 | G43: =ceiling_mat1_area*ceiling_mat1_alpha_250 -> 93.70 | H43: =IF(VLOOKUP(ceiling_mat1,ceiling_mat_start:ceiling_mat_end,9)>0.99,0.99,VLOOKUP(ceiling_mat1,ceiling_mat_start:ceiling_mat_end,9)) -> 0.70 | I43: =ceiling_mat1_area*ceiling_mat1_alpha_500 -> 187.41 | J43: =IF(VLOOKUP(ceiling_mat1,ceiling_mat_start:ceiling_mat_end,10)>0.99,0.99,VLOOKUP(ceiling_mat1,ceiling_mat_start:ceiling_mat_end,10)) -> 0.75 | K43: =ceiling_mat1_area*ceiling_mat1_alpha_1k -> 200.79 | L43: =IF(VLOOKUP(ceiling_mat1,ceiling_mat_start:ceiling_mat_end,11)>0.99,0.99,VLOOKUP(ceiling_mat1,ceiling_mat_start:ceiling_mat_end,11)) -> 0.65 | M43: =ceiling_mat1_area*ceiling_mat1_alpha_2k -> 174.02 | N43: =IF(VLOOKUP(ceiling_mat1,ceiling_mat_start:ceiling_mat_end,12)>0.99,0.99,VLOOKUP(ceiling_mat1,ceiling_mat_start:ceiling_mat_end,12)) -> 0.50 | O43: =ceiling_mat1_area*ceiling_mat1_alpha_4k -> 133.86
C44: Material 2 | D44: =IF(VLOOKUP(ceiling_mat2,ceiling_mat_start:ceiling_mat_end,7)>0.99,0.99,VLOOKUP(ceiling_mat2,ceiling_mat_start:ceiling_mat_end,7)) -> 0.00 | E44: =ceiling_mat2_area*ceiling_mat2_alpha_125 -> 0.00 | F44: =IF(VLOOKUP(ceiling_mat2,ceiling_mat_start:ceiling_mat_end,8)>0.99,0.99,VLOOKUP(ceiling_mat2,ceiling_mat_start:ceiling_mat_end,8)) -> 0.00 | G44: =ceiling_mat2_area*ceiling_mat2_alpha_250 -> 0.00 | H44: =IF(VLOOKUP(ceiling_mat2,ceiling_mat_start:ceiling_mat_end,9)>0.99,0.99,VLOOKUP(ceiling_mat2,ceiling_mat_start:ceiling_mat_end,9)) -> 0.00 | I44: =ceiling_mat2_area*ceiling_mat2_alpha_500 -> 0.00 | J44: =IF(VLOOKUP(ceiling_mat2,ceiling_mat_start:ceiling_mat_end,10)>0.99,0.99,VLOOKUP(ceiling_mat2,ceiling_mat_start:ceiling_mat_end,10)) -> 0.00 | K44: =ceiling_mat2_area*ceiling_mat2_alpha_1k -> 0.00 | L44: =IF(VLOOKUP(ceiling_mat2,ceiling_mat_start:ceiling_mat_end,11)>0.99,0.99,VLOOKUP(ceiling_mat2,ceiling_mat_start:ceiling_mat_end,11)) -> 0.00 | M44: =ceiling_mat2_area*ceiling_mat2_alpha_2k -> 0.00 | N44: =IF(VLOOKUP(ceiling_mat2,ceiling_mat_start:ceiling_mat_end,12)>0.99,0.99,VLOOKUP(ceiling_mat2,ceiling_mat_start:ceiling_mat_end,12)) -> 0.00 | O44: =ceiling_mat2_area*ceiling_mat2_alpha_4k -> 0.00
C45: Material 3 | D45: =IF(VLOOKUP(ceiling_mat3,ceiling_mat_start:ceiling_mat_end,7)>0.99,0.99,VLOOKUP(ceiling_mat3,ceiling_mat_start:ceiling_mat_end,7)) -> 0.00 | E45: =ceiling_mat3_area*ceiling_mat3_alpha_125 -> 0.00 | F45: =IF(VLOOKUP(ceiling_mat3,ceiling_mat_start:ceiling_mat_end,8)>0.99,0.99,VLOOKUP(ceiling_mat3,ceiling_mat_start:ceiling_mat_end,8)) -> 0.00 | G45: =ceiling_mat3_area*ceiling_mat3_alpha_250 -> 0.00 | H45: =IF(VLOOKUP(ceiling_mat3,ceiling_mat_start:ceiling_mat_end,9)>0.99,0.99,VLOOKUP(ceiling_mat3,ceiling_mat_start:ceiling_mat_end,9)) -> 0.00 | I45: =ceiling_mat3_area*ceiling_mat3_alpha_500 -> 0.00 | J45: =IF(VLOOKUP(ceiling_mat3,ceiling_mat_start:ceiling_mat_end,10)>0.99,0.99,VLOOKUP(ceiling_mat3,ceiling_mat_start:ceiling_mat_end,10)) -> 0.00 | K45: =ceiling_mat3_area*ceiling_mat3_alpha_1k -> 0.00 | L45: =IF(VLOOKUP(ceiling_mat3,ceiling_mat_start:ceiling_mat_end,11)>0.99,0.99,VLOOKUP(ceiling_mat3,ceiling_mat_start:ceiling_mat_end,11)) -> 0.00 | M45: =ceiling_mat3_area*ceiling_mat3_alpha_2k -> 0.00 | N45: =IF(VLOOKUP(ceiling_mat3,ceiling_mat_start:ceiling_mat_end,12)>0.99,0.99,VLOOKUP(ceiling_mat3,ceiling_mat_start:ceiling_mat_end,12)) -> 0.00 | O45: =ceiling_mat3_area*ceiling_mat3_alpha_4k -> 0.00
C46: Material 4 | D46: =IF(VLOOKUP(ceiling_mat4,ceiling_mat_start:ceiling_mat_end,7)>0.99,0.99,VLOOKUP(ceiling_mat4,ceiling_mat_start:ceiling_mat_end,7)) -> 0.00 | E46: =ceiling_mat4_area*ceiling_mat4_alpha_125 -> 0.00 | F46: =IF(VLOOKUP(ceiling_mat4,ceiling_mat_start:ceiling_mat_end,8)>0.99,0.99,VLOOKUP(ceiling_mat4,ceiling_mat_start:ceiling_mat_end,8)) -> 0.00 | G46: =ceiling_mat4_area*ceiling_mat4_alpha_250 -> 0.00 | H46: =IF(VLOOKUP(ceiling_mat4,ceiling_mat_start:ceiling_mat_end,9)>0.99,0.99,VLOOKUP(ceiling_mat4,ceiling_mat_start:ceiling_mat_end,9)) -> 0.00 | I46: =ceiling_mat4_area*ceiling_mat4_alpha_500 -> 0.00 | J46: =IF(VLOOKUP(ceiling_mat4,ceiling_mat_start:ceiling_mat_end,10)>0.99,0.99,VLOOKUP(ceiling_mat4,ceiling_mat_start:ceiling_mat_end,10)) -> 0.00 | K46: =ceiling_mat4_area*ceiling_mat4_alpha_1k -> 0.00 | L46: =IF(VLOOKUP(ceiling_mat4,ceiling_mat_start:ceiling_mat_end,11)>0.99,0.99,VLOOKUP(ceiling_mat4,ceiling_mat_start:ceiling_mat_end,11)) -> 0.00 | M46: =ceiling_mat4_area*ceiling_mat4_alpha_2k -> 0.00 | N46: =IF(VLOOKUP(ceiling_mat4,ceiling_mat_start:ceiling_mat_end,12)>0.99,0.99,VLOOKUP(ceiling_mat4,ceiling_mat_start:ceiling_mat_end,12)) -> 0.00 | O46: =ceiling_mat4_area*ceiling_mat4_alpha_4k -> 0.00
C47: Total for Ceiling | D47: =E47/ceiling_area -> 0.10 | E47: =SUM(E43:E46) -> 26.77 | F47: =G47/ceiling_area -> 0.35 | G47: =SUM(G43:G46) -> 93.70 | H47: =I47/ceiling_area -> 0.70 | I47: =SUM(I43:I46) -> 187.41 | J47: =K47/ceiling_area -> 0.75 | K47: =SUM(K43:K46) -> 200.79 | L47: =M47/ceiling_area -> 0.65 | M47: =SUM(M43:M46) -> 174.02 | N47: =O47/ceiling_area -> 0.50 | O47: =SUM(O43:O46) -> 133.86
B49: Room totals | D49: 125Hz | E49: 250Hz | F49: 500Hz | G49: 1KHz | H49: 2KHz | I49: 4KHz
C50: Total (M) Sabins per freq band | D50: =SUM(E47,E40,E33,E26,E19,E12) -> 170.67 | E50: =SUM(G47,G40,G33,G26,G19,G12) -> 169.35 | F50: =SUM(I47,I40,I33,I26,I19,I12) -> 335.71 | G50: =SUM(K47,K40,K33,K26,K19,K12) -> 430.21 | H50: =SUM(M47,M40,M33,M26,M19,M12) -> 476.29 | I50: =SUM(O47,O40,O33,O26,O19,O12) -> 460.44
C51: Alpha bar per frequency band | D51: =sigma_sabins_125/total_area -> 0.15 | E51: =sigma_sabins_250/total_area -> 0.15 | F51: =sigma_sabins_500/total_area -> 0.29 | G51: =sigma_sabins_1k/total_area -> 0.37 | H51: =sigma_sabins_2k/total_area -> 0.41 | I51: =sigma_sabins_4k/total_area -> 0.40
C52: Average room absorbency | D52: =AVERAGE(alpha_bar_125,alpha_bar_250,alpha_bar_500,alpha_bar_1k,alpha_bar_2k,alpha_bar_4k) -> 0.29 | E52: a bar
C53: Total absorption units | D53: =alpha_bar*total_area -> 340.44 | E53: =AbsorbencyText -> Sabins
B55: On axis absorption (a) | D55: 125Hz | E55: 250Hz | F55: 500Hz | G55: 1KHz | H55: 2KHz | I55: 4KHz | J55: Average
C56: X axis (Width) | D56: =(E19+E33)/x_area -> 0.21 | E56: =(G19+G33)/x_area -> 0.08 | F56: =(I19+I33)/x_area -> 0.11 | G56: =(K19+K33)/x_area -> 0.07 | H56: =(M19+M33)/x_area -> 0.09 | I56: =(O19+O33)/x_area -> 0.21 | J56: =AVERAGE(D56:I56) -> 0.13
C57: Y axis (Length) | D57: =(E12+E26)/y_area -> 0.21 | E57: =(G12+G26)/y_area -> 0.08 | F57: =(I12+I26)/y_area -> 0.10 | G57: =(K12+K26)/y_area -> 0.07 | H57: =(M12+M26)/y_area -> 0.08 | I57: =(O12+O26)/y_area -> 0.20 | J57: =AVERAGE(D57:I57) -> 0.12
C58: Z axis (Height) | D58: =(E40+E47)/z_area -> 0.07 | E58: =(G40+G47)/z_area -> 0.23 | F58: =(I40+I47)/z_area -> 0.51 | G58: =(K40+K47)/z_area -> 0.73 | H58: =(M40+M47)/z_area -> 0.79 | I58: =(O40+O47)/z_area -> 0.62 | J58: =AVERAGE(D58:I58) -> 0.49
B60: Unit dependent values
C61: Length | D61: =IF(unitFactor=1,"m","ft") -> ft | E61: "m" or "ft"
C62: Area | D62: =IF(unitFactor=1,"sq m","sq ft") -> sq ft | E62: "sq m" or "sq ft"
C63: Volume | D63: =IF(unitFactor=1,"cu m","cu ft") -> cu ft | E63: "cu m" or "cu ft"
C64: Absorbency | D64: =IF(unitFactor=1,"M Sabins","Sabins") -> Sabins | E64: "M Sabins" or "Sabins"
C65: Velocity | D65: =IF(unitFactor=1,"m/s","ft/s") -> ft/s | E65: "m/s" or "ft/s"
C66: Dimension scale factor | D66: 3.281 | E66: =IF(unitFactor=1,"","ft/m") -> ft/m | F66: Conversion factor for imperial units
C67: Factor for RT60 formulae | D67: =24/(sound_velocity*LOG(EXP(1))) -> 0.049 | F67: Constant of proportionality for RT60 Equations
B69: Intermediate values for RT60 formulae | D69: 125Hz | E69: 250Hz | F69: 500Hz | G69: 1KHz | H69: 2KHz | I69: 4KHz
B70: Arau | C70: X axis term | D70: =((factor*room_volume)/(total_area*-LN(1-x_alpha_bar_125)))^(x_area/total_area) -> 0.79 | E70: =((factor*room_volume)/(total_area*-LN(1-x_alpha_bar_250)))^(x_area/total_area) -> 1.08 | F70: =((factor*room_volume)/(total_area*-LN(1-x_alpha_bar_500)))^(x_area/total_area) -> 0.99 | G70: =((factor*room_volume)/(total_area*-LN(1-x_alpha_bar_1k)))^(x_area/total_area) -> 1.13 | H70: =((factor*room_volume)/(total_area*-LN(1-x_alpha_bar_2k)))^(x_area/total_area) -> 1.05 | I70: =((factor*room_volume)/(total_area*-LN(1-x_alpha_bar_4k)))^(x_area/total_area) -> 0.79
C71: Y axis term | D71: =((factor*room_volume)/(total_area*-LN(1-y_alpha_bar_125)))^(y_area/total_area) -> 0.82 | E71: =((factor*room_volume)/(total_area*-LN(1-y_alpha_bar_250)))^(y_area/total_area) -> 1.08 | F71: =((factor*room_volume)/(total_area*-LN(1-y_alpha_bar_500)))^(y_area/total_area) -> 1.00 | G71: =((factor*room_volume)/(total_area*-LN(1-y_alpha_bar_1k)))^(y_area/total_area) -> 1.12 | H71: =((factor*room_volume)/(total_area*-LN(1-y_alpha_bar_2k)))^(y_area/total_area) -> 1.05 | I71: =((factor*room_volume)/(total_area*-LN(1-y_alpha_bar_4k)))^(y_area/total_area) -> 0.84
C72: Z axis term | D72: =((factor*room_volume)/(total_area*-LN(1-z_alpha_bar_125)))^(z_area/total_area) -> 1.20 | E72: =((factor*room_volume)/(total_area*-LN(1-z_alpha_bar_250)))^(z_area/total_area) -> 0.67 | F72: =((factor*room_volume)/(total_area*-LN(1-z_alpha_bar_500)))^(z_area/total_area) -> 0.42 | G72: =((factor*room_volume)/(total_area*-LN(1-z_alpha_bar_1k)))^(z_area/total_area) -> 0.32 | H72: =((factor*room_volume)/(total_area*-LN(1-z_alpha_bar_2k)))^(z_area/total_area) -> 0.29 | I72: =((factor*room_volume)/(total_area*-LN(1-z_alpha_bar_4k)))^(z_area/total_area) -> 0.36
D74: Sx | E74: Sy | F74: Sz | G74: Sww
B75: Fitzroy 1 | C75: On axis area | D75: =wall2_area+wall4_area -> 338.89 | E75: =wall1_area+wall3_area -> 284.81 | F75: =floor_area+ceiling_area -> 535.44 | G75: =x_area+y_area -> 623.70 | H75: =AreaText -> sq ft
D77: 125Hz | E77: 250Hz | F77: 500Hz | G77: 1KHz | H77: 2KHz | I77: 4KHz
B78: Fitzroy 2 | C78: Wall reflectivity | D78: =1-(x_alpha_bar_125+y_alpha_bar_125)/2 -> 0.79 | E78: =1-(x_alpha_bar_250+y_alpha_bar_250)/2 -> 0.92 | F78: =1-(x_alpha_bar_500+y_alpha_bar_500)/2 -> 0.90 | G78: =1-(x_alpha_bar_1k+y_alpha_bar_1k)/2 -> 0.93 | H78: =1-(x_alpha_bar_2k+y_alpha_bar_2k)/2 -> 0.91 | I78: =1-(x_alpha_bar_4k+y_alpha_bar_4k)/2 -> 0.79 | J78: rww
C79: Ceiling/Floor reflectivity | D79: =1-z_alpha_bar_125 -> 0.93 | E79: =1-z_alpha_bar_250 -> 0.78 | F79: =1-z_alpha_bar_500 -> 0.50 | G79: =1-z_alpha_bar_1k -> 0.28 | H79: =1-z_alpha_bar_2k -> 0.21 | I79: =1-z_alpha_bar_4k -> 0.38 | J79: rcf
C80: Averaged overall surface absorbancy | D80: =(x_alpha_bar_125+y_alpha_bar_125+z_alpha_bar_125)/3 -> 0.17 | E80: =(x_alpha_bar_250+y_alpha_bar_250+z_alpha_bar_250)/3 -> 0.13 | F80: =(x_alpha_bar_500+y_alpha_bar_500+z_alpha_bar_500)/3 -> 0.24 | G80: =(x_alpha_bar_1k+y_alpha_bar_1k+z_alpha_bar_1k)/3 -> 0.29 | H80: =(x_alpha_bar_2k+y_alpha_bar_2k+z_alpha_bar_2k)/3 -> 0.32 | I80: =(x_alpha_bar_4k+y_alpha_bar_4k+z_alpha_bar_4k)/3 -> 0.34
C81: Averaged overall surface reflectivity | D81: =1-D80 -> 0.83 | E81: 0.87 | F81: 0.76 | G81: 0.71 | H81: 0.68 | I81: 0.66
C82: Neubauer's a* term for walls | D82: =-LN(1-D80)+((D78*(D78-D81)*(ww_area^2))/(D81*total_area)^2) -> 0.17 | E82: 0.15 | F82: 0.33 | G82: 0.45 | H82: 0.52 | I82: 0.49 | J82: a*ww
C83: Neubauer's a* term for ceiling/floor | D83: =-LN(1-D80)+((D79*(D79-D81)*(z_area^2))/(D81*total_area)^2) -> 0.21 | E83: 0.11 | F83: 0.22 | G83: 0.29 | H83: 0.34 | I83: 0.37 | J83: a*cf
D85: 125Hz | E85: 250Hz | F85: 500Hz | G85: 1KHz | H85: 2KHz | I85: 4KHz
B86: Millington | D86: =wall1_area*LN(1-wall1_alpha_125)+wall2_area*LN(1-wall2_alpha_125)+wall3_area*LN(1-wall3_alpha_125)+wall4_area*LN(1-wall4_alpha_125)+floor_area*LN(1-floor_alpha_125)+ceiling_area*LN(1-ceiling_alpha_125) -> -188.98 | E86: =wall1_area*LN(1-wall1_alpha_250)+wall2_area*LN(1-wall2_alpha_250)+wall3_area*LN(1-wall3_alpha_250)+wall4_area*LN(1-wall4_alpha_250)+floor_area*LN(1-floor_alpha_250)+ceiling_area*LN(1-ceiling_alpha_250) -> -194.43 | F86: =wall1_area*LN(1-wall1_alpha_500)+wall2_area*LN(1-wall2_alpha_500)+wall3_area*LN(1-wall3_alpha_500)+wall4_area*LN(1-wall4_alpha_500)+floor_area*LN(1-floor_alpha_500)+ceiling_area*LN(1-ceiling_alpha_500) -> -490.68 | G86: =wall1_area*LN(1-wall1_alpha_1k)+wall2_area*LN(1-wall2_alpha_1k)+wall3_area*LN(1-wall3_alpha_1k)+wall4_area*LN(1-wall4_alpha_1k)+floor_area*LN(1-floor_alpha_1k)+ceiling_area*LN(1-ceiling_alpha_1k) -> -736.97 | H86: =wall1_area*LN(1-wall1_alpha_2k)+wall2_area*LN(1-wall2_alpha_2k)+wall3_area*LN(1-wall3_alpha_2k)+wall4_area*LN(1-wall4_alpha_2k)+floor_area*LN(1-floor_alpha_2k)+ceiling_area*LN(1-ceiling_alpha_2k) -> -1048.72 | I86: =wall1_area*LN(1-wall1_alpha_4k)+wall2_area*LN(1-wall2_alpha_4k)+wall3_area*LN(1-wall3_alpha_4k)+wall4_area*LN(1-wall4_alpha_4k)+floor_area*LN(1-floor_alpha_4k)+ceiling_area*LN(1-ceiling_alpha_4k) -> -690.19
E88: Wavelength
B89: Notes of equally tempered scale | D89: Hz | E89: =IF(unitFactor=1,"(m)","(ft)") -> (ft) | F89: Note No
B90: (Hypothetical note) | C90: A-3 | D90: =concert_pitch/128 -> 3.44 | E90: =sound_velocity/D90 -> 327.59 | F90: 1
B91: (Hypothetical note) | C91: A#-2 | D91: =D90*2^(1/12) -> 3.64 | E91: 309.21 | F91: 2
B92: (Hypothetical note) | C92: B-2 | D92: =D90*2^(2/12) -> 3.86 | E92: 291.85 | F92: 3
B93: (Hypothetical note) | C93: C-2 | D93: =D90*2^(3/12) -> 4.09 | E93: 275.47 | F93: 4
B94: (Hypothetical note) | C94: C#-2 | D94: =D90*2^(4/12) -> 4.33 | E94: 260.01 | F94: 5
B95: (Hypothetical note) | C95: D-2 | D95: =D90*2^(5/12) -> 4.59 | E95: 245.42 | F95: 6
B96: (Hypothetical note) | C96: D#-2 | D96: =D90*2^(6/12) -> 4.86 | E96: 231.64 | F96: 7
B97: (Hypothetical note) | C97: E-2 | D97: =D90*2^(7/12) -> 5.15 | E97: 218.64 | F97: 8
B98: (Hypothetical note) | C98: F-2 | D98: =D90*2^(8/12) -> 5.46 | E98: 206.37 | F98: 9
B99: (Hypothetical note) | C99: F#-2 | D99: =D90*2^(9/12) -> 5.78 | E99: 194.79 | F99: 10
B100: (Hypothetical note) | C100: G-2 | D100: =D90*2^(10/12) -> 6.12 | E100: 183.86 | F100: 11
B101: (Hypothetical note) | C101: G#-2 | D101: =D90*2^(11/12) -> 6.49 | E101: 173.54 | F101: 12
B102: (Hypothetical note) | C102: A-2 | D102: =concert_pitch/64 -> 6.88 | E102: 163.80 | F102: 13
B103: (Hypothetical note) | C103: A#-1 | D103: =D102*2^(1/12) -> 7.28 | E103: 154.60 | F103: 14
B104: (Hypothetical note) | C104: B-1 | D104: =D102*2^(2/12) -> 7.72 | E104: 145.93 | F104: 15
B105: (Hypothetical note) | C105: C-1 | D105: =D102*2^(3/12) -> 8.18 | E105: 137.74 | F105: 16
B106: (Hypothetical note) | C106: C#-1 | D106: =D102*2^(4/12) -> 8.66 | E106: 130.01 | F106: 17
B107: (Hypothetical note) | C107: D-1 | D107: =D102*2^(5/12) -> 9.18 | E107: 122.71 | F107: 18
B108: (Hypothetical note) | C108: D#-1 | D108: =D102*2^(6/12) -> 9.72 | E108: 115.82 | F108: 19
B109: (Hypothetical note) | C109: E-1 | D109: =D102*2^(7/12) -> 10.30 | E109: 109.32 | F109: 20
B110: (Hypothetical note) | C110: F-1 | D110: =D102*2^(8/12) -> 10.91 | E110: 103.19 | F110: 21
B111: (Hypothetical note) | C111: F#-1 | D111: =D102*2^(9/12) -> 11.56 | E111: 97.39 | F111: 22
B112: (Hypothetical note) | C112: G-1 | D112: =D102*2^(10/12) -> 12.25 | E112: 91.93 | F112: 23
B113: (Hypothetical note) | C113: G#-1 | D113: =D102*2^(11/12) -> 12.98 | E113: 86.77 | F113: 24
B114: (Hypothetical note) | C114: A-1 | D114: =concert_pitch/32 -> 13.75 | E114: 81.90 | F114: 25
B115: (Hypothetical note) | C115: A#-1 | D115: =D114*2^(1/12) -> 14.57 | E115: 77.30 | F115: 26
B116: (Hypothetical note) | C116: B-1 | D116: =D114*2^(2/12) -> 15.43 | E116: 72.96 | F116: 27
C117: C0 | D117: =D114*2^(3/12) -> 16.35 | E117: 68.87 | F117: 28
C118: C#0 | D118: =D114*2^(4/12) -> 17.32 | E118: 65.00 | F118: 29
C119: D0 | D119: =D114*2^(5/12) -> 18.35 | E119: 61.35 | F119: 30
C120: D#0 | D120: =D114*2^(6/12) -> 19.45 | E120: 57.91 | F120: 31
C121: E0 | D121: =D114*2^(7/12) -> 20.60 | E121: 54.66 | F121: 32
C122: F0 | D122: =D114*2^(8/12) -> 21.83 | E122: 51.59 | F122: 33
C123: F#0 | D123: =D114*2^(9/12) -> 23.12 | E123: 48.70 | F123: 34
C124: G0 | D124: =D114*2^(10/12) -> 24.50 | E124: 45.96 | F124: 35
C125: G#0 | D125: =D114*2^(11/12) -> 25.96 | E125: 43.38 | F125: 36
C126: A0 | D126: =concert_pitch/16 -> 27.50 | E126: 40.95 | F126: 37
C127: A#0 | D127: =D126*2^(1/12) -> 29.14 | E127: 38.65 | F127: 38
C128: B0 | D128: =D126*2^(2/12) -> 30.87 | E128: 36.48 | F128: 39
C129: C1 | D129: =D126*2^(3/12) -> 32.70 | E129: 34.43 | F129: 40
C130: C#1 | D130: =D126*2^(4/12) -> 34.65 | E130: 32.50 | F130: 41
C131: D1 | D131: =D126*2^(5/12) -> 36.71 | E131: 30.68 | F131: 42
C132: D#1 | D132: =D126*2^(6/12) -> 38.89 | E132: 28.96 | F132: 43
C133: E1 | D133: =D126*2^(7/12) -> 41.20 | E133: 27.33 | F133: 44
C134: F1 | D134: =D126*2^(8/12) -> 43.65 | E134: =sound_velocity/D134 -> 25.80 | F134: 45
C135: F#1 | D135: =D126*2^(9/12) -> 46.25 | E135: 24.35 | F135: 46
C136: G1 | D136: =D126*2^(10/12) -> 49.00 | E136: 22.98 | F136: 47
C137: G#1 | D137: =D126*2^(11/12) -> 51.91 | E137: 21.69 | F137: 48
C138: A1 | D138: =concert_pitch/8 -> 55.00 | E138: 20.47 | F138: 49
C139: A#1 | D139: =D138*2^(1/12) -> 58.27 | E139: 19.33 | F139: 50
C140: B1 | D140: =D138*2^(2/12) -> 61.74 | E140: 18.24 | F140: 51
C141: C2 | D141: =D138*2^(3/12) -> 65.41 | E141: 17.22 | F141: 52
C142: C#2 | D142: =D138*2^(4/12) -> 69.30 | E142: 16.25 | F142: 53
C143: D2 | D143: =D138*2^(5/12) -> 73.42 | E143: 15.34 | F143: 54
C144: D#2 | D144: =D138*2^(6/12) -> 77.78 | E144: 14.48 | F144: 55
C145: E2 | D145: =D138*2^(7/12) -> 82.41 | E145: 13.67 | F145: 56
C146: F2 | D146: =D138*2^(8/12) -> 87.31 | E146: 12.90 | F146: 57
C147: F#2 | D147: =D138*2^(9/12) -> 92.50 | E147: 12.17 | F147: 58
C148: G2 | D148: =D138*2^(10/12) -> 98.00 | E148: 11.49 | F148: 59
C149: G#2 | D149: =D138*2^(11/12) -> 103.83 | E149: 10.85 | F149: 60
C150: A2 | D150: =concert_pitch/4 -> 110.00 | E150: 10.24 | F150: 61
C151: A#2 | D151: =D150*2^(1/12) -> 116.54 | E151: 9.66 | F151: 62
C152: B2 | D152: =D150*2^(2/12) -> 123.47 | E152: 9.12 | F152: 63
C153: C3 | D153: =D150*2^(3/12) -> 130.81 | E153: 8.61 | F153: 64
C154: C#3 | D154: =D150*2^(4/12) -> 138.59 | E154: 8.13 | F154: 65
C155: D3 | D155: =D150*2^(5/12) -> 146.83 | E155: 7.67 | F155: 66
C156: D#3 | D156: =D150*2^(6/12) -> 155.56 | E156: 7.24 | F156: 67
C157: E3 | D157: =D150*2^(7/12) -> 164.81 | E157: 6.83 | F157: 68
C158: F3 | D158: =D150*2^(8/12) -> 174.61 | E158: 6.45 | F158: 69
C159: F#3 | D159: =D150*2^(9/12) -> 185.00 | E159: 6.09 | F159: 70
C160: G3 | D160: =D150*2^(10/12) -> 196.00 | E160: 5.75 | F160: 71
C161: G#3 | D161: =D150*2^(11/12) -> 207.65 | E161: 5.42 | F161: 72
C162: A3 | D162: =concert_pitch/2 -> 220.00 | E162: 5.12 | F162: 73
C163: A#3 | D163: =D162*2^(1/12) -> 233.08 | E163: 4.83 | F163: 74
C164: B3 | D164: =D162*2^(2/12) -> 246.94 | E164: 4.56 | F164: 75
C165: C4 | D165: =D162*2^(3/12) -> 261.63 | E165: 4.30 | F165: 76
C166: C#4 | D166: =D162*2^(4/12) -> 277.18 | E166: =sound_velocity/D166 -> 4.06 | F166: 77
C167: D4 | D167: =D162*2^(5/12) -> 293.66 | E167: 3.83 | F167: 78
C168: D#4 | D168: =D162*2^(6/12) -> 311.13 | E168: 3.62 | F168: 79
C169: E4 | D169: =D162*2^(7/12) -> 329.63 | E169: 3.42 | F169: 80
C170: F4 | D170: =D162*2^(8/12) -> 349.23 | E170: 3.225 | F170: 81
C171: F#4 | D171: =D162*2^(9/12) -> 369.99 | E171: 3.044 | F171: 82
C172: G4 | D172: =D162*2^(10/12) -> 392.00 | E172: 2.873 | F172: 83
C173: G#4 | D173: =D162*2^(11/12) -> 415.30 | E173: 2.712 | F173: 84
C174: A4 | D174: =concert_pitch -> 440.00 | E174: 2.559 | F174: 85
C175: A#4 | D175: =D174*2^(1/12) -> 466.16 | E175: 2.416 | F175: 86
C176: B4 | D176: =D174*2^(2/12) -> 493.88 | E176: 2.280 | F176: 87
C177: C5 | D177: =D174*2^(3/12) -> 523.25 | E177: 2.152 | F177: 88
C178: C#5 | D178: =D174*2^(4/12) -> 554.37 | E178: 2.031 | F178: 89
C179: D5 | D179: =D174*2^(5/12) -> 587.33 | E179: 1.917 | F179: 90
C180: D#5 | D180: =D174*2^(6/12) -> 622.25 | E180: 1.810 | F180: 91
C181: E5 | D181: =D174*2^(7/12) -> 659.26 | E181: 1.708 | F181: 92
C182: F5 | D182: =D174*2^(8/12) -> 698.46 | E182: 1.612 | F182: 93
C183: F#5 | D183: =D174*2^(9/12) -> 739.99 | E183: 1.522 | F183: 94
C184: G5 | D184: =D174*2^(10/12) -> 783.99 | E184: 1.436 | F184: 95
C185: G#5 | D185: =D174*2^(11/12) -> 830.61 | E185: 1.356 | F185: 96
C186: A5 | D186: =concert_pitch*2 -> 880.00 | E186: 1.280 | F186: 97
C187: A#5 | D187: =D186*2^(1/12) -> 932.33 | E187: 1.208 | F187: 98
C188: B5 | D188: =D186*2^(2/12) -> 987.77 | E188: 1.140 | F188: 99
C189: C6 | D189: =D186*2^(3/12) -> 1046.50 | E189: 1.076 | F189: 100
C190: C#6 | D190: =D186*2^(4/12) -> 1108.73 | E190: 1.016 | F190: 101
C191: D6 | D191: =D186*2^(5/12) -> 1174.66 | E191: 0.959 | F191: 102
C192: D#6 | D192: =D186*2^(6/12) -> 1244.51 | E192: 0.905 | F192: 103
C193: E6 | D193: =D186*2^(7/12) -> 1318.51 | E193: 0.854 | F193: 104
C194: F6 | D194: =D186*2^(8/12) -> 1396.91 | E194: 0.806 | F194: 105
C195: F#6 | D195: =D186*2^(9/12) -> 1479.98 | E195: 0.761 | F195: 106
C196: G6 | D196: =D186*2^(10/12) -> 1567.98 | E196: 0.718 | F196: 107
C197: G#6 | D197: =D186*2^(11/12) -> 1661.22 | E197: 0.678 | F197: 108
C198: A6 | D198: =concert_pitch*4 -> 1760.00 | E198: =sound_velocity/D198 -> 0.640 | F198: 109
C199: A#6 | D199: =D198*2^(1/12) -> 1864.66 | E199: 0.604 | F199: 110
C200: B6 | D200: =D198*2^(2/12) -> 1975.53 | E200: 0.570 | F200: 111
C201: C7 | D201: =D198*2^(3/12) -> 2093.00 | E201: 0.538 | F201: 112
C202: C#7 | D202: =D198*2^(4/12) -> 2217.46 | E202: 0.508 | F202: 113
C203: D7 | D203: =D198*2^(5/12) -> 2349.32 | E203: 0.479 | F203: 114
C204: D#7 | D204: =D198*2^(6/12) -> 2489.02 | E204: 0.452 | F204: 115
C205: E7 | D205: =D198*2^(7/12) -> 2637.02 | E205: 0.427 | F205: 116
C206: F7 | D206: =D198*2^(8/12) -> 2793.83 | E206: 0.403 | F206: 117
C207: F#7 | D207: =D198*2^(9/12) -> 2959.96 | E207: 0.380 | F207: 118
C208: G7 | D208: =D198*2^(10/12) -> 3135.96 | E208: 0.359 | F208: 119
C209: G#7 | D209: =D198*2^(11/12) -> 3322.44 | E209: 0.339 | F209: 120
C210: A7 | D210: =concert_pitch*8 -> 3520.00 | E210: 0.320 | F210: 121
C211: A#7 | D211: =D210*2^(1/12) -> 3729.31 | E211: 0.302 | F211: 122
C212: B7 | D212: =D210*2^(2/12) -> 3951.07 | E212: 0.285 | F212: 123
C213: C8 | D213: =D210*2^(3/12) -> 4186.01 | E213: 0.269 | F213: 124
B214: (Hypothetical note) | C214: C#8 | D214: =D210*2^(4/12) -> 4434.92 | E214: 0.254 | F214: 125
B215: (Hypothetical note) | C215: D8 | D215: =D210*2^(5/12) -> 4698.64 | E215: 0.240 | F215: 126
B216: (Hypothetical note) | C216: D#8 | D216: =D210*2^(6/12) -> 4978.03 | E216: 0.226 | F216: 127
... 8 more rows

Sheet Acknowledgements
B2: Acknowledgements
B3: Every attempt has been made to recognise the authorship of the formulae and data used within this spreadsheet. All sources are quoted where known.
B4: In the event that formulae or data have been published in multiple forms and/or locations, recognition is given to the source from which the author obtained
B5: the information. This is not necessarily the primary source.
B7: Special Thanks
B8: I would like to thank these people for their time & help in reviewing this spreadsheet
C9: Eric Desart | D9: Antwerp, Belgium | E9: http://www.acoustics-noise.com
C10: James Heddle | D10: Australia | E10: Website currently unavailable
B12: Room Ratios Sheet | C12: Person/Organisation | D12: Location | E12: Source material
B13: Bolt's room dimensions | C13: Sound on Sound | D13: http://www.sospubs.co.uk | E13: Page controlrooms.html
B14: Bolt's relationship | C14: Richard Bolt
B15: EBU & IEC relationships | C15: Cox & D'Antonio | D15: http://www.rpginc.com | E15: http://www.rpginc.com/cgi-bin/byteserver.pl/news/library/roomsizer.pdf
B16: Resonance plot | C16: Prof Trevor Cox | D16: Universtity of Salford, UK | E16: http://www.acoustics.salford.ac.uk/acoustics_world/room_sizer/room_sizing3.htm
B18: Basic Properties Sheet
B19: Speed of sound | C19: Eric Desart | D19: http://www.acoustics-noise.com | E19: Quoting ASTM C 423
B20: Schroeder transition frequency | C20: Kinsler & Frey | E20: Fundamentals of Acoustics
B21: Lowest modal frequency | C21: Siegfried Linkwitz | D21: http://www.linkwitzlab.com | E21: Quoting from Kuttruff, Room Acoustics, 1991
B22: Modes below cutoff frequency | C22: Siegfried Linkwitz | D22: ibid | E22: ibid
B23: Mode spacing | C23: Siegfried Linkwitz | D23: ibid | E23: ibid
B24: Rise time | C24: Siegfried Linkwitz | D24: ibid | E24: Page rooms.htm
B25: Rettinger's decay time | C25: Sound on Sound | D25: http://www.sospubs.co.uk | E25: Page controlrooms.html
B27: Resonant Modes Sheet
B28: Frequency of room modes | C28: Reinhard Neubauer | D28: http://www.ib-neubauer.com
B29: Modal attenuation | C29: Prof Y.W. Lam | D29: Universtity of Salford, UK | E29: Paper on ""Diffuse Field Room Acoustics"", 1995
B31: RT60 Sheet
B32: Sabine's formula | C32: Reinhard Neubauer | D32: http://www.ib-neubauer.com | E32: 8th ICSV, Hong Kong, China
B33: Eyring's formula | C33: Reinhard Neubauer | D33: ibid | E33: ibid
B34: Fitzroy's formula | C34: Reinhard Neubauer | D34: ibid | E34: ibid
B35: Arau's formula | C35: Reinhard Neubauer | D35: ibid | E35: ibid
B36: Kuttruff's effective absorption coefficient | C36: Reinhard Neubauer | D36: ibid | E36: ibid
B37: Modification to Fitzroy's formula | C37: Reinhard Neubauer | D37: ibid | E37: ibid
B39: Schroeder Diffusers Sheet
B40: Diffuser well depth | C40: Geoffrey Martin | D40: McGill University, Montreal, Canada | E40: http://www.music.mcgill.ca/cirmmt/publications/pdf/martin01a.pdf
B41: Diffuser well width | C41: Manfred Schroeder | D41: University of Goettingen, Germany
B42: Effective bandwidth | C42: Manfred Schroeder | D42: ibid
B44: Absorption Coefficients Sheet
B45: Absorption Coefficients | C45: Acoustics Engineering | D45: Various manufacturers | E45: http://www.acoustics-engineering.com/sabin/absdatabases.htm
C46: SAE College | E46: http://www.saecollege.de/reference_material/pages/Coefficient%20Chart.htm
C47: Auralex Acoustics
B49: Intermediate Values Sheet
B50: Kuttruff's effective absorption coefficient | C50: Reinhard Neubauer | D50: http://www.ib-neubauer.com | E50: 8th ICSV, Hong Kong, China
B51: Modification to Fitzroy's formula | C51: Reinhard Neubauer | D51: ibid | E51: ibid
B52: Factor for RT60 calculations | C52: Eric Desart | D52: http://www.acoustics-noise.com
